Workbook

Sheet Indice
A1: INDICE DE PESTAÑAS | B1: TIPO
A2: Componente 1 obra | B2: Cantidad
A3: Componente 1 obra proyectado | B3: Cantidad
A4: Generalidades | B4: Ficha
A5: BMS | B5: Ficha
A6: BMS_P | B6: Cantidad
A7: Datacenter | B7: Ficha
A8: Datacenter_P | B8: Cantidad
A9: Red_Lan | B9: Ficha
A10: Red_Lan_P | B10: Cantidad
A11: Gabinetes | B11: Ficha
A12: Gabinetes_P | B12: Cantidad
A13: Red_Inalambrica | B13: Ficha
A14: Red_Inalambrica_P | B14: Cantidad
A15: VMS | B15: Ficha
A16: VMS_P | B16: Cantidad
A17: Switch | B17: Ficha
A18: Switch_P | B18: Cantidad
A19: CCTV | B19: Ficha
A20: CCTV_P | B20: Cantidad
A21: EVAC | B21: Ficha
A22: EVAC_P | B22: Cantidad
A23: Multimedia | B23: Ficha
A24: Multimedia_P | B24: Cantidad
A25: Acceso | B25: Ficha
A26: Acceso_P | B26: Cantidad
A27: Intrusion | B27: Ficha
A28: Instrusion_P | B28: Cantidad
A29: Visitantes | B29: Ficha
A30: Visitantes_P | B30: Cantidad
A31: Telefonia | B31: Ficha
A32: Telefonia_P | B32: Cantidad
A33: Enlace_PTP | B33: Ficha
A34: Enlace_PTP_P | B34: Cantidad
A35: Videowall | B35: Ficha
A36: VideoWall_P | B36: Cantidad
A37: Enlace_F.O | B37: Ficha
A38: Enlace_F.O_P | B38: Cantidad
A39: Antidrone | B39: Ficha
A40: Antidrone_P | B40: Cantidad

Sheet COMPONENTE 1 - OBRA
C7: ANEXO No 19 PRECIOS Y CANTIDADES
A10: Especificaciones | B10: EDT | C10: Descripción | D10: Unidad | E10: Cantidad | F10: Costo unitario | G10: Total | I10: Cantidad | J10: Costo unitario | K10: Total | M10: CUMPLE | N10: NO CUMPLE
B12: 1.0.0 | C12: PRELIMINARES
B14: 1.1.0 | C14: REPLANTEO
A15: ESP 1.1.1 | B15: 1.1.1 | C15: LOCALIZACIÓN, TRAZADO Y REPLANTEO. Se utilizará personal experto con equipo de precisión (topógrafo, cadenero 1 y cadenero 2), incluye: clavo 1", larguero 2x2, tránsito, demarcación con pintura, línea de trazado, libretas, planos, seguridad social del personal, elemento epp y herramienta menor. Se hará con la frecuencia que lo indique la interventoría. | D15: día | E15: 60.00 | F15: $774,546.79 | G15: =F15*E15 -> $46,472,807.40 | I15: 60.00 | K15: =J15*I15 -> $0.00
C17: TOTAL DE REPLANTEO | G17: =SUM(G15) -> $46,472,807.40 | K17: =SUM(K15) -> $0.00
B19: 1.2.0 | C19: DESCAPOTE
A20: ESP 1.2.1 | B20: 1.2.1 | C20: DESCAPOTE A MÁQUINA. Incluye el desenraice si es necesario, cargue, transporte y botada de material sobrante en botaderos oficiales. Medición en sitio, retroexcavadora con operario combustible, seguridad social y elementos de EPP. | D20: m3 | E20: 450.00 | F20: $51,508.65 | G20: =F20*E20 -> $23,178,892.50 | I20: 450.00 | K20: =J20*I20 -> $0.00
C22: TOTAL DE DESCAPOTE | G22: =G20 -> $23,178,892.50 | K22: =K20 -> $0.00
B24: 1.3.0 | C24: INSTALACIONES PROVISIONALES
A25: ESP 1.3.1 | B25: 1.3.1 | C25: Construcción de Zona para baños, caspete provisionales, cárcamo para lavadero de volquetas y construcción de tanque de cilindros, incluye mampostería, teja de zinc, mortero, mesón en acero inoxidable, suministro de aparatos sanitarios, puertas, reja en malla eslabonada y los demás elementos necesarios para su correcto funcionamiento. | D25: m2 | E25: 18.00 | F25: $844,725.10 | G25: =F25*E25 -> $15,205,051.80 | I25: 18.00 | K25: =J25*I25 -> $0.00
A26: ESP 1.3.2 | B26: 1.3.2 | C26: Suministro e instalación eléctrica provisional, incluye subestación de 150 kva, incluye transformador, protecciones y medidas, extensión red media tensión aérea, tablero baja tensión para provisionales 500 a-220 v en poste, totalizador principal 500 a, tipo exterior. protección diferencial, lamina cr, instalación en poste tipo exterior, incluye compartimiento de medida, acometida baja tensión desde transformador hasta nuevo tablero 220 v 500 a en poste con seis cables de cobre calibre 250 mcm fase + 2 cables de cobre calibre 250 mcm neutro, instalaciones internas y todos los elementos necesarios para su correcto funcionamiento en zona provisional de obra. | D26: glo | E26: 1.00 | F26: $40,475,272.50 | G26: =F26*E26 -> $40,475,272.50 | I26: 1.00 | K26: =J26*I26 -> $0.00
A27: ESP 1.3.3 | B27: 1.3.3 | C27: Suministro e Instalación Hidráulica provisional, incluye tubería, accesorios (diámetros variables), excavación manual, cinta teflón, soldadura PVC, herramienta menor, tanques de 12000 lt, flanche para tanque, motobomba y elementos necesarios para su correcto funcionamiento. | D27: glo | E27: 1.00 | F27: $22,446,920.34 | G27: =F27*E27 -> $22,446,920.34 | I27: 1.00 | K27: =J27*I27 -> $0.00
A28: ESP 1.3.4 | B28: 1.3.4 | C28: Alquiler contenedores para campamento provisional 2 oficinas tipo oficinas. Incluye red eléctrica con tableros y tomas 110v y 220v, salidas eléctricas dobles y todo lo relacionado para su correcto funcionamiento. Incluye ventanerías, puertas, pisos, iluminación led, suministro y transporte. Aire acondicionado de 12.000 BTU a 220V | D28: días | E28: 540.00 | F28: $152,367.60 | G28: =F28*E28 -> $82,278,504.00 | I28: 540.00 | K28: =J28*I28 -> $0.00
C30: TOTAL DE INSTALACIONES PROVISIONALES | G30: =SUM(G25:G29) -> $160,405,748.64 | K30: =SUM(K25:K29) -> $0.00
B32: 1.0.0 | C32: TOTAL DE PRELIMINARES | G32: =SUM(G30+G22)+G17 -> $230,057,448.54 | K32: =SUM(K30+K22)+K17 -> $0.00
B34: 2.0.0 | C34: DEMOLICIONES
B36: 2.1.0 | C36: DEMOLICIONES
A37: ESP 2.1.1 | B37: 2.1.1 | C37: DEMOLICIÓN DE ÁREA CONSTRUIDA EN CUALQUIER MATERIAL con predominio en materiales de bloque, ladrillo, concreto de vigas, columnas, losas en concreto, cubierta en cualquier material. Incluye también el cargue mecánico o manual, transporte interno y externo y disposición final a botaderos oficiales. La demolición se realizará del área, por cada nivel intervenido incluye la demolición de losa de piso y cubierta. Además la recuperación de los materiales aprovechables son de la entidad contratante, se desmontan y entregan en un acopio dentro de la obra o cargados en los vehículos que se dispongan para su transporte. Incluye la conformación con escombros de la vía interna, el transporte y suministros de 2 retroexcavadoras y demás equipos necesarios para el desmonte, Seguridad Social y capacitaciones al Sistema de Gestión de Seguridad y Salud en el trabajo a los contratistas, todos los EPP certificados según la actividad. Así mismo el acompañamiento permanente en obra de un tecnólogo SST, que es también el Coordinador de trabajos en altura, Se dispone de personal capacitado para auxiliar de tránsito para el tráfico de volquetas, . Gestionamos ante las entidades autorizadas la certificación de los botaderos de todos los viajes de escombros que resulten en la obra. El contrato incluye la expedición de pólizas de Cumplimiento, Responsabilidad Civil y Prestaciones Sociales, por parte de una compañía de seguros para garantizar la seguridad y buen término de la obra. La demolición se ejecutará en 30 días. | D37: m2 | E37: 2,781.14 | F37: $42,186.48 | G37: =F37*E37 -> $117,326,358.19 | I37: 2,781.14 | K37: =J37*I37 -> $0.00
C39: TOTAL DE DEMOLICIONES | G39: =G37 -> $117,326,358.19 | K39: =K37 -> $0.00
B41: 2.0.0 | C41: TOTAL DE DEMOLICIONES | G41: =G39 -> $117,326,358.19 | K41: =K39 -> $0.00
B43: 3.0.0 | C43: MOVIMIENTOS DE TIERRA
B45: 3.1.0 | C45: EXCAVACIÓN Y RETIRO DE MATERIAL
A46: ESP 3.1.1 | B46: 3.1.1 | C46: EXCAVACIÓN MECÁNICA de material heterogéneo DE 0-3 m (Sobre ancho 60 CM), bajo cualquier grado de humedad. Incluye: roca descompuesta, bolas de roca de volúmen inferior a 0.35 m³, el cargue, transporte interno y externo y botada de material proveniente de las excavaciones en los sitios donde lo indique la interventoría y su medida será en el sitio. No incluye entibado. | D46: m3 | E46: 1,158.00 | F46: $53,829.81 | G46: =F46*E46 -> $62,334,919.98 | I46: 1,158.00 | K46: =J46*I46 -> $0.00
A47: ESP 3.1.2 | B47: 3.1.2 | C47: EXCAVACIÓN PARA CAMPANAS EN PILAS, de 14.0 a 16.0 m de profundidad, en material heterogéneo, con piedras de hasta 0.05 m³. Incluye pozo piloto de bombeo, molinete, motobomba, extracción del material de la pila y acarreo interno de materiales y cargue, transporte y botada del material proveniente de la excavación en botaderos oficiales o donde lo indique la interventoría y todo lo necesario para su correcta construcción. SU MEDIDA SERA EN SITIO. | D47: m3 | E47: 91.30 | F47: $612,041.82 | G47: $55,879,418.17 | I47: 91.30 | K47: $0.00
A48: ESP 3.1.3 | B48: 3.1.3 | C48: EXCAVACIÓN MANUAL PARA PILAS DE 0,0 a 2,0 m de profundidad con DIÁMETRO EXTERIOR DE 1,40 m, en material heterogéneo, con piedras de hasta 0.05 m³. Incluye pozo piloto de bombeo, formaleta en madera común, molinete, motobomba, extracción del material de la pila y acarreo interno de materiales, cargue, transporte y botada del material proveniente de la excavación en botaderos oficiales o donde lo indique la interventoría y todo lo necesario para su correcta construcción. Su medida sera en sitio. No incluye anillo. | D48: m3 | E48: 189.00 | F48: $200,731.95 | G48: $37,938,338.55 | I48: 189.00 | K48: $0.00
A49: ESP 3.1.4 | B49: 3.1.4 | C49: EXCAVACIÓN MANUAL PARA PILAS DE 2,0 a 4,0 m de profundidad con DIÁMETRO EXTERIOR DE 1,40 m, en material heterogéneo, con piedras de hasta 0.05 m³. Incluye pozo piloto de bombeo, formaleta en madera común, molinete, motobomba, extracción del material de la pila y acarreo interno de materiales, cargue, transporte y botada del material proveniente de la excavación en botaderos oficiales o donde lo indique la interventoría y todo lo necesario para su correcta construcción. SU MEDIDA SERA EN SITIO. No incluye anillo. | D49: m3 | E49: 189.00 | F49: $247,475.21 | G49: $46,772,814.69 | I49: 189.00 | K49: $0.00
A50: ESP 3.1.5 | B50: 3.1.5 | C50: EXCAVACIÓN MANUAL PARA PILAS DE 4,0 a 6,0 m de profundidad con DIÁMETRO EXTERIOR DE 1,40 m, en material heterogéneo, con piedras de hasta 0.05 m³. Incluye pozo piloto de bombeo, formaleta en madera común, molinete, motobomba, extracción del material de la pila y acarreo interno de materiales, cargue, transporte y botada del material proveniente de la excavación en botaderos oficiales o donde lo indique la interventoría y todo lo necesario para su correcta construcción. SU MEDIDA SERA EN SITIO. No incluye anillo. | D50: m3 | E50: 189.00 | F50: $292,583.16 | G50: $55,298,217.24 | I50: 189.00 | K50: $0.00
A51: ESP 3.1.6 | B51: 3.1.6 | C51: EXCAVACIÓN MANUAL PARA PILAS DE 6,0 a 8,0 m de profundidad con DIÁMETRO EXTERIOR DE 1,40 m, en material heterogéneo, con piedras de hasta 0.05 m³. Incluye pozo piloto de bombeo, formaleta en madera común, molinete, motobomba, extracción del material de la pila y acarreo interno de materiales, cargue, transporte y botada del material proveniente de la excavación en botaderos oficiales o donde lo indique la interventoría y todo lo necesario para su correcta construcción. SU MEDIDA SERA EN SITIO. No incluye anillo. | D51: m3 | E51: 189.00 | F51: $326,386.10 | G51: $61,686,972.90 | I51: 189.00 | K51: $0.00
A52: ESP 3.1.7 | B52: 3.1.7 | C52: EXCAVACIÓN MANUAL PARA PILAS DE 8,0 a 10,0 m de profundidad con DIÁMETRO EXTERIOR DE 1,40 m, en material heterogéneo, con piedras de hasta 0.05 m³. Incluye pozo piloto de bombeo, formaleta en madera común, molinete, motobomba, extracción del material de la pila y acarreo interno de materiales, cargue, transporte y botada del material proveniente de la excavación en botaderos oficiales o donde lo indique la interventoría y todo lo necesario para su correcta construcción. SU MEDIDA SERA EN SITIO. No incluye anillo. | D52: m3 | E52: 189.00 | F52: $375,820.70 | G52: $71,030,112.30 | I52: 189.00 | K52: $0.00
A53: ESP 3.1.8 | B53: 3.1.8 | C53: EXCAVACIÓN MANUAL PARA PILAS DE 10,0 a 12,0 m de profundidad con DIÁMETRO EXTERIOR DE 1,40 m, en material heterogéneo, con piedras de hasta 0.05 m³. Incluye pozo piloto de bombeo, formaleta en madera común, molinete, motobomba, extracción del material de la pila y acarreo interno de materiales, cargue, transporte y botada del material proveniente de la excavación en botaderos oficiales o donde lo indique la interventoría y todo lo necesario para su correcta construcción. SU MEDIDA SERA EN SITIO. No incluye anillo. | D53: m3 | E53: 189.00 | F53: $414,567.09 | G53: $78,353,180.01 | I53: 189.00 | K53: $0.00
A54: ESP 3.1.9 | B54: 3.1.9 | C54: EXCAVACIÓN MANUAL PARA PILAS DE 12,0 a 14,0 m de profundidad con DIÁMETRO EXTERIOR DE 1,40 m, en material heterogéneo, con piedras de hasta 0.05 m³. Incluye pozo piloto de bombeo, formaleta en madera común, molinete, motobomba, extracción del material de la pila y acarreo interno de materiales, cargue, transporte y botada del material proveniente de la excavación en botaderos oficiales o donde lo indique la interventoría y todo lo necesario para su correcta construcción. SU MEDIDA SERA EN SITIO. No incluye anillo. | D54: m3 | E54: 56.30 | F54: $466,496.05 | G54: $26,263,727.62 | I54: 56.30 | K54: $0.00
A55: ESP 3.1.10 | B55: 3.1.10 | C55: EXCAVACIÓN MANUAL PARA PILAS DE 14,0 a 16,0 m de profundidad con DIÁMETRO EXTERIOR DE 1,40 m, en material heterogéneo, con piedras de hasta 0.05 m³. Incluye pozo piloto de bombeo, formaleta en madera común, molinete, motobomba, extracción del material de la pila y acarreo interno de materiales, cargue, transporte y botada del material proveniente de la excavación en botaderos oficiales o donde lo indique la interventoría y todo lo necesario para su correcta construcción. SU MEDIDA SERA EN SITIO. No incluye anillo. | D55: m3 | E55: 56.30 | F55: $551,381.41 | G55: $31,042,773.38 | I55: 56.30 | K55: $0.00
C57: TOTAL DE EXCAVACIÓN Y RETIRO DE MATERIAL | G57: =SUM(G46:G55) -> $526,600,474.83 | K57: =SUM(K46:K55) -> $0.00
B59: 3.2.0 | C59: LLENOS
A60: ESP 3.2.1 | B60: 3.2.1 | C60: Suministro, transporte y colocación de base granular de máximo Ø 1½", reacomodado con medios MANUALES y compactado al 100% mínimo del ensayo del proctor modificado, según normas para la construcción de pavimentos del INVIAS, y todo lo necesario para su correcto funcionamiento. Su medida será tomada en sitio ya compactado. Incluye acarreo interno, el equipo compactador + operario + combustible y la cuadrilla. La compactación debe ser máximo en capas de 20cm de espesor. | D60: m3 | E60: 1,027.00 | F60: $206,853.52 | G60: =F60*E60 -> $212,438,565.04 | I60: 1,027.00 | K60: =J60*I60 -> $0.00
A61: ESP 3.2.2 | B61: 3.2.2 | C61: Llenos en arenilla, compactados mecánicamente hasta obtener una densidad del 98% de la máxima obtenida en el ensayo del Proctor modificado. Incluye el suministro, transporte, colocación de la arenilla, la compactación de la misma y transporte interno. Y su medida sera en sitio ya compactado. El lleno debe extenderse en capas horizontales y espesor uniforme de tal forma que permita obtener el grado de compactación adecuado. | D61: m3 | E61: 160.00 | F61: $85,308.45 | G61: =F61*E61 -> $13,649,352.00 | I61: 160.00 | K61: =J61*I61 -> $0.00
A62: ESP 3.2.3 | B62: 3.2.3 | C62: Llenos en material provenientes de la excavación, compactados mecánicamente hasta obtener una densidad del 95% de la máxima obtenida en el ensayo del Proctor modificado. Incluye transporte interno. Su medida sera en sitio ya compactado. | D62: m3 | E62: 240.00 | F62: $28,062.99 | G62: =F62*E62 -> $6,735,117.60 | I62: 240.00 | K62: =J62*I62 -> $0.00
C64: TOTAL DE LLENOS | G64: =SUM(G60:G62) -> $232,823,034.64 | K64: =SUM(K60:K62) -> $0.00
B66: 3.0.0 | C66: TOTAL DE MOVIMIENTOS DE TIERRA | G66: =G64+G57 -> $759,423,509.47 | K66: =K64+K57 -> $0.00
B68: 4.0.0 | C68: CONCRETOS
B70: 4.1.0 | C70: SUBESTRUCTURA
B72: 4.1.1 | C72: FUNDACIONES
A73: ESP 4.1.1.1 | B73: 4.1.1.1 | C73: Construcción de VIGA DE FUNDACIÓN en concreto de 28 Mpa (4000 PSI) DE 60X60. Incluye el suministro y transporte del concreto, mano de obra, protección y curado, acarreo interno, alquiler de bomba y los materiales necesarios para su correcta función. No incluye refuerzo ni excavación, los mismos se pagarán en sus respectivos ítems. | D73: m3 | E73: 224.68 | F73: $951,963.79 | G73: =F73*E73 -> $213,887,224.34 | I73: 224.68 | K73: =J73*I73 -> $0.00
A74: ESP 4.1.1.2 | B74: 4.1.1.2 | C74: Construcción de VIGA DE FUNDACIÓN en concreto de 28 Mpa (4000 PSI) DE 40X60. Incluye el suministro y transporte del concreto, mano de obra, protección y curado y los materiales necesarios para su correcta función. No incluye refuerzo ni excavación, los mismos se pagarán en sus respectivos ítems. | D74: m3 | E74: 65.69 | F74: $920,020.70 | G74: $60,436,159.78 | I74: 65.69 | K74: $0.00
A75: ESP 4.1.1.3 | B75: 4.1.1.3 | C75: Construcción de VIGA DE FUNDACIÓN en concreto de 28 Mpa (4000 PSI) DE 80X60. Incluye el suministro y transporte del concreto, mano de obra, protección y curado y los materiales necesarios para su correcta función. No incluye refuerzo ni excavación, los mismos se pagarán en sus respectivos ítems. | D75: m3 | E75: 4.80 | F75: $986,690.10 | G75: $4,736,112.48 | I75: 4.80 | K75: $0.00
A76: ESP 4.1.1.4 | B76: 4.1.1.4 | C76: Construcción de DADOS DE FUNDACIÓN O CABEZOTES en concreto de 42 Mpa (6000 PSI). Incluye el suministro y transporte del concreto, mano de obra, protección y curado y los materiales necesarios para su correcta función. No incluye refuerzo ni excavación, los mismos se pagarán en sus respectivos ítems. | D76: m3 | E76: 43.41 | F76: $1,161,631.06 | G76: $50,426,404.31 | I76: 43.41 | K76: $0.00
A77: ESP 4.1.1.5 | B77: 4.1.1.5 | C77: Construcción de PILAS en concreto de 28 Mpa (4000 PSI) premezclado. Incluye el suministro, transporte y vaciado del concreto, mano de obra, protección, tabla de 1.70x0.20, clavo 1" y alquiler de bomba y los demás elementos necesarios para su correcto funcionamiento. No incluye refuerzo ni excavación, los mismos se pagarán en sus respectivos ítems. | D77: m3 | E77: 710.00 | F77: $890,720.55 | G77: $632,411,590.50 | I77: 710.00 | K77: $0.00
A78: ESP 4.1.1.6 | B78: 4.1.1.6 | C78: Colocación de concreto de 10.5 Mpa para SOLADO, con un espesor de 0.05 m. Incluye el suministro y el transporte del concreto, acarreo interno y todos los demás elementos necesarios para su correcta construcción. | D78: m2 | E78: 385.03 | F78: $25,081.30 | G78: $9,657,136.54 | I78: 385.03 | K78: $0.00
A79: ESP 4.1.1.7 | B79: 4.1.1.7 | C79: Construcción de LOSA DE CONTRAPISO en Concreto premezclado 21 Mpa (3000 PSI) con e=13 cm. Incluye suministro, transporte e instalación del concreto, mano de obra, vibrado, protección y curado, pulida de piso de concreto con allanadora (1026.07m2) y todos los materiales necesarios para su correcto funcionamiento. No incluye refuerzo, ni lleno. NOTA: En estas cantidades se encuentra incluido el vaciado de placa de losa de contrapiso del foso de ascensor. | D79: m2 | E79: 2,503.39 | F79: $217,015.34 | G79: $543,274,032.00 | I79: 2,503.39 | K79: $0.00
A80: ESP 4.1.1.8 | B80: 4.1.1.8 | C80: Construcción de CAMPANAS DE PILAS en Concreto premezclado 28 Mpa (4000 PSI). Incluye suministro, transporte e instalación del concreto, mano de obra, vibrado, protección y curado y todos los materiales necesarios para su correcto funcionamiento. No incluye refuerzo ni excavación, los mismos se pagarán en sus respectivos ítems. | D80: m3 | E80: 169.50 | F80: $948,927.02 | G80: $160,843,129.89 | I80: 169.50 | K80: $0.00
A81: ESP 4.1.1.9 | B81: 4.1.1.9 | C81: Armado y vaciado de ANILLO DE PILAS de diámetro 1.40, incluye Concreto de 17.5 Mpa preparado en obra, herramienta menor y todos los elementos necesarios para su correcta ejecución. No incluye refuerzo ni excavación, los mismos se pagarán en sus respectivos ítems. | D81: m | E81: 569.20 | F81: $343,713.90 | G81: $195,641,951.88 | I81: 569.20 | K81: $0.00
A82: ESP 4.1.1.10 | B82: 4.1.1.10 | C82: Construcción de ZAPATA PARA RAMPA EN CONCRETO PREMEZCLADO DE 28 MPA (4000 PSI). Incluye suministro, transporte y vaciado del concreto, vibrado, desmoldante, antisol, formaleta y todo lo necesario para su correcta construcción. No incluye excavación ni acero de refuerzo, los mismos se pagarán en sus respectivo ítems | D82: m3 | E82: 2.88 | F82: $946,985.66 | G82: $2,727,318.70 | I82: 2.88 | K82: $0.00
A83: ESP 4.1.1.11 | B83: 4.1.1.11 | C83: Construcción de PILOTE EN CONCRETO REFORZADO DE 28 MPA CON DIÁMETRO 30cm. Concreto premezclado . Incluye suministro, transporte y vaciado del concreto, excavación mecánica y todo lo necesario para su correcta construcción. No incluye acero de refuerzo, el mismos se pagará en su respectivo ítem | D83: m | E83: 260.00 | F83: $462,286.59 | G83: $120,194,512.76 | I83: 260.00 | K83: $0.00
A84: ESP 4.1.1.12 | B84: 4.1.1.12 | C84: Construcción de talud a 45° mediante tratamiento de una capa de mortero 1:4, de esp 5cm de espesor total, incluye malla electrosoldada tipo D84, tubería PVC 2" para oídos, geotextil NT2400, sika 1, larguero de madera comun de 1" y los materiales necesarios para su correcto funcionamiento. | D84: m2 | E84: 195.27 | F84: $149,243.52 | G84: $29,142,782.52 | I84: 195.27 | K84: $0.00
C86: TOTAL DE FUNDACIONES | G86: =SUM(G73:G84) -> $2,023,378,355.71 | K86: =SUM(K73:K84) -> $0.00
C88: TOTAL DE SUBESTRUCTURA | G88: =G86 -> $2,023,378,355.71 | K88: =K86 -> $0.00
B90: 4.2.0 | C90: ESTRUCTURA
B92: 4.2.1 | C92: LOSAS
A93: ESP 4.2.1.1 | B93: 4.2.1.1 | C93: Construcción de LOSAS AÉREAS en concreto de 35 Mpa (5000 psi). con un Esp 12.5 cm. Incluye suministro, transporte y colocación del concreto, mano de obra, vibrado, protección, formaleta y curado y todos los materiales necesarios para su correcto funcionamiento. No incluye refuerzo. | D93: m2 | E93: 16,162.91 | F93: $261,125.61 | G93: =F93*E93 -> $4,220,549,733.13 | I93: 16,162.91 | K93: =J93*I93 -> $0.00
C95: TOTAL DE LOSAS | G95: =G93 -> $4,220,549,733.13 | K95: =K93 -> $0.00
B97: 4.2.3 | C97: COLUMNAS
A98: ESP 4.2.3.1 | B98: 4.2.3.1 | C98: Construcción de COLUMNAS DE secciones 0.80x0.50 m de resistencias según diseño estructural ( 42 Mpa 6000 PSI) , acabado a la vista. Incluye suministro, transporte y colocación del concreto, formaleta en súper "T" de 19 mm., aristas biseladas, desmoldante, para mezclas de concreto, vibrado, protección, curado y todos los demás elementos necesarios para su correcta construcción según diseño. El acero de refuerzo se pagará en su respectivo ítem. | D98: m | E98: 11.60 | F98: $597,639.38 | G98: =F98*E98 -> $6,932,616.81 | I98: 11.60 | K98: =J98*I98 -> $0.00
A99: ESP 4.2.3.2 | B99: 4.2.3.2 | C99: Construcción de COLUMNAS DE secciones 0.80 x0.80m. de resistencias según diseño estructural (35 MPa o 5000 PSI y 42m Pao 6000 PSI) , acabado a la vista. Incluye suministro, transporte y colocación del concreto, formaleta en súper "T" de 19 mm., aristas biseladas, desmoldante, para mezclas de concreto, vibrado, protección, curado y todos los demás elementos necesarios para su correcta construcción según diseño. El acero de refuerzo se pagará en su respectivo ítem. | D99: m | E99: 816.20 | F99: $760,323.32 | G99: =F99*E99 -> $620,575,893.78 | I99: 816.20 | K99: =J99*I99 -> $0.00
C101: TOTAL DE COLUMNAS | G101: =G98+G99 -> $627,508,510.59 | K101: =K98+K99 -> $0.00
B103: 4.2.4 | C103: VIGAS AEREAS
A104: ESP 4.2.4.1 | B104: 4.2.4.1 | C104: Construcción de VIGAS AÉREAS de 0,2 x 0,6 m. en concreto de 35 Mpa, hasta una altura variable desde el nivel de apoyo de la obra falsa hasta el nivel inferior de la viga. Incluye suministro, transporte y colocación del concreto, formaleta de primera calidad en súper T de 19 mm o equivalente, para acabado a la vista, aristas biseladas, suministro, transporte, armado y desarmado de la obra falsa requerida, vibrado, protección, curado y todos los demás elementos necesarios para su correcta construcción. El acero de refuerzo se pagará en su respectivo ítem según diseño y especificaciones establecidos en los planos. En el vaciado se deben dejar los hierros para el amarre de los elementos no estructurales que se requieran, por ningún motivo se pagarán anclajes. NOTA: en estas cantidades se encuentran incluidas las vigas del foso de ascensor, tienen las mismas dimensiones. | D104: m | E104: 4,554.19 | F104: $270,531.26 | G104: =F104*E104 -> $1,232,050,758.98 | I104: 4,554.19 | K104: =J104*I104 -> $0.00
A105: ESP 4.2.4.2 | B105: 4.2.4.2 | C105: Construcción de VIGAS AÉREAS de 0,3 x 0,8 m. en concreto de 35 Mpa, hasta una altura variable desde el nivel de apoyo de la obra falsa hasta el nivel inferior de la viga. Incluye suministro, transporte y colocación del concreto, formaleta de primera calidad en súper T de 19 mm o equivalente, para acabado a la vista, aristas biseladas, suministro, transporte, armado y desarmado de la obra falsa requerida, vibrado, protección, curado y todos los demás elementos necesarios para su correcta construcción. El acero de refuerzo se pagará en su respectivo ítem según diseño y especificaciones establecidos en los planos. En el vaciado se deben dejar los hierros para el amarre de los elementos no estructurales que se requieran, por ningún motivo se pagarán anclajes. | D105: m | E105: 847.30 | F105: $374,520.19 | G105: =F105*E105 -> $317,330,956.99 | I105: 847.30 | K105: =J105*I105 -> $0.00
A106: ESP 4.2.4.3 | B106: 4.2.4.3 | C106: Construcción de VIGAS AÉREAS de 0,5 x 0,8 m. en concreto de 35 Mpa, hasta una altura variable desde el nivel de apoyo de la obra falsa hasta el nivel inferior de la viga. Incluye suministro, transporte y colocación del concreto, formaleta de primera calidad en súper T de 19 mm o equivalente, para acabado a la vista, aristas biseladas, suministro, transporte, armado y desarmado de la obra falsa requerida, vibrado, protección, curado y todos los demás elementos necesarios para su correcta construcción. El acero de refuerzo se pagará en su respectivo ítem según diseño y especificaciones establecidos en los planos. En el vaciado se deben dejar los hierros para el amarre de los elementos no estructurales que se requieran, por ningún motivo se pagarán anclajes. NOTA: en estas cantidades se encuentran incluida la viga cajón, tienen las mismas dimensiones. | D106: m | E106: 3,346.57 | F106: $505,786.80 | G106: =F106*E106 -> $1,692,650,931.28 | I106: 3,346.57 | K106: =J106*I106 -> $0.00
A107: ESP 4.2.4.4 | B107: 4.2.4.4 | C107: Construcción de VIGAS AÉREAS de 0,4 x 0,8 m. en concreto de 35 Mpa, con una altura variable desde el nivel de apoyo de la obra falsa hasta el nivel inferior de la viga. Incluye suministro, transporte y colocación del concreto, formaleta de primera calidad en súper T de 19 mm o equivalente, para acabado a la vista, aristas biseladas, suministro, transporte, armado y desarmado de la obra falsa requerida, vibrado, protección, curado y todos los demás elementos necesarios para su correcta construcción. El acero de refuerzo se pagará en su respectivo ítem según diseño y especificaciones establecidos en los planos. En el vaciado se deben dejar los hierros para el amarre de los elementos no estructurales que se requieran, por ningún motivo se pagarán anclajes. | D107: m | E107: 435.10 | F107: $443,069.40 | G107: =F107*E107 -> $192,779,495.94 | I107: 435.10 | K107: =J107*I107 -> $0.00
C109: TOTAL DE VIGAS AÉREAS | G109: =SUM(G104:G107) -> $3,434,812,143.18 | K109: =SUM(K104:K107) -> $0.00
B111: 4.2.5 | C111: ESCALERAS/GRADERÍAS
A112: ESP 4.2.5.1 | B112: 4.2.5.1 | C112: Construcción de ESCALERAS en concreto premezclado de 21 Mpa., con huella de 0.28 hasta 0.30 m y contrahuella de 0.15 hasta 0.17 m. Incluye suministro, transporte y la colocación del concreto, formaleta de primera calidad en súper "T" de 19 mm. o su equivalente para acabado a la vista, contrahuellas, moldura chaflán en contrahuellas, vibrado, protección, curado, y todos los demás elementos necesarios para su correcta construcción, según diseño. | D112: tramo | E112: 14.00 | F112: $9,128,259.18 | G112: =F112*E112 -> $127,795,628.5 | I112: 14.00 | K112: =J112*I112 -> $0.0
C114: TOTAL DE ESCALERAS/GRADERÍAS | G114: =G112 -> $127,795,628.55 | K114: =K112 -> $0.00
B116: 4.2.6 | C116: RAMPAS
A117: ESP 4.2.6.1 | B117: 4.2.6.1 | C117: Construcción de RAMPAS en concreto de 28 Mpa (4000 PSI), de 12,5 cm, Incluye suministro, transporte y colocación del concreto, mano de obra, vibrado, protección, formaleta y curado y todos los materiales necesarios para su correcto funcionamiento. No incluye refuerzo. | D117: m2 | E117: 147.70 | F117: $259,841.90 | G117: =F117*E117 -> $38,378,648.63 | I117: 147.70 | K117: =J117*I117 -> $0.00
A118: ESP 4.2.6.2 | B118: 4.2.6.2 | C118: Construcción de VIGAS AÉREAS DE RAMPA de 0,5 x 0,7 m. en concreto de 28 Mpa, hasta una altura variable desde el nivel de apoyo de la obra falsa hasta el nivel inferior de la viga. Incluye suministro, transporte y colocación del concreto, formaleta de primera calidad en súper T de 19 mm o equivalente, para acabado a la vista, aristas biseladas, suministro, transporte, armado y desarmado de la obra falsa requerida, vibrado, protección, curado y todos los demás elementos necesarios para su correcta construcción. El acero de refuerzo se pagará en su respectivo ítem según diseño y especificaciones establecidos en los planos. | D118: m | E118: 39.90 | F118: $445,293.47 | G118: =F118*E118 -> $17,767,209.45 | I118: 39.90 | K118: =J118*I118 -> $0.00
A119: ESP 4.2.6.3 | B119: 4.2.6.3 | C119: Construcción de VIGAS AÉREAS DE RAMPA de 0,4 x 0,2 m. en concreto de 28 Mpa, hasta una altura variable desde el nivel de apoyo de la obra falsa hasta el nivel inferior de la viga. Incluye suministro, transporte y colocación del concreto, formaleta de primera calidad en súper T de 19 mm o equivalente, para acabado a la vista, aristas biseladas, suministro, transporte, armado y desarmado de la obra falsa requerida, vibrado, protección, curado y todos los demás elementos necesarios para su correcta construcción. El acero de refuerzo se pagará en su respectivo ítem según diseño y especificaciones establecidos en los planos. | D119: m | E119: 19.66 | F119: $241,173.58 | G119: =F119*E119 -> $4,741,472.58 | I119: 19.66 | K119: =J119*I119 -> $0.00
C121: TOTAL DE RAMPAS | G121: =SUM(G117:G119) -> $60,887,330.67 | K121: =SUM(K117:K119) -> $0.00
B123: 4.2.7 | C123: TANQUES
A124: ESP 4.2.7.1 | B124: 4.2.7.1 | C124: Construcción de LOSA DE CONTRAPISO de tanque en Concreto premezclado 28 Mpa (4000 PSI) con e=50 cm, Incluye suministro, transporte e instalación del concreto, mano de obra, vibrado, protección y curado y todos los materiales necesarios para su correcto funcionamiento. No incluye refuerzo. Será pagado en su respectivo ítem. | D124: m2 | E124: 217.01 | F124: $600,665.86 | G124: =F124*E124 -> $130,347,494.95 | I124: 217.01 | K124: =J124*I124 -> $0.00
A125: ESP 4.2.7.2 | B125: 4.2.7.2 | C125: Construcción de MURO DE CONTENCIÓN en concreto premezclado de 28 MPa (4000 psi), esp. 0,30m, con una altura total máxima de 2.30m. Incluye desmoldante, vibrador de concreto, y todo lo necesario para su correcta construcción. No incluye acero de refuerzo, el mismo se pagará en su respectivo ítem. | D125: m2 | E125: 115.20 | F125: $384,670.56 | G125: =F125*E125 -> $44,314,048.51 | I125: 115.20 | K125: =J125*I125 -> $0.00
A126: ESP 4.2.7.3 | B126: 4.2.7.3 | C126: Construcción de MURO DIVISORIOS DE TANQUE en concreto premezclado de 28 MPa (4000 psi) esp. 0,30m, con una altura total máxima de 2.30m. Incluye desmoldante, vibrador de concreto, y todo lo necesario para su correcta construcción. No incluye acero de refuerzo, el mismo se pagará en su respectivo ítem. | D126: m2 | E126: 43.20 | F126: $384,670.56 | G126: =F126*E126 -> $16,617,768.19 | I126: 43.20 | K126: =J126*I126 -> $0.00
A127: ESP 4.2.7.4 | B127: 4.2.7.4 | C127: Construcción de LOSAS AÉREAS en concreto de 28 Mpa (4000 psi). con un Esp 20 cm PARA TANQUE. Incluye suministro, transporte y colocación del concreto, mano de obra, vibrado, protección, formaleta y curado y todos los materiales necesarios para su correcto funcionamiento. No incluye refuerzo. | D127: m2 | E127: 217.01 | F127: $304,086.75 | G127: =F127*E127 -> $65,988,345.81 | I127: 217.01 | K127: =J127*I127 -> $0.00
C129: TOTAL DE TANQUES | G129: =SUM(G124:G127) -> $257,267,657.46 | K129: =SUM(K124:K127) -> $0.00
B131: 4.2.8 | C131: MUROS EN CONCRETO
A132: ESP 4.2.8.1 | B132: 4.2.8.1 | C132: Suministro, transporte y colocación de concreto para MURO PANTALLA de dimensiones .4x6m, con resistencias de 42 Mpa(6000 psi) y 35 MPa(5000 psi), incluye formaleta SÚPER T para acabado a la vista ambas caras, vibrado, reductor de agua tipo Sika o similar, acelerante para concretos tipo Sika o similar, desencofrante tipo Sika o similar, transporte externo e interno y colocación de la formaleta en su sitio de acuerdo a los hilos, medidas y trazos indicados en los planos, lo mismo que el suministro, transporte externo e interno y colocación dentro del molde por medios manuales o mecánicos, del concreto necesario, en las características, secciones y especificaciones indicadas en los planos estructurales de la obra. El contratista debe suministrar también todos los elementos necesarios para asegurar la formaleta en su sitio, tales como tacos, parales, pasadores, tensores, corbatas, etc., que se requiera. Deberá también dar el curado necesario y retirar las formaletas cuando el concreto haya alcanzado su curado inicial. La interventoría indicará dónde y cuándo deben hacerse reparaciones u ordenar la demolición y reposición, por cuenta del contratista, del elemento cuando este lo considere necesario. El acero de refuerzo está incluido en su ítem respectivo. | D132: m2 | E132: 540.50 | F132: $469,732.90 | G132: =F132*E132 -> $253,890,632.45 | I132: 540.50 | K132: =J132*I132 -> $0.00
A133: ESP 4.2.8.2 | B133: 4.2.8.2 | C133: Suministro, transporte y colocación de concreto para MURO PANTALLA de dimensiones .8x1.60m, de resistencias de 42 Mpa(6000 psi) y 35 Mpa(5000 psi), incluye formaleta SÚPER T para acabado a la vista ambas caras, vibrado, reductor de agua tipo Sika o similar, acelerante para concretos tipo Sika o similar, desencofrante tipo Sika o similar, transporte externo e interno y colocación de la formaleta en su sitio de acuerdo a los hilos, medidas y trazos indicados en los planos, lo mismo que el suministro, transporte externo e interno y colocación dentro del molde por medios manuales o mecánicos, del concreto necesario, en las características, secciones y especificaciones indicadas en los planos estructurales de la obra. El contratista debe suministrar también todos los elementos necesarios para asegurar la formaleta en su sitio, tales como tacos, parales, pasadores, tensores, corbatas, etc., que se requiera. Deberá también dar el curado necesario y retirar las formaletas cuando el concreto haya alcanzado su curado inicial. La interventoría indicará dónde y cuándo deben hacerse reparaciones u ordenar la demolición y reposición, por cuenta del contratista, del elemento cuando este lo considere necesario. El acero de refuerzo está incluido en su ítem respectivo. | D133: m2 | E133: 301.12 | F133: $825,169.00 | G133: $248,474,889.28 | I133: 301.12 | K133: $0.00
A134: ESP 4.2.8.3 | B134: 4.2.8.3 | C134: Suministro, transporte y colocación de concreto de 21 Mpa(3000 psi), para muro espesor 20 cm, incluye formaleta SÚPER T para acabado a la vista ambas caras, vibrado, reductor de agua tipo Sika o similar, desencofrante tipo Sika o similar, transporte externo e interno y colocación de la formaleta en su sitio de acuerdo a los hilos, medidas y trazos indicados en los planos, lo mismo que el suministro, transporte externo e interno y colocación dentro del molde por medios manuales o mecánicos, del concreto necesario, en las características, secciones y especificaciones indicadas en los planos estructurales de la obra. se deberá también dar el curado necesario y retirar las formaletas cuando el concreto haya alcanzado su curado inicial. El acero de refuerzo está incluido en su ítem respectivo al igual que la formaleta. NOTA: los muros no estructurales se conciben en concreto reforzado. Las cantidades de los muros del foso de ascensor están incluidas dentro de este ítem. | D134: m2 | E134: 1,103.40 | F134: $303,400.91 | G134: $334,772,564.09 | I134: 1,103.40 | K134: $0.00
A135: ESP 4.2.8.4 | B135: 4.2.8.4 | C135: Suministro, transporte y colocación de concreto de 21 Mpa(3000 psi), para muro espesor 15 cm, incluye formaleta SÚPER T para acabado a la vista ambas caras, vibrado, reductor de agua tipo Sika o similar, desencofrante tipo Sika o similar, transporte externo e interno y colocación de la formaleta en su sitio de acuerdo a los hilos, medidas y trazos indicados en los planos, lo mismo que el suministro, transporte externo e interno y colocación dentro del molde por medios manuales o mecánicos, del concreto necesario, en las características, secciones y especificaciones indicadas en los planos estructurales de la obra. se Deberá también dar el curado necesario y retirar las formaletas cuando el concreto haya alcanzado su curado inicial. El acero de refuerzo está incluido en su ítem respectivo al igual que la formaleta. NOTA: En general, los muros no estructurales se conciben en concreto reforzado y las cantidades están reportadas dentro del ítem MUROS DE CONCRETO del presupuesto. | D135: m2 | E135: 3,532.91 | F135: $269,389.21 | G135: $951,727,833.90 | I135: 3,532.91 | K135: $0.00
A136: ESP 4.2.8.5 | B136: 4.2.8.5 | C136: Suministro, transporte y colocación de concreto de 24 Mpa(3500 psi), para muro espesor 15 cm, incluye formaleta SÚPER T para acabado a la vista ambas caras, vibrado, reductor de agua tipo Sika o similar, desencofrante tipo Sika o similar, transporte externo e interno y colocación de la formaleta en su sitio de acuerdo a los hilos, medidas y trazos indicados en los planos, lo mismo que el suministro, transporte externo e interno y colocación dentro del molde por medios manuales o mecánicos, del concreto necesario, en las características, secciones y especificaciones indicadas en los planos estructurales de la obra. se deberá también dar el curado necesario y retirar las formaletas cuando el concreto haya alcanzado su curado inicial. El acero de refuerzo está incluido en su ítem respectivo al igual que la formaleta. NOTA: En general, los muros no estructurales se conciben en concreto reforzado y las cantidades están reportadas dentro del ítem MUROS DE CONCRETO del presupuesto. | D136: m2 | E136: 640.00 | F136: $307,739.59 | G136: $196,953,337.60 | I136: 640.00 | K136: $0.00
A137: ESP 4.2.8.6 | B137: 4.2.8.6 | C137: Suministro, transporte y colocación de concreto de 21 Mpa(3000 psi), para muro espesor 12 cm, incluye formaleta SÚPER T para acabado a la vista ambas caras, vibrado, reductor de agua tipo Sika o similar, desencofrante tipo Sika o similar, transporte externo e interno y colocación de la formaleta en su sitio de acuerdo a los hilos, medidas y trazos indicados en los planos, lo mismo que el suministro, transporte externo e interno y colocación dentro del molde por medios manuales o mecánicos, del concreto necesario, en las características, secciones y especificaciones indicadas en los planos estructurales de la obra. se deberá también dar el curado necesario y retirar las formaletas cuando el concreto haya alcanzado su curado inicial. El acero de refuerzo está incluido en su ítem respectivo al igual que la formaleta. NOTA: En general, los muros no estructurales se conciben en concreto reforzado y las cantidades están reportadas dentro del ítem MUROS DE CONCRETO del presupuesto. | D137: m2 | E137: 490.10 | F137: $248,982.18 | G137: $122,026,166.42 | I137: 490.10 | K137: $0.00
A138: ESP 4.2.8.7 | B138: 4.2.8.7 | C138: Suministro, transporte y colocación de concreto de 21 Mpa(3000 psi), para muro espesor 10 cm, incluye formaleta SÚPER T para acabado a la vista ambas caras, vibrado, reductor de agua tipo Sika o similar, desencofrante tipo Sika o similar, transporte externo e interno y colocación de la formaleta en su sitio de acuerdo a los hilos, medidas y trazos indicados en los planos, lo mismo que el suministro, transporte externo e interno y colocación dentro del molde por medios manuales o mecánicos, del concreto necesario, en las características, secciones y especificaciones indicadas en los planos estructurales de la obra. se deberá también dar el curado necesario y retirar las formaletas cuando el concreto haya alcanzado su curado inicial. El acero de refuerzo está incluido en su ítem respectivo al igual que la formaleta.NOTA: En general, los muros no estructurales se conciben en concreto reforzado y las cantidades están reportadas dentro del ítem MUROS DE CONCRETO del presupuesto. | D138: m2 | E138: 578.35 | F138: $235,377.51 | G138: $136,130,582.91 | I138: 578.35 | K138: $0.00
A139: ESP 4.2.8.8 | B139: 4.2.8.8 | C139: Suministro, transporte y colocación de concreto de 21 Mpa(3000 psi), para muro paral espesor 20 cm para soporte de fachada liviana, incluye formaleta SÚPER T para acabado a la vista ambas caras, vibrado, reductor de agua tipo Sika o similar, desencofrante tipo Sika o similar, transporte externo e interno y colocación de la formaleta en su sitio de acuerdo a los hilos, medidas y trazos indicados en los planos, lo mismo que el suministro, transporte externo e interno y colocación dentro del molde por medios manuales o mecánicos, del concreto necesario, en las características, secciones y especificaciones indicadas en los planos estructurales de la obra. se deberá también dar el curado necesario y retirar las formaletas cuando el concreto haya alcanzado su curado inicial. El acero de refuerzo está incluido en su ítem respectivo al igual que la formaleta. | D139: m3 | E139: 235.86 | F139: $1,342,760.13 | G139: $316,703,404.26 | I139: 235.86 | K139: $0.00
C141: TOTAL DE MUROS EN CONCRETO | G141: =SUM(G132:G139) -> $2,560,679,410.91 | K141: =SUM(K132:K139) -> $0.00
B142: 4.2.9 | C142: FORMALETA
A143: ESP 4.2.9.1 | B143: 4.2.9.1 | C143: Alquiler de equipo para el armado de losa (obra falsa) encofrado completo de sistema versatec o equivalente, comparte proporcional de puntales y armadura con puntal de 5 m, encofrado a 3 niveles para un cuarto de losa sistema 1+1 de la planta típica nivel 4 e incluye los elementos necesarios para su correcto funcionamiento. | D143: m2 | E143: 1,136.00 | F143: $509,976.09 | G143: =F143*E143 -> $579,332,838.24 | I143: 1,136.00 | K143: =J143*I143 -> $0.00
A144: ESP 4.2.9.2 | B144: 4.2.9.2 | C144: Alquiler de equipo para el armado de columnas (obra falsa) sistema TEIDYHANDY Encofrado para estructura vertical con dimensiones variables a una altura de vaciado variable y altura de encofrado de 4.80m. Incluye accesorios de fijación y los elementos necesarios para su correcto funcionamiento. No incluye apuntalamiento ni consumibles. | D144: m2 | E144: 234.36 | F144: $759,569.50 | G144: =F144*E144 -> $178,012,708.02 | I144: 234.36 | K144: =J144*I144 -> $0.00
C146: TOTAL DE FORMALETA | G146: =SUM(G143:G144) -> $757,345,546.26 | K146: =SUM(K143:K144) -> $0.00
B148: 4.2.10 | C148: CÁRCAMOS
A149: ESP 4.2.10.1 | B149: 4.2.10.1 | C149: Canaleta en concreto .25m X.40m con rejilla modular antideslizante platinas con eje en acero inoxidable AISI 304. Espesor 1/8" para canal de 15 cm. Luz entre platinas: 25 mm. Ancho de la rejilla 12 cm para canal de 15 cm. | D149: m | E149: 6.77 | F149: $490,154.84 | G149: =F149*E149 -> $3,318,348.27 | I149: 6.77 | K149: =J149*I149 -> $0.00
A150: ESP 4.2.10.2 | B150: 4.2.10.2 | C150: Canaleta en concreto .40m X.50m con rejilla modular antideslizante platinas con eje en acero inoxidable AISI 304. Espesor 1/8" para canal de 50cm. Luz entre platinas: 25 mm. Ancho de la rejilla 12 cm para canal de 15 cm. | D150: m | E150: 28.72 | F150: $528,073.30 | G150: =F150*E150 -> $15,166,265.18 | I150: 28.72 | K150: =J150*I150 -> $0.00
C152: TOTAL DE CARCAMOS | G152: =SUM(G149:G150) -> $18,484,613.44 | K152: =SUM(K149:K150) -> $0.00
C154: TOTAL DE ESTRUCTURA | G154: =SUM(G152+G146+G141+G129+G121+G114+G109+G101+G95) -> $12,065,330,574.19 | K154: =SUM(K152+K146+K141+K129+K121+K114+K109+K101+K95) -> $0.00
C156: TOTAL DE CONCRETOS | G156: =SUM(G154+G88) -> $14,088,708,929.90 | K156: =SUM(K154+K88) -> $0.00
B158: 5.0.0 | C158: ACERO/MALLAS
B160: 5.1.0 | C160: ACERO DE REFUERZO
A161: ESP 5.1.1 | B161: 5.1.1 | C161: Suministro, transporte e instalación de ACERO DE REFUERZO FIGURADO FY= 420 Mpa-60000 PSI, corrugado para elementos en concreto reforzado. Incluye transporte con descarga, transporte interno, alambre de amarre, certificados y todos los elementos necesarios para su correcta instalación, según diseño y recomendaciones estructurales. NOTA: Dentro de las cantidades reportadas de acero de refuerzo se encuentra asociado al arreglo de tres vigas, o vigas cajón, que se extienden entre los ejes C y E, sobre eje el 4 en el nivel 7, y sobre los ejes 2, 3 y 4 en el nivel 8. El peso del refuerzo de cada viga es alrededor de 12560 kg. | D161: kg | E161: 828,940.02 | F161: $6,224.16 | G161: =F161*E161 -> $5,159,455,314.88 | I161: 828,940.02 | K161: =J161*I161 -> $0.00
A162: ESP 5.1.2 | B162: 5.1.2 | C162: Suministro e instalación de anclajes de diámetro 3/8", incluye la perforación, el epóxico y todos los elementos necesarios para su correcto funcionamiento | D162: un | E162: 8,850.00 | F162: $4,655.57 | G162: =F162*E162 -> $41,201,794.50 | I162: 8,850.00 | K162: =J162*I162 -> $0.00
C164: TOTAL DE ACERO DE REFUERZO | G164: =SUM(G161:G162) -> $5,200,657,109.38 | K164: =SUM(K161:K162) -> $0.00
B166: 5.2.0 | C166: MALLA ELECTROSOLDADA
A167: ESP 5.2.1 | B167: 5.2.1 | C167: Colocación de MALLA ELECTROSOLDADA TIPO D 131. Incluye el suministro, transporte del material, corte, instalación y amarre para losa de contrapiso y losas aéreas o donde se requiera. el refuerzo y su instalación debe cumplir con la Norma NSR 10. Incluye alambre recocido y todos los elementos necesarios para su correcta colocación. | D167: m2 | E167: 19,273.07 | F167: $16,777.78 | G167: =F167*E167 -> $323,359,328.38 | I167: 19,273.07 | K167: =J167*I167 -> $0.00
B168: 5.2.2 | C168: Colocación de MALLA ELECTROSOLDADA TIPO: D221. Incluye el suministro, transporte del material, corte, instalación y amarre para muros de concreto no estructurales o donde se requiera. El refuerzo y su instalación debe cumplir con la Norma NSR 10. Incluye alambre recocido y todos los elementos necesarios para su correcta colocación. | D168: m2 | E168: 1,681.75 | F168: $25,421.64 | G168: =F168*E168 -> $42,752,944.76 | I168: 1,681.75 | K168: =J168*I168 -> $0.00
B169: 5.2.3 | C169: Colocación de MALLA ELECTROSOLDADA TIPO: D257 . Incluye el suministro, transporte del material, corte, instalación y amarre para muros de concreto no estructurales o donde se requiera. El refuerzo y su instalación debe cumplir con la Norma NSR 10. Incluye alambre recocido y todos los elementos necesarios para su correcta colocación. | D169: m2 | E169: 490.10 | F169: $22,424.45 | G169: =F169*E169 -> $10,990,144.46 | I169: 490.10 | K169: =J169*I169 -> $0.00
B170: 5.2.4 | C170: Colocación de MALLA ELECTROSOLDADA TIPO: D158 . Incluye el suministro, transporte del material, corte, instalación y amarre para muros de concreto no estructurales o donde se requiera. El refuerzo y su instalación debe cumplir con la Norma NSR 10. Incluye alambre recocido y todos los elementos necesarios para su correcta colocación. | D170: m2 | E170: 3,529.58 | F170: $26,730.67 | G170: =F170*E170 -> $94,348,070.30 | I170: 3,529.58 | K170: =J170*I170 -> $0.00
G172: =G167+G168+G169+G170 -> $471,450,487.90 | K172: =K167+K168+K169+K170 -> $0.00
B174: 5.0.0 | C174: TOTAL DE ACERO/MALLAS | G174: =G164+G172 -> $5,672,107,597.28 | K174: =K164+K172 -> $0.00
B176: 6.0.0 | C176: ACABADOS E IMPERMEABILIZACIONES
B178: 6.1.0 | C178: PINTURA/ESTUCO/ENCHAPE
B180: 6.1.1 | C180: ESTUCO
A181: ESP 6.1.1.1 | B181: 6.1.1.1 | C181: Colocación de ESTUCO ACRÍLICO PROFESIONAL, SOBRE MUROS REVOCADOS, 3 manos mínimo, o las que sean necesarias para obtener una superficie pareja y homogénea. Incluye suministro y transporte de los materiales, ranuras, filetes, dilataciones y todos los elementos necesarios para su correcta aplicación y funcionamiento. | D181: m2 | E181: 5,789.54 | F181: $27,213.32 | G181: =F181*E181 -> $157,552,604.67 | I181: 5,789.54 | K181: =J181*I181 -> $0.00
C183: TOTAL DE ESTUCO | G183: =G181 -> $157,552,604.67 | K183: =K181 -> $0.00
B185: 6.1.2 | C185: ENCHAPES
A186: ESP 6.1.2.1 | B186: 6.1.2.1 | C186: Suministro, transporte e instalación de Enchape en cerámica Vancouver Caras Diferenciadas formato 30x60 color Beige Ref.604602031, marca corona o equivalente e incluye los elementos necesarios para su correcto funcionamiento. | D186: m2 | E186: 1,545.43 | F186: $87,500.46 | G186: =F186*E186 -> $135,225,835.90 | I186: 1,545.43 | K186: =J186*I186 -> $0.00
A187: ESP 6.1.2.2 | B187: 6.1.2.2 | C187: Suministro, transporte e instalación de Enchape en cerámica rectificada plana formato 30 x 60 cms Ref. 608039001 Corona color blanco o equivalente. Altura 1.50 cms. Disposición horizontal. Especificaciones e instalación según proveedor e incluye los elementos necesarios para su correcto funcionamiento. | D187: m2 | E187: 469.99 | F187: $89,600.46 | G187: =F187*E187 -> $42,111,320.20 | I187: 469.99 | K187: =J187*I187 -> $0.00
B188: 6.1.2.3 | C188: Suministro, transporte e instalación de recubrimiento de muro tipo domus RP16 , en melanina duratex referencia sagano vetta o similar, incluye estructura, herramientas, andamios, mano de obra y los materiales necesarios para su correcta instalación. | D188: m2 | E188: 805.51 | F188: $460,978.00 | G188: =F188*E188 -> $371,322,388.78 | I188: 805.51 | K188: =J188*I188 -> $0.00
C190: TOTAL DE ENCHAPES | G190: =SUM(G186:G188) -> $548,659,544.87 | K190: =SUM(K186:K188) -> $0.00
B192: 6.1.3 | C192: PINTURA
A193: ESP 6.1.3.1 | B193: 6.1.3.1 | C193: Aplicación de PINTURA A BASE DE AGUA EN MUROS, CON VINILO TIPO 1 de primera calidad sobre muros revocados y/o estucados, tres manos hasta obtener una superficie pareja y homogénea. Incluye suministro y transporte de los materiales, tapa poros en estuco plástico tipo plastiestuco o equivalente diluido en agua proporción 1:2, adecuación de la superficie a intervenir hasta obtener una superficie pareja y homogénea, color blanco. | D193: m2 | E193: 12,596.94 | F193: $21,244.28 | G193: =F193*E193 -> $267,612,920.50 | I193: 12,596.94 | K193: =J193*I193 -> $0.00
A194: ESP 6.1.3.3 | B194: 6.1.3.3 | C194: Aplicación de PINTURA EPOXICA de primera calidad sobre muros y/o cielos revocados y/o estucados, dos manos hasta obtener una superficie pareja y homogénea. Incluye catalizador, filos y dilataciones, suministro y transporte de los materiales, tapa poros en estuco plástico, adecuación de la superficie a intervenir hasta obtener una superficie pareja y homogénea, color blanco y todos los elementos necesarios para su correcta aplicación. | D194: m2 | E194: 1,234.04 | F194: $37,847.37 | G194: =F194*E194 -> $46,705,168.47 | I194: 1,234.04 | K194: =J194*I194 -> $0.00
A195: ESP 6.1.3.4 | B195: 6.1.3.4 | C195: Aplicación de PINTURA A BASE DE AGUA EN MUROS, CON VINILO color ocre o similar de primera calidad sobre muros revocados y/o estucados, tres manos hasta obtener una superficie pareja y homogénea. Incluye suministro y transporte de los materiales, tapa poros en estuco plástico tipo plastiestuco o equivalente diluido en agua proporción 1:2, adecuación de la superficie a intervenir hasta obtener una superficie pareja y homogénea. | D195: m2 | E195: 1,615.38 | F195: $20,573.70 | G195: =F195*E195 -> $33,234,343.51 | I195: 1,615.38 | K195: =J195*I195 -> $0.00
C197: TOTAL DE PINTURA | G197: =SUM(G193:G195) -> $347,552,432.48 | K197: =SUM(K193:K195) -> $0.00
B199: 6.1.4 | C199: REVOQUE
A200: ESP 6.1.4.1 | B200: 6.1.4.1 | C200: Colocación de REVOQUE con mortero 1:4 EN MUROS. Incluye suministro y transporte de los materiales, fajas, ranuras, filetes y todos los demás elementos necesarios para su correcta construcción. | D200: m2 | E200: 5,592.04 | F200: $30,742.63 | G200: =E200*F200 -> $171,914,006.48 | I200: 5,592.04 | K200: =I200*J200 -> $0.00
C202: TOTAL DE REVOQUE | G202: =G200 -> $171,914,006.48 | K202: =K200 -> $0.00
C204: TOTAL DE PINTURA/ESTUCO/ENCHAPE | G204: =SUM(G202+G197+G190+G183) -> $1,225,678,588.51 | K204: =SUM(K202+K197+K190+K183) -> $0.00
B206: 6.2.0 | C206: IMPERMEABILIZACIONES
A207: ESP 6.2.0.1 | B207: 6.2.0.1 | C207: Suministro e instalación de sistema impermeabilizante a base de membrana de PVC plastificado, tipo Sika Sarnafil S-327 12L, con espesor de 1.5 mm, reforzada con fibra de poliéster y alta reflectividad. Incluye preparación de superficie, colocación de geotextil, anclajes de fijación, láminas metálicas de terminación, adhesivos y todos los elementos necesarios para su correcto funcionamiento. | D207: m2 | E207: 2,272.84 | F207: $285,490.88 | G207: =E207*F207 -> $648,875,091.70 | I207: 2,272.84 | K207: =I207*J207 -> $0.00
A208: ESP 6.2.0.2 | B208: 6.2.0.2 | C208: Aplicación de impermeabilizante acrílico o epóxico en terrazas niveles 3 y 6 y zonas de duchas en baños interiores de primera calidad sobre morteros con pendientes, dos manos o las necesarias hasta obtener una superficie pareja y homogénea. Incluye catalizador, filos y dilataciones, suministro y transporte de los materiales, resanes, tapa poros y adecuación de la superficie a intervenir hasta obtener una superficie pareja y homogénea y todos los elementos necesarios para su correcta aplicación. | D208: m2 | E208: 971.55 | F208: $36,521.38 | G208: =E208*F208 -> $35,482,346.74 | I208: 971.55 | K208: =I208*J208 -> $0.00
A209: ESP 6.2.0.3 | B209: 6.2.0.3 | C209: Aplicación de membrana PVC para impermeabilización de tanque, incluye Instalación de perfilería perimetral con chazos, geotextil 1600., geomembrana PVC 1,2 mm., Construcción de emboquillados de bajantes, Emboquillado de incrustaciones, Aplicación de sello elástico perimetral para sellar perfil de anclaje y los materiales necesarios para su correcto funcionamiento. | D209: m2 | E209: 348.45 | F209: $116,900.00 | G209: =E209*F209 -> $40,733,805.00 | I209: 348.45 | K209: =I209*J209 -> $0.00
A210: ESP 6.2.0.4 | B210: 6.2.0.4 | C210: Construcción de MEDIA CAÑA EN MORTERO 1:4. Con un desarrollo 25 cm, para cubierta. Incluye suministro, transporte de los materiales, mano de obra de regata y todo lo necesario para su correcta construcción. Según diseño. | D210: m | E210: 302.96 | F210: $39,908.41 | G210: =E210*F210 -> $12,090,651.89 | I210: 302.96 | K210: =I210*J210 -> $0.00
A211: ESP 6.2.0.5 | B211: 6.2.0.5 | C211: Aplicación de Impermeabilizante para foso de ascensor y/o malacate con recubrimiento cementoso para la impermeabilización de estructuras (broncosil y broncoplug (compuesto hidráulico de fraguado rápido para sellar filtraciones de agua en concreto), incluye suministro, transporte e instalación y todos los elementos necesarios para su correcto funcionamiento. Para un área total de 17,28 m2 | D211: un | E211: 4.00 | F211: $782,326.56 | G211: =E211*F211 -> $3,129,306.24 | I211: 4.00 | K211: =I211*J211 -> $0.00
C213: TOTAL DE IMPERMEABILIZACIONES | G213: =SUM(G207:G211) -> $740,311,201.57 | K213: =SUM(K207:K211) -> $0.00
C215: TOTAL DE ACABADOS E IMPERMEABILIZACIONES | G215: =SUM(G213+G204) -> $1,965,989,790.08 | K215: =SUM(K213+K204) -> $0.00
B217: 7.0.0 | C217: PISOS
B219: 7.1.0 | C219: PISOS Y ZÓCALOS EN CERÁMICA Y PIEDRA
A220: ESP 7.1.1 | B220: 7.1.1 | C220: Colocación de Piso Porcelanato Rectificado Manet ARD® PRO Marfil Multitono 60x120, ref. 123542051, calidad corona o equivalente para baños. Incluye suministro y transporte de los materiales, adhesivo Pegantto Plus o equivalente, boquilla Juntta Puss gris o equivalente, juntas de dilatación elastoméricas tipo sikaflex o equivalente y todos los demás elementos necesarios para su correcta construcción y funcionamiento. | D220: m2 | E220: 570.67 | F220: $150,141.06 | G220: =E220*F220 -> $85,680,998.71 | I220: 570.67 | K220: =I220*J220 -> $0.00
A221: ESP 7.1.2 | B221: 7.1.2 | C221: Colocación de Piso en cerámica Vancouver hielo Ref. 607942221, formato 60 x 60 cm, modulación según detalle específico, calidad corona o equivalente. Incluye suministro y transporte de los materiales, adhesivo Pegantto Pluss o equivalente, boquilla Juntta Puss gris o equivalente, juntas de dilatación elastoméricas tipo sikaflex o equivalente y todos los demás elementos necesarios para su correcta construcción y funcionamiento. | D221: m2 | E221: 116.57 | F221: $92,774.51 | G221: $10,814,724.63 | I221: 116.57 | K221: $0.00
A222: ESP 7.1.3 | B222: 7.1.3 | C222: Suministro, transporte e instalación de Piso en piedra natural Royal dorado e=1,5 cm para tráfico pesado acabado cepillado, formato 30cm x junta perdida (variable). Espesor 1 cm + mortero de pega, nivelación y lechada. Pegante Pegacor Max con látex Ref. 901011501 corona o similar. Remate contra muros en arenón tipo royal dorado. Incluye transporte interno y los demás elementos necesarios para su correcto funcionamiento. | D222: m2 | E222: 398.92 | F222: $437,368.95 | G222: $174,475,221.53 | I222: 398.92 | K222: $0.00
A223: ESP 7.1.4 | B223: 7.1.4 | C223: Suministro, transporte e instalación de Piso en piedra natural Royal dorado e=2,0 cm para tráfico pesado acabado anticado, formato 30cm x junta perdida (variable). Espesor 1 cm + mortero de pega, nivelación y lechada. Pegante Pegacor Max con látex Ref. 901011501 corona o similar. Remate contra muros en arenón tipo royal dorado. El acabado de la piedra lo hace el instalador. Incluye transporte interno y los demás elementos necesarios para su correcto funcionamiento. | D223: m2 | E223: 107.73 | F223: $438,619.08 | G223: $47,252,433.49 | I223: 107.73 | K223: $0.00
A224: ESP 7.1.5 | B224: 7.1.5 | C224: Suministro transporte e instalación de zócalo en piedra royal acabado cepillado y anticado , junta perdida *10*1, e=1,5 cm, formato 30cm x junta perdida (variable). Espesor 1cm + pega y lechada. Pegante Pegacor Max con látex Ref. 901011501 corona o similar. Incluye transporte interno y los demás elementos necesarios para su correcto funcionamiento. | D224: m | E224: 247.70 | F224: $60,264.81 | G224: $14,927,593.44 | I224: 247.70 | K224: $0.00
A225: ESP 7.1.6 | B225: 7.1.6 | C225: Colocación de ZÓCALO EN PISO Manet ARD PRO formato .60x1.20 cm color marfil multitono Ref.123542051, de 10 cms, marca corona o equivalente mismo material del piso. Instalación y modulación según detalle específico. Incluye suministro y transporte de los materiales, cortes con máquina, pegante para cerámica tipo Pegacor o equivalente, lechada con Boquilla para cerámica y todo lo necesario para su correcta instalación y funcionamiento. | D225: m | E225: 69.40 | F225: $38,210.47 | G225: $2,651,806.62 | I225: 69.40 | K225: $0.00
A226: ESP 7.1.7 | B226: 7.1.7 | C226: Construcción de GUARDAESCOBA EN MEDIA CAÑA EN MORTERO CON IMPERMEABILIZANTE INTEGRAL 1:3 con Sika 1 o su equivalente. Con un desarrollo de 25 cm. Incluye suministro y transporte de los materiales, varilla de dilatación de 3 mm., superior e inferior y curvas de aluminio cada 1.80 m. o donde sea necesario y todo lo necesario para su correcta construcción. Según diseño. | D226: m | E226: 2,010.90 | F226: $50,315.30 | G226: $101,179,036.77 | I226: 2,010.90 | K226: $0.00
A227: ESP 7.1.8 | B227: 7.1.8 | C227: Construcción de vaciado zócalo 1/2 caña en grano. Incluye: lechada, grano, forma media caña en aluminio de 3 mm, varilla de dilatación plástica parte inferior y mano de obra en vaciado. Con un desarrollo ≤ 20 cm. Incluye: lechada y grano, pulido, destronque y repulido, brillo y diamantado y todos los demás elementos para su correcto funcionamiento. | D227: m | E227: 57.90 | F227: $60,370.95 | G227: $3,495,478.01 | I227: 57.90 | K227: $0.00
A228: ESP 7.1.9 | B228: 7.1.9 | C228: Suministro, transporte e instalación de ATRAPAMUGRE en Piedra royal bronce, acabado abujardado de 30cm x jp x 2 cm de espesor, incluye lechada, pegante, lavado y sellado y los elementos necesarios para su correcto funcionamiento. | D228: m | E228: 8.15 | F228: $198,539.98 | G228: $1,618,100.85 | I228: 8.15 | K228: $0.00
A229: ESP 7.1.10 | B229: 7.1.10 | C229: Suministro, transporte e instalación de ZOCALO EN MDF CHAPILLADO Y TINTILLADO, incluye varilla de 2.44 m, la herramienta menor (clavos, puntillas, pegamento, silicona) y todos los elementos necesarios para su correcto funcionamiento. | D229: m | E229: 288.70 | F229: $85,442.00 | G229: $24,667,105.40 | I229: 288.70 | K229: $0.00
B230: 7.1.11 | C230: Construcción de GUARDAESCOBA EN CONCRETO PIGMENTADO o su equivalente. Incluye suministro y transporte de los materiales, varilla de dilatación de 3 mm., superior e inferior y todo lo necesario para su correcta construcción. Según diseño. | D230: m | E230: 196.60 | F230: $38,921.47 | G230: $7,651,961.79 | I230: 196.60 | K230: $0.00
C232: TOTAL DE PISOS Y ZÓCALOS EN CERÁMICA Y PIEDRA | G232: =SUM(G220:G230) -> $474,414,461.23 | K232: =SUM(K220:K230) -> $0.00
B234: 7.2.0 | C234: PISOS VARIOS
A235: ESP 7.2.1 | B235: 7.2.1 | C235: Suministro y transporte de piso falso TIPO POLITI para interiores en acero de alta resistencia, revestido con pintura epóxica, Las placas en su parte inferior contienen 64 celdas. Módulo de 60x60 cm o similar. No incluye acabado (el acabado recomendado es alfombra o vinilo autoportante a partir de 4.5mm para permitir el registro, no tipo click). Resistencia: 2019,04 Kg/m2 de carga distribuida. Pedestales de Acero de altura regulables TIPOLOGÍA 1 - 600x600x30mm - 35MM C BOARD - STEEL FULL WRAPPED TYPE - FFH150MM - CROSS HEAD PEDESTAL HEAD AND BASE | D235: m2 | E235: 21.85 | F235: $314,227.73 | G235: =E235*F235 -> $6,865,875.90 | I235: 21.85 | K235: =I235*J235 -> $0.00
A236: ESP 7.2.2 | B236: 7.2.2 | C236: Instalación de piso falso TIPO POLITI para interiores en acero de alta resistencia revestido con pintura epóxica, las placas en su parte inferior contienen 64 celdas. Módulo de 60x60 cm o similar. | D236: m2 | E236: 21.85 | F236: $40,206.92 | G236: $878,521.20 | I236: 21.85 | K236: $0.00
A237: ESP 7.2.3 | B237: 7.2.3 | C237: Suministro y transporte de sistema de PISO DE TABLETA Triangular PREFABRICADA exterior, conjunto piso tableta triangular, referencia PRO3774, marca Cimbrados o equivalente y los elementos necesarios para su correcto funcionamiento | D237: m2 | E237: 566.85 | F237: $140,818.65 | G237: $79,823,051.75 | I237: 566.85 | K237: $0.00
A238: ESP 7.2.4 | B238: 7.2.4 | C238: Instalación de piso exterior PISO DE TABLETA TRIANGULAR PREFABRICADA flotante, incluye todos los elementos necesarios para su correcto funcionamiento | D238: m2 | E238: 969.19 | F238: $66,934.32 | G238: $64,872,073.60 | I238: 969.19 | K238: $0.00
A239: ESP 7.2.5 | B239: 7.2.5 | C239: Construcción de PISO EN MORTERO 1:5 de NIVELACIÓN, espesor de 0.05m. Incluye suministro y transporte de los materiales y todo lo necesario para su correcta construcción y funcionamiento. | D239: m2 | E239: 4,954.29 | F239: $32,011.30 | G239: $158,593,263.48 | I239: 4,954.29 | K239: $0.00
A240: ESP 7.2.6 | B240: 7.2.6 | C240: Suministro, transporte e instalación de piso DE VINILO Lvt Milliken, para tráfico comercial, medidas 15.24 CM X 121.92 CM, con espesor de 2,5 MM, el paquete trae 3.34 M2, cuenta con 15 años de garantía, acabado de poliuretano reforzado con silicona, suministra excelente resistencia a la mancha, a la abrasión y el rayado, incluye adhesivo y mastico, y los elementos necesarios para su correcta instalación. No incluye El subsuelo (mortero) debe estar duro, plano, seco, liso, limpio, regular, sin ondulaciones, libre de rastros de yeso, pintura, pegamentos, aceite o de sustancias grasas. | D240: m2 | E240: 755.71 | F240: $260,973.75 | G240: $197,220,472.61 | I240: 755.71 | K240: $0.00
A241: ESP 7.2.7 | B241: 7.2.7 | C241: Suministro e instalación de tableta táctil tallada en piedra royal beta espesor de 2 cm incluye mortero de pega, nivelación, lechada de asiento, junta y los elementos necesarios para su correcta instalación | D241: m | E241: 44.61 | F241: $497,038.22 | G241: $22,172,874.99 | I241: 44.61 | K241: $0.00
B242: 7.2.8 | C242: Suministro, transporte e instalación de piso en vinilo antiestático conductivo Ref. IQ Toro SC Tarket espesor 2,0mm formato rollo 2x23m. o equivalente. Piso vinílico homogéneo prensado permanentemente conductor de la electricidad estática., incluye adhesivo y mastico, y los elementos necesarios para su correcta instalación. No incluye El subsuelo (mortero) debe estar duro, plano, seco, liso, limpio, regular, sin ondulaciones, libre de rastros de yeso, pintura, pegamentos, aceite o de sustancias grasas. | D242: m2 | E242: 425.78 | F242: $378,301.80 | G242: =F242*E242 -> $161,073,340.40 | I242: 425.78 | K242: =I242*I242 -> $181,288.61
B243: 7.2.9 | C243: Suministro, transporte e instalación de piso DE VINILO Lvt Milliken, para tráfico comercial, medidas 15.24 CM X 121.92 CM, con espesor de 5,0 MM, el paquete trae 3.34 M2, cuenta con 15 años de garantía, acabado de poliuretano reforzado con silicona, suministra excelente resistencia a la mancha, a la abrasión y el rayado, incluye adhesivo y mastico, y los elementos necesarios para su correcta instalación. No incluye El subsuelo (mortero) debe estar duro, plano, seco, liso, limpio, regular, sin ondulaciones, libre de rastros de yeso, pintura, pegament | D243: m2 | E243: 1,407.89 | F243: $286,919.26 | G243: =F243*E243 -> $403,950,756.96 | I243: 1,407.89 | K243: =I243*I243 -> $1,982,154.25
B244: 7.2.10 | C244: Suministro, transporte e instalación de Rejilla de hierro ductil para piso en buitrones, material de alta resistencia. Dimensiones según especificaciones de planos con espesor de 1/8" antideslizante o similar y los materiales necesarios para su correcto funcionamiento | D244: m2 | E244: 120.63 | F244: $134,307.06 | G244: $16,201,460.14 | I244: 120.63 | K244: =I244*I244 -> $14,551.60
C246: TOTAL DE PISOS VARIOS | G246: =SUM(G235:G244) -> $1,111,651,691.05 | K246: =SUM(K235:K244) -> $2,177,994.46
B248: 7.3.0 | C248: PISOS EN CONCRETO
A249: ESP 7.3.1 | B249: 7.3.1 | C249: Suministro, transporte e instalación de sintética tipo twister en cuantía de 3 kg/m3, incluye lamina de aislamiento de polietileno negro cal 6 sencilla, vaciado por franjas o carriles de vaciado con conexión mecánica, dovelas de 12 mm en el eje neutro de la losa longitud 40 cm espaciadas cada 40 cm, refuerzo de malla electro soldada de 6 mm de espesor en tercio superior en las zonas irregulares cuyo factor de forma supere la modulación recomienda entre 2,75 y 3,25 mts paños aprox de 3x3, refuerzo las aristas vivas con acero de 12 mm, 3 barras a 45 grados acabado con endurecedor de quartzo 4 kg/m2 afinado liso poro cerrado con allanadoras mecánicas, corte y sello de juntas de construcción, contracción y aislamiento, el método de colocación de concreto será bombeado o asistido. validar diseño previamente por especialista de pisos mbing sas o similar. | D249: m2 | E249: 4,107.46 | F249: $172,067.50 | G249: =E249*F249 -> $706,760,373.55 | I249: 4,107.46 | K249: =I249*J249 -> $0.00
A250: ESP 7.3.2 | B250: 7.3.2 | C250: Suministro, transporte e instalación de piso en concreto de 7 cm de espesor mr 40 o 4000 psi, agregado nominal de 3/4" con pigmento de color ocre integral dentro de la mezcla de concreto (crema) contracción igual o menor a 0,06 al día 56 de vaciado con adición de fibra sintética tipo twister en cuantía de 2,2 kg/m3, incluye lamina de aislamiento de polietileno negro cal 6 sencilla, vaciado por franjas o carriles de vaciado con conexión mecánica dovelas de 9 mm en el eje neutro de la losa longitud 30 cm espaciadas cada 40 cm, refuerzo de malla electro soldada de 5 mm de espesor en tercio superior en las zonas irregulares cuyo factor de forma supere la modulación recomienda entre 1,75 y 2,25 mts paños aprox de 2x2, refuerzo de las aristas vivas con acero de 9 mm 3 barras a 45 grados acabado con endurecedor de quartzo ocre o crema 8 kg/m2 afinado liso poro cerrado acabado con aspas de teflón con allanadoras mecánicas, corte y sello de juntas de construcción, contracción y aislamiento, el método de colocación de concreto será bombeado o asistido, se debe realizar validación de diseño previamente por especialista de pisos mbing sas o similar. | D250: m2 | E250: 1,381.75 | F250: $238,329.13 | G250: =E250*F250 -> $329,311,275.38 | I250: 1,381.75 | K250: =I250*J250 -> $0.00
A251: ESP 7.3.3 | B251: 7.3.3 | C251: Suministro, transporte e instalación de piso en concreto de 7 cm de espesor mr 40 o 4000 psi, agregado nominal de 3/4" contracción igual o menor a 0,06 al día 56 de vaciado con adición de fibra sintética tipo twister en cuantía de 2,2 kg/m3, incluye lamina de aislamiento de polietileno negro cal 6 sencilla, vaciado por franjas o carriles de vaciado con conexión mecánica dovelas de 9 mm en el eje neutro de la losa longitud 30 cm espaciadas cada 40 cm, refuerzo de malla electro soldada de 5 mm de espesor en tercio superior en las zonas irregulares cuyo factor de forma supere la modulación recomienda entre 1,75 y 2,25 mts paños aprox de 2x2, se debe reforzar las aristas vivas con acero de 9 mm 3 barras a 45 grados acabado con endurecedor de quartzo gris claro 7 kg/m2 afinado liso poro cerrado acabado con aspas de teflón con allanadoras mecánicas, corte y sello de juntas de construcción, contracción y aislamiento, el método de colocación de concreto será bombeado o asistido se debe realizar validación de diseño previamente por especialista de pisos mbing sas o similar. | D251: m2 | E251: 1,112.59 | F251: $203,477.64 | G251: =E251*F251 -> $226,387,187.49 | I251: 1,112.59 | K251: =I251*J251 -> $0.00
C253: TOTAL DE PISOS EN CONCRETO | G253: =SUM(G249:G251) -> $1,262,458,836.42 | K253: =SUM(K249:K251) -> $0.00
C255: TOTAL DE PISOS | G255: =SUM(G253+G246+G232) -> $2,848,524,988.69 | K255: =SUM(K253+K246+K232) -> $2,177,994.46
B257: 8.0.0 | C257: APARATOS/GRIFERÍA/MUEBLES/MESONES
B259: 8.1.0 | C259: APARATOS SANITARIOS
A260: ESP 8.1.1 | B260: 8.1.1 | C260: Suministro, transporte y colocación de Combo manantial pro redondo botón con pedestal blanco ref. O26751001 o equivalente, contiene sanitario manantial pro con capacidad de evacuación de 400 gr con un consumo de 4.8 litros, lavamanos manantial con pedestal elaborado en porcelana, grifería nogal con llave individual y Kit de accesorios cromados valencia de 4 piezas (jabonera, percha, portarrollo y toallero argolla) y todos los elementos necesarios para su correcto funcionamiento. | D260: un | E260: 1.00 | F260: $779,622.23 | G260: =E260*F260 -> $779,622.23 | I260: 1.00 | K260: =I260*J260 -> $0.00
A261: ESP 8.1.2 | B261: 8.1.2 | C261: Suministro, transporte e instalación de Kit Taza Adriática Plus Entrada Posterior con válvula Dúplex Pro ref. CO6821001 o equivalente, esta taza cuenta con descarga por sistema jet, con capacidad de evacuación de 1000 grs. de sólidos y sifón 100 % esmaltado, válvula Dúplex Pro electrónica para sanitario con sensor infrarrojo, con herrajes reforzados, mayor grosor y ancho del aro y todos los elementos necesarios para su correcta instalación. | D261: un | E261: 14.00 | F261: $2,122,675.13 | G261: =E261*F261 -> $29,717,451.82 | I261: 14.00 | K261: =I261*J261 -> $0.00
A262: ESP 8.1.3 | B262: 8.1.3 | C262: Suministro, transporte e instalación de Taza Báltica Plus Entrada Posterior ref. CO6801001 o equivalente, esta taza cuenta con descarga por sistema jet, con capacidad de evacuación de 1000 grs. de sólidos y sifón 100 % esmaltado, válvula Dúplex Pro electrónica para sanitario con sensor infrarrojo, con herrajes reforzados, mayor grosor y ancho del aro y los demás elementos necesarios para su correcto funcionamiento. | D262: un | E262: 27.00 | F262: $1,974,044.13 | G262: =E262*F262 -> $53,299,191.51 | I262: 27.00 | K262: =I262*J262 -> $0.00
A263: ESP 8.1.4 | B263: 8.1.4 | C263: Suministro, transporte e instalación de Kit Orinal Gotta Entrada Posterior con válvula Dúplex Pro ref. CO6841001 o equivalente, tiene un diseño moderno con sifón oculto integrado en la porcelana, válvula dúplex pro electrónica para orinal con sensor infrarrojo y todos los elementos necesarios para su correcto funcionamiento. | D263: un | E263: 8.00 | F263: $1,890,055.63 | G263: =E263*F263 -> $15,120,445.04 | I263: 8.00 | K263: =I263*J263 -> $0.00
A264: ESP 8.1.5 | B264: 8.1.5 | C264: Suministro, transporte e instalación de Sanitario Ultra Ahorrador Powermax blanco ref O20801001 o equivalente, máxima potencia y máximo ahorro en cada descarga capacidad de evacuación de sólidos de 1000 gramos consumo de agua de 3.8 litros y todos los elementos necesarios para su correcto funcionamiento. | D264: un | E264: 5.00 | F264: $1,596,103.13 | G264: =E264*F264 -> $7,980,515.65 | I264: 5.00 | K264: =I264*J264 -> $0.00
C266: TOTAL DE APARATOS SANITARIOS | G266: =SUM(G260:G264) -> $106,897,226.25 | K266: =SUM(K260:K264) -> $0.00
B268: 8.2.0 | C268: MESÓN - LAVAMANOS
A269: ESP 8.2.1 | B269: 8.2.1 | C269: Suministro, transporte y colocación de lavamanos de sobreponer Lavamanos Free institucional ref OO3891001 o equivalente, color blanco, cerámico esmaltado. Incluye sifón botella, abasto, emboquillado con silicona antihongos, brazos de fijación para drywall ref. 718040001 marca corona o similar y todos los demás elementos necesarios para su correcta instalación y funcionamiento. Este producto no incluye el Semipedestal Free y grifería. | D269: un | E269: 14.00 | F269: $654,552.07 | G269: =E269*F269 -> $9,163,728.98 | I269: 14.00 | K269: =I269*J269 -> $0.00
A270: ESP 8.2.2 | B270: 8.2.2 | C270: Suministro, transporte y colocación de Lavamanos con mesón extruidos de una sola pieza conformado en Corian color blanco glaciar o similar de 12 mm grosor de 600 mm x 2300 mm, incluye perforación de griferías y los elementos necesarios para su correcto funcionamiento. No incluye accesorios, trabajos de obra civil, eléctricos, gas, ni transporte vertical a partir del 3er piso. | D270: un | E270: 2.00 | F270: $8,466,018.00 | G270: =E270*F270 -> $16,932,036.00 | I270: 2.00 | K270: =I270*J270 -> $0.00
A271: ESP 8.2.3 | B271: 8.2.3 | C271: Suministro, transporte y colocación de Lavamanos con mesón extruidos de una sola pieza conformado en Corian color blanco glaciar o similar de 12 mm grosor de 600 mm x 2500 mm, incluye perforación de griferías y los elementos necesarios para su correcto funcionamiento. No incluye accesorios, trabajos de obra civil, eléctricos, gas, ni transporte vertical a partir del 3er piso. | D271: un | E271: 12.00 | F271: $9,175,910.00 | G271: =E271*F271 -> $110,110,920.00 | I271: 12.00 | K271: =I271*J271 -> $0.00
A272: ESP 8.2.4 | B272: 8.2.4 | C272: Suministro, transporte y colocación de Lavamanos con mesón extruidos de una sola pieza conformado en Corian color blanco glaciar o similar de 12 mm grosor de 600 mm x 1100 mm, incluye perforación de griferías y los elementos necesarios para su correcto funcionamiento. No incluye accesorios, trabajos de obra civil, eléctricos, gas, ni transporte vertical a partir del 3er piso. | D272: un | E272: 8.00 | F272: $4,587,466.00 | G272: =E272*F272 -> $36,699,728.00 | I272: 8.00 | K272: =I272*J272 -> $0.00
C274: TOTAL DE MESÓN - LAVAMANOS | G274: =SUM(G269:G272) -> $172,906,412.98 | K274: =SUM(K269:K272) -> $0.00
B276: 8.3.0 | C276: INCRUSTACIONES/ACCESORIOS
A277: ESP 8.3.1 | B277: 8.3.1 | C277: Suministro, transporte y colocación de DISPENSADOR JABON expuesto, de accionamiento tipo push ref. 706520001, marca corona o equivalente, con capacidad para un litro de jabón y los demás elementos necesarios para su correcto funcionamiento. | D277: un | E277: 32.00 | F277: $509,278.29 | G277: =E277*F277 -> $16,296,905.28 | I277: 32.00 | K277: =I277*J277 -> $0.00
A278: ESP 8.3.2 | B278: 8.3.2 | C278: Suministro, transporte y colocación de papelera metálica ref 706630001 tipo Corona o equivalente. Incluye pegacor y todos los demás elementos necesarios para su correcta instalación. | D278: un | E278: 53.00 | F278: $622,464.55 | G278: $32,990,621.15 | I278: 53.00 | K278: $0.00
A279: ESP 8.3.3 | B279: 8.3.3 | C279: Suministro, transporte y colocación de dispensador de papel higiénico ref 706670001 o equivalente, elaborado en acero inoxidable que evita la corrosión, pelado y decoloración por agua, incluye ranura para conocer la cantidad de papel restante y todos los elementos necesarios para su correcta instalación. Ideal para espacios públicos de alto tráfico. | D279: un | E279: 57.00 | F279: $432,663.55 | G279: $24,661,822.35 | I279: 57.00 | K279: $0.00
A280: ESP 8.3.4 | B280: 8.3.4 | C280: Suministro, transporte e instalación de Secador de manos potenza, en acero inoxidable, tipo turbo con sistema de sensor para uso de manos libres ref.706650001 o equivalente. Diseñado para anclaje a muro con restricciones de seguridad para proteger su instalación y vandalismos leves. Potencia 1800 w, contiene el secador y todos los elementos necesarios para su correcta instalación. | D280: un | E280: 42.00 | F280: $1,360,511.55 | G280: $57,141,485.10 | I280: 42.00 | K280: $0.00
A281: ESP 8.3.5 | B281: 8.3.5 | C281: Suministro, transporte y colocación de barra de seguridad para discapacitados ref. 706560001 marca corono o equivalente, de 24" en acero inoxidable. Incluye pernos para anclaje, escudos en acero inoxidable y todos los elementos necesarios para su correcta instalación y funcionamiento, según diseño. | D281: un | E281: 12.00 | F281: $248,556.43 | G281: $2,982,677.16 | I281: 12.00 | K281: $0.00
A282: ESP 8.3.6 | B282: 8.3.6 | C282: Suministro, transporte y colocación de barra de seguridad para discapacitados ref. 706570001 marca corono o equivalente, de 30" en acero inoxidable. Incluye pernos para anclaje, escudos en acero inoxidable y todos los elementos necesarios para su correcta instalación y funcionamiento, según diseño. | D282: un | E282: 12.00 | F282: $305,264.43 | G282: $3,663,173.16 | I282: 12.00 | K282: $0.00
A283: ESP 8.3.7 | B283: 8.3.7 | C283: Suministro, transporte y colocación de Brazos Soporte Lavamanos Drywall ref. 718040001 o equivalente y los elementos necesarios para su correcta instalación. | D283: un | E283: 12.00 | F283: $837,264.43 | G283: $10,047,173.16 | I283: 12.00 | K283: $0.00
A284: ESP 8.3.8 | B284: 8.3.8 | C284: Suministro, transporte y colocación de dispensador de toallas de manos en acero inoxidable Ref 706150001 Corona o equivalente, con sistema anti vandálico con llave, incluye juegos para mantenimiento, ranura para conocer la cantidad de toallas restantes para abastecimiento y los elementos necesarios para su correcto funcionamiento. | D284: un | E284: 32.00 | F284: $591,149.55 | G284: $18,916,785.60 | I284: 32.00 | K284: $0.00
C286: TOTAL DE INCRUSTACIONES/ACCESORIOS | G286: =SUM(G277:G284) -> $166,700,642.96 | K286: =SUM(K277:K284) -> $0.00
... 1301 more rows

Sheet COMPONENTE 1 - OBRA PROYECTADO
B8: ANEXO NO 19 PRECIOS Y CANTIDADES
A11: Especificaciones | B11: EDT | C11: Descripción | D11: Unidad | E11: Cantidad | F11: Costo unitario | G11: Total | I11: Cantidad | J11: Costo unitario | K11: Total | M11: Cumple | N11: No Cumple
B13: 13.1.0 | C13: SISTEMA FOTOVOLTAICO - PANELES SOLARES
A14: ESP 13.1.1 | B14: 13.1.1 | C14: Suministro transporte e instalación de sistema solar fotovoltaico a todo costo, incluye paneles solares JA SOLAR 570Wp o equivalentes, Inversor GROWATT MAC 70KTL3-X MV,Cable solar, conectores MC4 -- [pares], perfiles reguladores Alurack 4,2 m, tornillos galvanizados autoperforantes 2",ganchos, arandelasy tuercas, MCLAMS ALURACK, uniones ALURACK, bronco y tela, caja metálica 12x12, caja plástica 15x15, E CLAMPS, L alurack, herraje de paso 15x15, tubería coraza 2", tubería IMC 2", Tuercas y contratuercas 2" con polo a tierra, tubería PVC 2", curva PVC 2", tubería EMT 2", Curva PVC 2", tubería EMT 3 1/2", curva emt 3 1/2", jumpers (20cm x 40 uni), cableado # 1/0 AWG Cu THHN/THWN-2, # 4/0 AWG Cu THHN/THWN-2, #6 DESNUDO Cu THHN/THWN-2, #2 DESNUDO Cu THHN/THWN-2, varilla de cooperwell, conector tipo tornillo, grapa tornillo partido, conector en C #1/0, tablero AC 12 ctos, cemento, arena, grava, prensa stopa PG-29, breaker 3X125A Caja Moleada, riel omega, caja bornera AC 160A, espuma sikaboom,barraje para neutro, barraje de cobre para totalizador, barraje para tierra,cinta negra y autofunente, tapones plástico cuadrados, tapones plásticos reguladores, conectores de resortes rojos, conectores de resortes azules, cintas de colores, cabeza lenteja media pulgada autoperforante 2", grava doble ala de 2", cinta badit y hebillas, cubre filo, percha y yoyo, pega loca, conector curvo de coraza 2", conectores OB1010 y todos los elementos necesario para su correcto funcionamiento. incluye aprobación por EPM. TRM $4298.31 COP (24-04-25), fuente: https://www.dolar-colombia.com/mes/2025-04 | D14: un | E14: 1 | F14: $436,122,663.16 | G14: =F14*E14 -> $436,122,663.16 | I14: 1 | K14: =J14*I14 -> $0.00
C16: TOTAL DE SISTEMA FOTOVOLTAICO - PANELES SOLARES | G16: =G14 -> $436,122,663.16 | K16: =K14 -> $0.00
B18: 11.1.2 | C18: CIELOS
A19: ESP 11.1.2.1 | B19: 11.1.2.1 | C19: Suministro, transporte e instalación de CIELO FALSO EN PLACA DE FIBROCEMENTO (SUPERBOARD) 8mm. Incluye suministro, transporte e instalación de placa de fibrocemento de 8mm, masilla, tornillos, perfiles para estructura de soporte, pintura epóxica color blanco puro RAL 90-10 + dilatación perimetral de 1 cm., accesorios, estuco plástico, pintura tres manos o las necesarias hasta obtener una superficie pareja, homogénea y todos los elementos necesarios para su correcta instalación. | D19: m2 | E19: 520.32 | F19: $176,005.68 | G19: =F19*E19 -> $91,579,275.42 | I19: 520.32 | K19: =J19*I19 -> $0.00
A20: ESP 11.1.2.2 | B20: 11.1.2.2 | C20: Suministro, transporte e instalación de CIELO FALSO EN PANEL YESO (DRYWALL) 1/2". Incluye suministro, transporte e instalación de lámina en panel yeso de 1/2", masilla, tornillos, perfiles para estructura de soporte, instalación con dilatación perimetral en perfil de 1cm., accesorios, estuco plástico, pintura vinilo tipo 2 tres manos o las necesarias hasta obtener una superficie pareja, homogénea, color a definir según aprobación de la entidad o interventoría y todos los elementos necesarios para su correcta instalación. | D20: m2 | E20: 543.42 | F20: $91,450.08 | G20: $49,695,802.47 | I20: 543.42 | K20: $0.00
A21: ESP 11.1.2.3 | B21: 11.1.2.3 | C21: Suministro, transporte e instalación de Acabado en cielos en Acobarda Pete, marca Acobarda Pete de 12 mm de espesor o similar en cielos descolgado por medio de guaya de acero. Densidad del Acobarda: 191,6 kg/m3, incluye disposición de la lámina de acuerdo a diseño, lamina cortada a medida, corte sencillo, tonalidad: acorde a disponibilidad en catálogo, instalación: descolgado de cielos con guaya hasta 1m de altura, M.O (mano de obra) Altura de instalación: 3 metros de altura y los materiales necesarios para su correcto funcionamiento. | D21: m2 | E21: 150.45 | F21: $476,039.00 | G21: $71,620,067.55 | I21: 150.45 | K21: $0.00
A22: ESP 11.1.2.4 | B22: 11.1.2.4 | C22: suministro, transporte e instalación de Cielo lineal en perfiles Baffle 100 x 25 cm Ref. de Hunter DougloOas nacional o equivalente. Separación porta panel cada 10cm + perfil en C de sustentación + cuelga para soporte de panel. Color gris acero 6943 brillo 15%. y los elementos necesarios para su correcto funcionamiento. | D22: m2 | E22: 649.19 | F22: $485,502.15 | G22: $315,183,140.76 | I22: 649.19 | K22: $0.00
A23: ESP 11.1.2.5 | B23: 11.1.2.5 | C23: Suministro, transporte e instalación (remates y anclajes) de Cielo en malla expandida de aluzinc Metal Screen de Hunter DougloOas o equivalente, terminación no aplicada. Cielo lineal en perfiles Baffle 100 x 25 cm Ref. de Hunter DougloOas nacional o equivalente. Separación porta panel cada 10cm + perfil en C de sustentación + cuelga para soporte de panel. Color gris acero 6943 brillo 15%. Color según diseño y los elementos necesarios para su correcto funcionamiento. | D23: m2 | E23: 1,426.89 | F23: $413,173.88 | G23: $589,553,677.63 | I23: 1,426.89 | K23: $0.00
A24: ESP 11.1.2.6 | B24: 11.1.2.6 | C24: Suministro, transporte e instalación de Cielo en Drywall cleaneo akustik Kauf circular aleatoria plus de alta absorción acústica. Placa de yeso 12,5 mm, marfil visible, velo blanco de fibra acústica, oculta instalaciones y los elementos necesarios para su correcto funcionamiento. | D24: m2 | E24: 55.44 | F24: $440,325.68 | G24: $24,413,262.70 | I24: 55.44 | K24: $0.00
A25: ESP 11.1.2.7 | B25: 11.1.2.7 | C25: Suministro, transporte e instalación DE Cielo Tubrise en aluzinc 4 mm montaje vertical Ref. de Hunter DougloOas o equivalente. Color según diseño. Tubrise vertical longitud 60 cms con terminación perforada. Perforaciones #118 diámetro 200 15% abierto. Sistema de montaje con parrilla de sujeción en malla 100x100 + clip de sujeción en acero inoxidable + escuadra + perno en u en acero galvanizado Separación entre tubos metálicos 60cm.y los elementos necesarios para su correcto funcionamiento. | D25: m2 | E25: 121.80 | F25: $1,042,265.18 | G25: $126,947,898.92 | I25: 121.80 | K25: $0.00
A26: ESP 11.1.2.8 | B26: 11.1.2.8 | C26: Suministro, transporte e instalación de Cielo en paneles de fieltro lineales HeartFelt Ref. de Hunter DougloOas o equivalente. Paneles de sección rectangular 40mmx55mm instalados sobre porta panel paso 100 + cuelga rígida. Modulación cada 100mm. Colores crema 7575, marrón claro 7576, marrón medio 7577. y los elementos necesarios para su correcto funcionamiento. | D26: m2 | E26: 184.85 | F26: $878,685.68 | G26: $162,425,047.95 | I26: 184.85 | K26: $0.00
A27: ESP 11.1.2.9 | B27: 11.1.2.9 | C27: Suministro, transporte e instalación de panel Ecophon Solo Matrix descolgado en 30% del espacio. Y los elementos necesarios para su correcto funcionamiento. | D27: m2 | E27: 2,214.54 | F27: $353,090.68 | G27: $781,933,434.49 | I27: 2,214.54 | K27: $0.00
C28: TOTAL DE CIELOS | G28: =SUM(G19:G27) -> $2,213,351,607.90 | K28: =SUM(K19:K27) -> $0.00
B30: 14.1.8 | C30: SEÑALÉTICA
A31: ESP 14.1.8.1 | B31: 14.1.8.1 | C31: Suministro y transporte de Señal Direccional Descolgada Base en alucobond troquelada con vinilo impreso, icono en realce con gancho para sujetar a techo doble cara. | D31: un | E31: 38.00 | F31: $2,380,000.00 | G31: =F31*E31 -> $90,440,000.00 | I31: 38.00 | K31: =J31*I31 -> $0.00
A32: ESP 14.1.8.2 | B32: 14.1.8.2 | C32: Suministro y transporte de Direccional - Descolgada TIPO B Base en alucobond troquelada con vinilo impreso, icono en realce con gancho para sujetar a techo doble cara y todos los accesorios para su correcto funcionamiento | D32: un | E32: 2.00 | F32: $2,380,000.00 | G32: $4,760,000.00 | I32: 2.00 | K32: $0.00
A33: ESP 14.1.8.3 | B33: 14.1.8.3 | C33: Suministro y transporte de Direccional - Descolgada TIPO C Base en alucobond troquelada con vinilo impreso, icono en realce con gancho para sujetar a techo doble cara y todos los accesorios para su correcto funcionamiento | D33: un | E33: 2.00 | F33: $2,380,000.00 | G33: $4,760,000.00 | I33: 2.00 | K33: $0.00
A34: ESP 14.1.8.4 | B34: 14.1.8.4 | C34: Suministro y transporte de Direccional - Fija / Puntual. Base en alucobond troquelada con plotter de corte, fijada a pared con tornillos y todos los accesorios para su correcto funcionamiento. | D34: un | E34: 4.00 | F34: $371,280.00 | G34: $1,485,120.00 | I34: 4.00 | K34: $0.00
A35: ESP 14.1.8.5 | B35: 14.1.8.5 | C35: Suministro y transporte de Direccional - Marcación muro de Número en alucobond troquelado impreso + textos en vinilo de corte para fijar a pared lisa y todos los accesorios para su correcto funcionamiento. | D35: un | E35: 43.00 | F35: $1,043,538.40 | G35: $44,872,151.20 | I35: 43.00 | K35: $0.00
A36: ESP 14.1.8.6 | B36: 14.1.8.6 | C36: Suministro y transporte Direccional - Marcación piso Pintura Epóxica para marcación de pisos (tamaño y cantidad aproximado)y todos los accesorios necesarios para su correcto funcionamiento. | D36: un | E36: 223.00 | F36: $4,119,230.00 | G36: $918,588,290.00 | I36: 223.00 | K36: $0.00
A37: ESP 14.1.8.7 | B37: 14.1.8.7 | C37: Suministro y transporte de Emergencia - Fija / Puntual TIPO C Base en alucobond troquelada con plotter de corte, fijada a pared con tornillos y todos los accesorios necesarios para su correcto funcionamiento | D37: un | E37: 15.00 | F37: $103,743.00 | G37: $1,556,145.00 | I37: 15.00 | K37: $0.00
A38: ESP 14.1.8.8 | B38: 14.1.8.8 | C38: Suministro y transporte de señal Indicativa - Descolgada Base en alucobond troquelada con vinilo impreso, icono en realce con gancho para sujetar a techo doble cara y todos los accesorios para su correcto funcionamiento | D38: un | E38: 18.00 | F38: $2,380,000.00 | G38: $42,840,000.00 | I38: 18.00 | K38: $0.00
A39: ESP 14.1.8.9 | B39: 14.1.8.9 | C39: Suministro y transporte de señal Indicativa - Fija / Puntual Base en alucobond troquelada con plotter de corte, fijada a pared con tornillos y todos los accesorios para su correcto funcionamiento | D39: un | E39: 272.00 | F39: $68,654.00 | G39: $18,673,888.00 | I39: 272.00 | K39: $0.00
A40: ESP 14.1.8.10 | B40: 14.1.8.10 | C40: Suministro y transporte de señal de Indicativa - Fija / Puntual TIPO B Base en alucobond troquelada con plotter de corte, fijada a pared con tornillos y todos los accesorios para su correcto funcionamiento | D40: un | E40: 1.00 | F40: $159,122.00 | G40: $159,122.00 | I40: 1.00 | K40: $0.00
A41: ESP 14.1.8.11 | B41: 14.1.8.11 | C41: Suministro y transporte de señal Indicativa - Fija / Puntual TIPO D Base en alucobond troquelada con plotter de corte, fijada a pared con tornillos y todos los accesorios para su correcto funcionamiento. | D41: un | E41: 5.00 | F41: $68,654.00 | G41: $343,270.00 | I41: 5.00 | K41: $0.00
A42: ESP 14.1.8.12 | B42: 14.1.8.12 | C42: Suministro y transporte de señal Indicativa - Marcación muro Número en alucobond troquelado impreso + textos en vinilo de corte para fijar a pared lisa - 1 SOLO DÍGITO y todos los accesorios para su correcto funcionamiento. | D42: un | E42: 7.00 | F42: $505,750.00 | G42: $3,540,250.00 | I42: 7.00 | K42: $0.00
A43: ESP 14.1.8.13 | B43: 14.1.8.13 | C43: Suministro y transporte Informativa - Descolgada, Base en alucobond troquelada con vinilo impreso, icono en realce con gancho para sujetar a techo doble cara y todos los accesorios para su correcto funcionamiento | D43: un | E43: 6.00 | F43: $2,380,000.00 | G43: $14,280,000.00 | I43: 6.00 | K43: $0.00
A44: ESP 14.1.8.14 | B44: 14.1.8.14 | C44: Suministro y transporte Informativa - Fija / Puntual, Base en alucobond troquelada con plotter de corte, fijada a pared con tornillos y todos los elementos para su correcto funcionamiento | D44: un | E44: 3.00 | F44: $68,654.00 | G44: $205,962.00 | I44: 3.00 | K44: $0.00
A45: ESP 14.1.8.15 | B45: 14.1.8.15 | C45: Suministro y transporte de Direccional - Marcación muro de Número en alucobond troquelado impreso + textos en vinilo de corte para fijar a pared lisa y todos los accesorios para su correcto funcionamiento. | D45: un | E45: 7.00 | F45: $1,011,500.00 | G45: $7,080,500.00 | I45: 7.00 | K45: $0.00
A46: ESP 14.1.8.16 | B46: 14.1.8.16 | C46: suministro y transporte de señal de Regulación / preventiva - Fija / Puntual Base en alucobond troquelada con plotter de corte, fijada a pared con tornillos y todos los accesorios para su correcto funcionamiento | D46: un | E46: 39.00 | F46: $103,743.00 | G46: $4,045,977.00 | I46: 39.00 | K46: $0.00
A47: ESP 14.1.8.17 | B47: 14.1.8.17 | C47: Suministro y transporte de señal Regulación / preventiva - Fija / Puntual TIPO C Base en alucobond troquelada con plotter de corte, fijada a pared con tornillos y todos los accesorios para su correcto funcionamiento | D47: un | E47: 2.00 | F47: $68,654.00 | G47: $137,308.00 | I47: 2.00 | K47: $0.00
A48: ESP 14.1.8.18 | B48: 14.1.8.18 | C48: Instalación del proyecto / 464 señales y 223 marcación de pisos / horario diurno / No incluye SISO | D48: un | E48: 687.00 | F48: $29,230.00 | G48: $20,081,010.00 | I48: 687.00 | K48: $0.00
C50: TOTAL DE SEÑALÉTICA | G50: =SUM(G31:G48) -> $1,177,848,993.20 | K50: =SUM(K31:K48) -> $0.00
B52: 21.0.0 | C52: MOBILIARIO
B54: 21.1.0 | C54: MOBILIARIO N1
A55: ESP 21.1.0 | B55: 21.1.1 | C55: Suministro y transporte de Módulo operativo de 1.20 X 0.60 m para un usuario, hecho a base de estructura metálica con superficie recta recortada y cantos termofusionados con groumets, acabados en melamina blanca de 28mm, incluye pasacables interno (charola horizontal) con 6 espacios para instalaciones y charola (vertical) lateral para subir, ocultar instalaciones y charola para cables, accesorios porta CPU, porta monitor doble. | D55: Pza. | E55: 7.00 | F55: $2,474,653.10 | G55: =F55*E55 -> $17,322,571.70 | I55: 7.00 | K55: =J55*I55 -> $0.00
A56: ESP 21.1.0 | B56: 21.1.2 | C56: Suministro y transporte de Módulo operativo con credenza lateral 2.00 x 1.50 hecho a base de estructura metálica con superficie recta recortada y cantos termofusionados. Acabados en melamina blanca de 28 mm. Incluye pasacables interno (charola horizontal) con 6 espacios para instalaciones , groumets y charola (vertical) lateral para subir y ocultar instalaciones. | D56: Pza. | E56: 1.00 | F56: $3,087,003.50 | G56: =F56*E56 -> $3,087,003.50 | I56: 1.00 | K56: =J56*I56 -> $0.00
A57: ESP 21.1.0 | B57: 21.1.3 | C57: Suministro y transporte de Módulo operativo con credenza lateral 1.60 x 1.50 hecho a base de estructura metálica con superficie recta recortada y cantos termofusionados. Acabados en melamina blanca de 28 mm. Incluye pasacables interno (charola horizontal) con 6 espacios para instalaciones , groumets y charola (vertical) lateral para subir y ocultar instalaciones. | D57: Pza. | E57: 4.00 | F57: $5,088,190.00 | G57: =F57*E57 -> $20,352,760.00 | I57: 4.00 | K57: =J57*I57 -> $0.00
A58: ESP 21.1.0 | B58: 21.1.4 | C58: Suministro y transporte de Módulo operativo de 1.70 X 0.60 m para un usuario, hecho a base de estructura metálica con superficie recta recortada y cantos termofusionados con groumets, acabados en melamina blanca de 28mm,incluye pasacables interno (charola horizontal) con 6 espacios para instalaciones, charola (vertical) lateral para subir, ocultar instalaciones y charola para cables, accesorios porta CPU, porta monitor doblen. | D58: Pza. | E58: 4.00 | F58: $3,535,219.00 | G58: =F58*E58 -> $14,140,876.00 | I58: 4.00 | K58: =J58*I58 -> $0.00
A59: ESP 21.1.0 | B59: 21.1.5 | C59: Suministro y transporte de Módulo operativo de 1.90 X 0.70 m para un usuario, hecho a base de estructura metálica con superficie recta recortada y cantos termofusionados con groumets, acabados en melamina blanca de 28mm, incluye pasacables interno (charola horizontal) con 6 espacios para instalaciones, charola (vertical) lateral para subir, ocultar instalaciones y charola para cables, accesorios porta CPU, porta monitor doble. | D59: Pza. | E59: 1.00 | F59: $3,415,274.00 | G59: =F59*E59 -> $3,415,274.00 | I59: 1.00 | K59: =J59*I59 -> $0.00
C61: TOTAL DE MOBILIARIO N1 | G61: =SUM(G55:G59) -> $58,318,485.20 | K61: =SUM(K55:K59) -> $0.00
B64: 21.4.0 | C64: MOBILIARIO N5
A65: ESP 21.4.0 | B65: 21.4.1 | C65: Módulo operativo de 1.40 X 0.70 m para un usuario, hecho a base de estructura metálica con superficie recta recortada y cantos termofusionados con groumets, acabados en melamina blanca de 28mm Incluye pasacables interno (charola horizontal) con 6 espacios para instalaciones, charola (vertical) lateral para subir, ocultar instalaciones y charola para cables, accesorios porta CPU, porta monitor doble. | D65: Pza. | E65: 50.00 | F65: $1,805,487.00 | G65: =F65*E65 -> $90,274,350.00 | I65: 50.00 | K65: =J65*I65 -> $0.00
A66: ESP 21.4.0 | B66: 21.4.2 | C66: Módulo operativo de 1.90 X 0.70 m para un usuario, hecho a base de estructura metálica con superficie recta recortada y cantos termofusionados con groumets, acabados en melamina blanca de 28mm, incluye pasacables interno (charola horizontal) con 6 espacios para instalaciones y charola (vertical) lateral para subir, ocultar instalaciones y charola para cables, accesorios porta CPU, porta monitor doble. | D66: Pza. | E66: 8.00 | F66: $3,415,274.00 | G66: $27,322,192.00 | I66: 8.00 | K66: $0.00
A67: ESP 21.4.0 | B67: 21.4.3 | C67: Escritorio Ejecutivo con credenza lateral 1.35 x 1.50 hecho a base de estructura metálica con superficie recta recortada y cantos termofusionados. Acabados en melamina blanca de 28 mm. Incluye pasacables interno (charola horizontal) con 6 espacios para instalaciones , groumets y charola (vertical) lateral para subir y ocultar instalaciones. | D67: Pza. | E67: 3.00 | F67: $5,088,190.00 | G67: $15,264,570.00 | I67: 3.00 | K67: $0.00
A68: ESP 21.4.0 | B68: 21.4.4 | C68: Mesa rectangular de 1.20 X 0.80 m para 4 usuarios, con cubierta en melamina con canto PVC, estructura metálica, terminado con pintura electrostática. | D68: Pza. | E68: 38.00 | F68: $1,584,536.00 | G68: $60,212,368.00 | I68: 38.00 | K68: $0.00
A69: ESP 21.4.0 | B69: 21.4.5 | C69: Mesa circular para 4 personas de 1.00 de diámetro, con cubierta en melamina con canto PVC, estructura metálica, terminado con pintura electrostática. | D69: Pza. | E69: 15.00 | F69: $1,786,548.00 | G69: $26,798,220.00 | I69: 15.00 | K69: $0.00
A70: ESP 21.4.0 | B70: 21.4.6 | C70: Silla Operativa, Ergonómica y para trabajo 24x24, con descansabrazos, base cinco puntos, mecanismo reclinable, protección lumbar y ajuste de altura, cabecera, base y estructura de polipropileno, respaldo y asiento tapizados en tela mesh color negro. | D70: Pza. | E70: 68.00 | F70: $2,929,182.00 | G70: $199,184,376.00 | I70: 68.00 | K70: $0.00
A71: ESP 21.4.0 | B71: 21.4.7 | C71: Silla Visita (Interlocutoras) con brazos, con base y estructura de polipropileno de 4 puntos fijos, respaldo y asiento tapizados en tela mesh. (Acabados en conjunto con la silla directiva) y metal en cromo. | D71: Pza. | E71: 6.00 | F71: $795,424.00 | G71: $4,772,544.00 | I71: 6.00 | K71: $0.00
C73: TOTAL DE MOBILIARIO N5 | G73: =SUM(G65:G71) -> $423,828,620.00 | K73: =SUM(K65:K71) -> $0.00
B75: 21.5.0 | C75: MOBILIARIO N6
A76: ESP 21.5.0 | B76: 21.5.1 | C76: Suministro y transporte de Módulo operativo de 1.70 X 0.90 m (MOBILIARIO NORMAL) para un usuario, hecho a base de estructura metálica con superficie recta recortada y cantos termofusionados con groumets, Acabados en melamina blanca de 28mm Incluye pasacables interno (charola horizontal) con 6 espacios para instalaciones y charola (vertical) lateral para subir y ocultar instalaciones y charola para cables. | D76: Pza. | E76: 47.00 | F76: $3,459,463.99 | G76: =F76*E76 -> $162,594,807.53 | I76: 47.00 | K76: =J76*I76 -> $0.00
A77: ESP 21.5.0 | B77: 21.5.2 | C77: Suministro y transporte Módulo operativo de 1.40 X 0.70 m (MOBILIARIO NORMAL) para un usuario, hecho a base de estructura metálica con superficie recta recortada y cantos termofusionados con groumets, Acabados en melamina blanca de 28mm Incluye pasacables interno (charola horizontal) con 6 espacios para instalaciones y charola (vertical) lateral para subir y ocultar instalaciones y charola para cables y accesorios porta CPU, porta monitor doble. | D77: Pza. | E77: 38.00 | F77: $2,802,923.00 | G77: $106,511,074.00 | I77: 38.00 | K77: $0.00
A78: ESP 21.5.0 | B78: 21.5.3 | C78: Suministro y transporte Módulo operativo con credenza lateral 1.35 x 1.50 hecho a base de estructura metálica con superficie recta recortada y cantos termofusionados. Acabados en melamina blanca de 28 mm. Incluye pasacables interno (charola horizontal) con 6 espacios para instalaciones , groumets y charola (vertical) lateral para subir y ocultar instalaciones. (MOBILIARIO NORMAL) | D78: Pza. | E78: 3.00 | F78: $5,088,190.00 | G78: $15,264,570.00 | I78: 3.00 | K78: $0.00
A79: ESP 21.5.0 | B79: 21.5.4 | C79: Suministro y transporte de Silla Operativa, Ergonómica y para trabajo 24x24, con descansabrazos, base cinco puntos, mecanismo reclinable, protección lumbar y ajuste de altura, cabecera, base y estructura de polipropileno, respaldo y asiento tapizados en tela mesh color negro. (MOBILIARIO NORMAL) | D79: Pza. | E79: 88.00 | F79: $2,929,182.00 | G79: $257,768,016.00 | I79: 88.00 | K79: $0.00
A80: ESP 21.5.0 | B80: 21.5.5 | C80: Suministro y transporte de Silla Visita (Interlocutoras) con brazos, con base y estructura de polipropileno de 4 puntos fijos, respaldo y asiento tapizados en tela mesh. (Acabados en conjunto con la silla directiva) y metal en cromo.(MOBILIARIO NORMAL) | D80: Pza. | E80: 14.00 | F80: $795,424.00 | G80: $11,135,936.00 | I80: 14.00 | K80: $0.00
A81: ESP 21.5.0 | B81: 21.5.6 | C81: Suministro y transporte de Mesa circular para 4 personas de 1.00 de diámetro, con cubierta en melamina con canto PVC, estructura metálica, terminado con pintura electrostática.(MOBILIARIO NORMAL) | D81: Pza. | E81: 1.00 | F81: $1,786,548.00 | G81: $1,786,548.00 | I81: 1.00 | K81: $0.00
A82: ESP 21.5.0 | B82: 21.5.7 | C82: Módulo operativo de 1.70 X 0.90 m (MOBILIARIO GESAB) para un usuario, hecho a base de estructura metálica con superficie recta recortada y cantos termofusionados con groumets, Acabados en melamina blanca de 28mm Incluye pasacables interno (charola horizontal) con 6 espacios para instalaciones y charola (vertical) lateral para subir y ocultar instalaciones y charola para cables y accesorios porta CPU, porta monitor doble. | D82: Pza. | E82: 10.00 | F82: $524,171,853.68 | G82: $5,241,718,536.80 | I82: 10.00 | K82: $0.00
A83: ESP 21.5.0 | B83: 21.5.8 | C83: SILLA ERGONÓMICA 24/7 FREEDOM HEADREST - ALUMINIO ( MOBILIARIO DE GESAB) | D83: Pza. | E83: 110.00 | F83: $12,708,349.69 | G83: $1,397,918,465.90 | I83: 110.00 | K83: $0.00
A84: ESP 21.5.0 | B84: 21.5.9 | C84: Módulo operativo de 1.40 X 0.70 m (MOBILIARIO GESAB) para un usuario, hecho a base de estructura metálica con superficie recta recortada y cantos termofusionados con groumets, Acabados en melamina blanca de 28mm Incluye pasacables interno (charola horizontal) con 6 espacios para instalaciones y charola (vertical) lateral para subir y ocultar instalaciones y charola para cables y accesorios porta CPU, porta monitor doble. | D84: Pza. | E84: 5.00 | F84: $294,559,767.17 | G84: $1,472,798,835.85 | I84: 5.00 | K84: $0.00
A85: ESP 21.5.0 | B85: 21.5.10 | C85: SILLA ERGONÓMICA 24/7 FREEDOM HEADREST - ALUMINIO ( MOBILIARIO DE GESAB) | D85: Pza. | E85: 30.00 | F85: $12,708,349.69 | G85: $381,250,490.70 | I85: 30.00 | K85: $0.00
C87: TOTAL DE MOBILIARIO N6 | G87: =SUM(G76:G85) -> $9,048,747,280.78 | K87: =SUM(K76:K85) -> $0.00
B89: 21.6.0 | C89: MOBILIARIO N7
A90: ESP 21.6.0 | B90: 21.6.1 | C90: Módulo operativo de 1.70 X 0.90 m para un usuario, hecho a base de estructura metálica con superficie recta recortada y cantos termofusionados con groumets, Acabados en melamina blanca de 28mm Incluye pasacables interno (charola horizontal) con 6 espacios para instalaciones y charola (vertical) lateral para subir y ocultar instalaciones y charola para cables y accesorios porta CPU, porta monitor doble. (MOBILIARIO DE GESAB) | D90: Pza. | E90: 5.00 | F90: $305,926,806.25 | G90: =F90*E90 -> $1,529,634,031.25 | I90: 5.00 | K90: =J90*I90 -> $0.00
A91: ESP 21.6.0 | B91: 21.6.2 | C91: Suministro de SILLA ERGONÓMICA 24/7 FREEDOM HEADREST - aluminio (Mobiliario de GESAB) | D91: Pza. | E91: 43.00 | F91: $12,708,349.69 | G91: $546,459,036.67 | I91: 43.00 | K91: $0.00
A92: ESP 21.6.0 | B92: 21.6.3 | C92: Suministro y transporte de Módulo operativo de 1.00 X 0.60 m para un usuario, hecho a base de estructura metálica | D92: Pza. | E92: 40.00 | F92: $2,474,653.00 | G92: $98,986,120.00 | I92: 40.00 | K92: $0.00
A93: ESP 21.6.0 | B93: 21.6.4 | C93: Suministro y transporte de Silla Operativa, Ergonómica y para trabajo 24x24, con descansabrazos, base cinco puntos | D93: Pza. | E93: 40.00 | F93: $2,929,181.00 | G93: $117,167,240.00 | I93: 40.00 | K93: $0.00
A94: ESP 21.6.0 | B94: 21.6.5 | C94: Suministro y transporte de Módulo operativo de 1.40 X 0.70 m para un usuario, hecho a base de estructura metálica | D94: Pza. | E94: 20.00 | F94: $2,802,923.00 | G94: $56,058,460.00 | I94: 20.00 | K94: $0.00
A95: ESP 21.6.0 | B95: 21.5.6 | C95: Suministro y transporte de MESA CURVA FIJA para 3 usuarios | D95: un | E95: 1.00 | F95: $828,240.00 | G95: $828,240.00 | I95: 1.00 | K95: $0.00
A96: ESP 21.6.0 | B96: 21.6.7 | C96: Suministro y transporte de Módulo operativo con credenza lateral 1.35 x 1.50 hecho a base de estructura metálica | D96: Pza. | E96: 1.00 | F96: $5,088,190.00 | G96: $5,088,190.00 | I96: 1.00 | K96: $0.00
A97: ESP 21.6.0 | B97: 21.6.8 | C97: Mesa sala de juntas 10 personas de 2.20 x 1.00 m, con ducto vertical de subida de cables por pata, 4 accesorios sobre cubierta para electrificación (2 salidas). Acabados en melamina blanca de 28 mm y estructura metálica. | D97: Pza. | E97: 1.00 | F97: $5,599,534.00 | G97: $5,599,534.00 | I97: 1.00 | K97: $0.00
A98: ESP 21.6.0 | B98: 21.6.9 | C98: Mesa sala de juntas 20 personas de 2.20 x 1.00 m, con ducto vertical de subida de cables por pata, 8 accesorios sobre cubierta para electrificación (4 salidas). Acabados en melamina blanca de 28 mm y estructura metálica. | D98: Pza. | E98: 1.00 | F98: $3,598,560.00 | G98: $3,598,560.00 | I98: 1.00 | K98: $0.00
A99: ESP 21.6.0 | B99: 21.6.10 | C99: Suministro y transporte de Silla Operativa, Ergonómica y para trabajo 24x24, con descansabrazos, base cinco puntos | D99: Pza. | E99: 53.00 | F99: $2,929,181.00 | G99: $155,246,593.00 | I99: 53.00 | K99: $0.00
A100: ESP 21.6.0 | B100: 21.6.11 | C100: Silla Visita (Interlocutoras) con brazos, con base y estructura de polipropileno de 4 puntos fijos, respaldo y asiento tapizados en tela mesh. (Acabados en conjunto con la silla directiva) y metal en cromo. | D100: Pza. | E100: 2.00 | F100: $795,424.00 | G100: $1,590,848.00 | I100: 2.00 | K100: $0.00
C102: TOTAL DE MOBILIARIO N7 | G102: =SUM(G90:G100) -> $2,520,256,852.92 | K102: =SUM(K90:K100) -> $0.00
B104: 21.7.0 | C104: MOBILIARIO N8
A105: ESP 21.7.0 | B105: 21.7.1 | C105: Suministro y transporte de Módulo operativo de 1.40 X 0.70 m para un usuario, hecho a base de estructura metálica | D105: Pza. | E105: 5.00 | F105: $2,802,923.00 | G105: =F105*E105 -> $14,014,615.00 | I105: 5.00 | K105: =J105*I105 -> $0.00
C107: TOTAL DE MOBILIARIO N8 | G107: =G105 -> $14,014,615.00 | K107: =K105 -> $0.00
B109: 21.8.0 | C109: VARIOS MOBILIARIO
A110: ESP 21.8.0 | B110: 21.8.1 | C110: Suministro, transporte de sillón sin cabecera, con respaldo bajo, descansa brazos, con base de 4 patas en tubular de acero pintado en negro | D110: un | E110: 42.00 | F110: $992,460.00 | G110: =F110*E110 -> $41,683,320.00 | I110: 42.00 | K110: =J110*I110 -> $0.00
A111: ESP 21.8.0 | B111: 21.8.2 | C111: Suministro, transporte Silla universitaria con asiento tapizado | D111: un | E111: 12.00 | F111: $854,840.00 | G111: $10,258,080.00 | I111: 12.00 | K111: $0.00
A112: ESP 21.8.0 | B112: 21.8.3 | C112: Suministro y transporte de mesa auxiliar redonda | D112: un | E112: 32.00 | F112: $699,720.00 | G112: $22,391,040.00 | I112: 32.00 | K112: $0.00
A113: ESP 21.8.0 | B113: 21.8.4 | C113: Suministro y transporte de sofá de 3 puestos | D113: un | E113: 8.00 | F113: $4,148,722.00 | G113: $33,189,776.00 | I113: 8.00 | K113: $0.00
A114: ESP 21.8.0 | B114: 21.8.5 | C114: Suministro, transporte e instalación de MESA RECTANGULAR 1,20X0,80 para 4 personas, con cubierta en melamina con canto PVC, estructura metálica, terminado con pintura electrostática.(MOBILIARIO NORMAL) | D114: un | E114: 23.00 | F114: $2,573,603.00 | G114: $59,192,869.00 | I114: 23.00 | K114: $0.00
A115: ESP 21.8.0 | B115: 21.8.6 | C115: Suministro, transporte de locker de 15x15 | D115: un | E115: 130.00 | F115: $2,573,603.00 | G115: $334,568,390.00 | I115: 130.00 | K115: $0.00
A116: ESP 21.8.0 | B116: 21.8.7 | C116: Suministro, transporte de archivador con pedestal con tapa | D116: un | E116: 135.00 | F116: $980,953.00 | G116: $132,428,655.00 | I116: 135.00 | K116: $0.00
A117: ESP 21.8.0 | B117: 21.8.8 | C117: Silla Visita (Interlocutoras) con brazos, con base y estructura de polipropileno de 4 puntos fijos, respaldo y asiento tapizados en tela mesh. (Acabados en conjunto con la silla directiva) y metal en cromo. | D117: Pza. | E117: 546.00 | F117: $795,424.00 | G117: $434,301,504.00 | I117: 546.00 | K117: $0.00
A118: ESP 21.8.0 | B118: 21.8.9 | C118: Suministro y transporte de MUEBLE DE RECEPCION BLANCA-GRIS DE 0,60 X 2,40 X 1.00 m DELVERG | D118: un | E118: 3.00 | F118: $5,212,680.00 | G118: $15,638,040.00 | I118: 3.00 | K118: $0.00
A119: ESP 21.8.0 | B119: 21.8.10 | C119: Suministro y transporte de MUEBLE DE RECEPCION BLANCA DE 0,60 X 1,50 X 1.00 m DELVERG | D119: un | E119: 5.00 | F119: $2,039,879.00 | G119: $10,199,395.00 | I119: 5.00 | K119: $0.00
B121: 21.9.0 | C121: ANEXO MOBILIARIO
A122: ESP 21.9.1 | B122: 21.9.1 | C122: Suministro, transporte y colocación de pantalla modelo VM55B-U Ultra Narrow Bezel Video Wall de 55" panel tipo IPS, Marca Samsung, resolución 1,920 x 1,080 de dimensiones 1213,5 x 684,3 x 73,1 mm, peso de 21,2 kg, montura 600 x 400 mm, anchura de bisel 2,25mm(U/L), 125mm(R/B) material del marco Glossy. | D122: un | E122: 2.00 | F122: $5,433,962.00 | G122: =F122*E122 -> $10,867,924.00 | I122: 2.00 | K122: =J122*I122 -> $0.00
A123: ESP 21.9.2 | B123: 21.9.2 | C123: Suministro, transporte y colocación de escalera marina metálica de 4.96m de longitud, fijada a la pared, el piso y el techo, incluye protección en la espalda de 0.81m x 0.70m. Incluye pasamanos en la parte superior de 1.11m de alto x 1.40m de largo y todos los elementos necesarios para su correcto funcionamiento. | D123: un | E123: 1 | F123: $7,111,382.00 | G123: =F123*E123 -> $7,111,382.00 | I123: 1 | K123: =J123*I123 -> $0.00 | U123: =SUM(U107:U116)+U119+U120+U121+U122 -> $0.00
A124: ESP 21.9.3 | B124: 21.9.3 | C124: Suministro e instalación de poste de concreto prensado de 14 metros: Incluye la provisión de poste de concreto reforzado, tipo prensado, con una longitud de 14 metros, conforme a la normativa RETIE y las especificaciones técnicas de la empresa prestadora del servicio de energía. El poste debe tener una carga de trabajo mínima de 300 kg y una carga de rotura de al menos 750 kg, con tratamiento superficial adecuado para resistir condiciones ambientales adversas y perforaciones según requerimientos para instalación de accesorios eléctricos. La instalación comprende excavación manual del terreno, ubicación y nivelación del poste, relleno y compactación con material apropiado, instalación de retenidas si se requiere, y aseguramiento con concreto según diseño estructural. Se incluye el transporte, maniobras de izaje, materiales, equipos, mano de obra calificada y todas las actividades necesarias para dejar el poste instalado y funcional, listo para la conexión de redes eléctricas aéreas. | D124: un | E124: 3 | F124: $4,898,886.06 | G124: =E124*F124 -> $14,696,658.18 | I124: 3 | K124: =I124*J124 -> $0.00
A125: ESP 21.9.4 | B125: 21.9.4 | C125: Suministro, transporte e instalación de nichos en Drywall con Recubrimiento en formica (laminado de alta presión Ref. Real 2224 Opak Bleen Bleen y exterior en laminado de alta presión Ref. real 1556 Up Roble sepia o equivalente), incluye dintel y banca en drywall, cojinería en vértigo nuvant gris claro con cierres ocultos y todos los elementos necesarios para su correcto funcionamiento. | D125: un | E125: 4 | F125: $52,457,655.00 | G125: =E125*F125 -> $209,830,620.00 | I125: 4 | K125: =I125*J125 -> $0.00 | U125: =U123+U104+U99+U84+U70+#REF!+#REF!+U58 -> 
C126: TOTAL DE VARIOS MOBILIARIO | G126: =SUM(G110:G125) -> $1,336,357,653.18 | K126: =SUM(K110:K125) -> $0.00
U127: =U125+#REF!+#REF!+#REF!+#REF!+#REF!+#REF!+#REF!+#REF!+#REF!++#REF!+#REF!++#REF!+#REF!+#REF!+#REF!+#REF!+#REF!+#REF!+#REF!+#REF! -> 
C128: TOTAL DE MOBILIARIO | G128: =G126+G107+G102+G87+G73+G61 -> $13,401,523,507.08 | K128: =K126+K107+K102+K87+K73+K61 -> $0.00
A129: NOTA ACLARATORIA: | B129: Este producto está sujeto a modificaciones, ya que los diseños de redes hidrosanitarias externas aún no han sido aprobados por EPM. En consecuencia, los costos de este entregable podrían variar.
E131: RESUMEN A COSTO DIRECTO | I131: RESUMEN A COSTO DIRECTO
E132: TOTAL PANELES SOLARES | G132: =G16 -> $436,122,663.16 | I132: TOTAL PANELES SOLARES | K132: =K16 -> $0.00
A133: Comentarios respecto a ÍTEMS enlistados: | E133: TOTAL CIELOS | G133: =G28 -> $2,213,351,607.90 | I133: TOTAL CIELOS | K133: =K28 -> $0.00
A134: ITEM | B134: COMENTARIOS | E134: TOTAL MOBILIARIO | G134: =G128 -> $13,401,523,507.08 | I134: TOTAL MOBILIARIO | K134: =K128 -> $0.00
A135: 9.0.0 | B135: La información utilizada como base para el presupuesto de RCI, fue con los precios de lista que maneja el diseñador. RCI | F135: TOTAL CD ADICIÓN | G135: =G134+G133+G132 -> $16,050,997,778.13 | J135: TOTAL CD ADICIÓN | K135: =K134+K133+K132 -> $0.00
A136: 12.0.0 | B136: La información utilizada como base para el presupuesto de Aire acondicionado, fue con los precios de lista que maneja el diseñador. AIRE ACONDICIONADO
A137: 13.0.0 | B137: La información utilizada como base para el presupuesto eléctrico, fue con los precios de lista que maneja el diseñador y cotizaciones anexas a la información ELECTRICO | E137: OBRA COSTO INDIRECTO | I137: OBRA COSTO INDIRECTO
A138: 14.1.8 | B138: La pintura para señalización de columnas se encuentra en el capítulo 14.0.0 Sistemas tecnológicos, subcapítulo 14.1.8 Señalética; fue asignado en este capítulo porque la información la diseño el departamento de Tecnología | E138: A(%) | G138: 15.36% | I138: A(%) | K138: 15.36%
A139: 16.1.1 - 16.1.2 | B139: Para la recolección de basura y escombro que se generen mediante los ítem de aseo, estos deberán estar en un acopio asignado por la obra | E139: U(%) | G139: 5.00% | I139: U(%) | K139: 5.00%
A140: 16.1.1 - 16.1.2 | B140: Los precios para estos ítems fueron asignados por la ESU (Ing Juan Villa), de igual manera se presenta una cotización para estas actividades ASEO | E140: AU(%) | G140: =SUM(G138:G139) -> 20.36% | I140: AU(%) | K140: =SUM(K138:K139) -> 20.36%
B141: Para los materiales o insumos de exportación dentro del presupuesto, se maneja una TRM de $4298.31 COP (24-04-25), fuente: https://www.dolar-colombia.com/mes/2025-04
B142: En la carpeta de 2. Cotizaciones Se encuentra relacionado las cotizaciones solicitadas para las actividades del presupuesto, adicional en algunos casos fueron utilizados los precios de lista de algunos insumos
B143: Una vez se cuente con la aprobación de las redes externas se debe tener en cuenta los cambios en los costos, cantidades y duraciones finales de las redes hidrosanitarias externas e internas, puesto que se están actualizando estos diseños debido a información referente a la topografía e investigación de redes. Es importante aclarar que estos diseños pueden tener variaciones en su planteamiento ya que aún no ha sido aprobado por parte de EPM en el diseño de redes exteriores.
A144: 10.1.2.3.4 | B144: En este ítem la información ingresada en el apu el costo del ducto se encuentra ingresada por unidad.
A145: 13.10.0 | B145: Los ductos de las actividades de este subcapítulo (SISTEMA DE DUCTOS METÁLICOS) , el costo de los mismos se encuentra por unidad.
A146: 8.6.0 | B146: VARIOS APARATOS SANITARIOS: aparatos sanitarios son los accesorios con el fin de cubrir todo lo relacionado con urinarios, retretes, lavaderos, duchas y demás.

Sheet Generalidades
B2: GENERALIDADES
A3: ITEM | B3: ESPECIFICACIONES GENERALES C5-M | D3: CUMPLE | E3: NO CUMPLE
A4: 1.1 | B4: Funcionamiento | C4: Continúo sin limitaciones funcionales durante las 24 horas del día, todos los días del año.
A5: 1.2 | B5: Constatar todas las cantidades necesarias | C5: Es responsabilidad del contratista, suministrar todo lo necesario para el desarrollo de la solución tecnológica propuesta, incluyendo los accesorios para la instalación y correcto funcionamiento y enlazado al servidor central.
A6: 1.3 | B6: No se reconocerán valores adicionales al ofertado en cada propuesta por concepto mayores cantidades en la instalación. Es obligación del oferente contemplar en su propuesta el costo de accesorios de instalación y su mantenimiento a todo costo por el tiempo solicitado en las presentes especificaciones.
A7: 1.4 | B7: Mantenimiento y soporte | C7: El contratista deberá tomar acciones que permitan detectar las fallas y defectos de los equipos o elementos del sistema, para lo cual cada (06) seis meses deberá realizar un mantenimiento con sus respectivos procedimiento o protocolos y de ser necesario adelantar acciones correctivas; finalizada la actividad el contratista entregará un informe técnico de lo actuado, mínimo durante el plazo de garantía de instalación de tres (3 años). Los mantenimientos inician a los 6 meses de firmado el acta de entrega por parte del contratista
A8: 1.5 | B8: Gatantia equipos | C8: Sera responsabilida del contratista que implemente la solucion el escalar con cada uno de los fabricantes en caso de presentarse una garantia de equipos.
A9: 1.6 | B9: Instalación y Configuración | C9: todos los subsistemas deberán entregarse instaladas, cableadas, configuradas y en correcto funcionamiento como un Sistema integrado. Incluye todos los elementos de cableado, fijación, etc, necesarios para un óptimo funcionamiento
A10: 1.7 | B10: Garantía | C10: El contratista debe proveer un periodo mínimo de 3 años de garantía todos los equipos activos de la solución implemen
A11: 1.8 | C11: Los equipos instalados en la solución, deberán contar con periodo de garantía de 3 años directos de fábrica.
B12: Capacitaciones | C12: El contratista, una vez instalado el componente técnológico realizara la transferencia de conocimiento para la operación de los equipos instalados, al personal que el supervisor designe.
A13: 25.49 | B13: Los trabajadores deben limpiar los escombros y la basura al cierre de cada día de trabajo.

Sheet BMS
B1: SISTEMA DE GESTION DEL C5-M
A2: ITEM | B2: DESCRIPCIÓN | D2: CUMPLE | E2: NO CUMPLE
A3: 1 | B3: SISTEMA DE GESTION INTELIGENTE
A4: 1.1 | B4: Marca | C4: Especificar
A5: 1.2 | B5: Modelo | C5: Especificar
A6: 1.3 | B6: Se requiere una solución de integración de cada uno de los sistemas cctv, control de accesos, alarmas e intrución y subsistemas de seguridad, que permita la integración con aplicaciones de terceros mediantes dispositivos abiertos y kits de desarrollo de software sdk.
A7: 1.4 | B7: Interoperabilidad | C7: La solución debe ser escalable y permitir crecimiento a futuro mediante estandares bacnet, knx, modbus, lonworks, opc, onvif, osdp, kits de desarrollo entre otros.
A8: 1.5 | B8: Topologia | C8: Debe Permitir topología cliente-servidor y/o arquitectura Distribuida o centralizada que permita gestionar y administrar los diferentes medios tecnológicos
A9: 1.6 | B9: Árbol lógico | C9: Debe tener un Árbol lógico personalizado para cada grupo de usuarios: los usuarios sólo deben ver los dispositivos a los que tienen acceso
A10: 1.7 | B10: Integración | C10: Con el sistema Security VMS el cual integra los sistema de seguridad
A11: 1.8 | B11: Notificaciones | C11: Notificación de alarmas y eventos por correo electrónico o SMS
A12: 1.9 | B12: Clientes | C12: Debe Permitir ilimitado número de estaciones clientes concurrentes.
A13: 1.10 | B13: Integración | C13: Debe Permitir la gestión y control de iluminación.
C14: Debe Permitir la gestión de sistemas HVAC.
C15: Debe Permitir la gestión de UPS.
C16: Debe Permitir la gestión de medidores de energía, agua y gas
C17: Debe Permitir la gestión de Ascensores.
C18: Debe Pebe permitir la gestión de equipos electrónicos utilizando diferentes protocolos de comunicaciones, en al menos dos de los siguientes protocolos, BACNET, LONWORKS, MODBUS, OPC, SNMP, DALI, KNX o DNP3.
A19: 1.11 | B19: Perfiles | C19: Debe Permitir la creación de diferentes perfiles de usuario. El sistema debe llevar registro de todas las acciones de cada uno de los usuarios. Así mismo debe contar con la capacidad de almacenar un log de eventos con la gestión de cada uno de los usuarios.
A20: 1.12 | B20: Alarmas | C20: Debe Permitir Filtrar, buscar y clasificar alarmas por estado actual, nivel de alarma y otros atributos personalizables.
A21: 1.13 | B21: Interfaz Grafica | C21: Debe contar con un despliegue gráfico de los planos de los edificios en 2D y 3D indicando cada uno de los elementos a controlar o a supervisar con nombres en español y dentro de un entorno espacial acorde a su ubicación. El sistema debe visualizar cada uno de los sistemas por capas, para verificar en detalle cada uno de los subsistemas.
A22: 1.14 | B22: Planos o imágenes 2D | C22: Debe permitir hacer cambios de elementos constructivos dentro de un gráfico importando directamente el archivo del nuevo plano.
A23: 1.15 | B23: Seguridad | C23: Debe Permitir flujo de trabajo con instrucciones y comentarios de usuario que puedan forzarse antes de su eliminación, alineado a los protocolos de seguridad
A24: 1.16 | B24: Virtualización | C24: Deberá permitir Servidores Windows virtualizados usando: Microsoft Hyper-V y/o VMWare.
A25: 1.17 | B25: Conectividad avanzada | C25: Con protocolos como BACnet/IP y/o (BTL-listed B-BC y B-OWS) y/o BACnet/SC (TLS 1.3), OPC UA Client, Modbus TCP/RTU, MQTT (TLS 1.2/1.3) y LonWorks, además de integración con servicios web (REST/SOAP) y autenticación mediante Active Directory o SAML 2.0.
A26: 1.18 | B26: Modulo gestion Datacenter | C26: Incluido
A27: 1.19 | B27: Sistema de intrusión | C27: Deberá gestionar los sensores disponibles del sistema de iluminacion y sensores del apertura del sistema de control de acceso.
A28: 1.20 | B28: Ficha técnica | C28: Del equipo ofertado (es obligatorio adjuntar la ficha técnica junto con el presente anexo)
A29: 2 | B29: SERVIDOR CENTRAL
A30: 2.1 | B30: Marca | C30: Especificar
A31: 2.2 | B31: Modelo | C31: Especificar
A32: 2.3 | B32: Procesaror | C32: Procesador Intel Core i5 (mínimo 2.0 GHz) o similar
A33: 2.4 | B33: Memoria RAM | C33: Minimo 16 GB
A34: 2.5 | B34: Almacenamiento | C34: Minimo SSD de 1 TB
A35: 2.6 | B35: Arquitectura | C35: x86
A36: 2.7 | B36: Sistema Operativo | C36: compatible con sistemas operativos Windows (Windows 10/11, Server 2012 R2-2022) y/o Linux
A37: 2.8 | B37: Base de datos | C37: PostgreSQL o Microsoft SQL Server.
A38: 2.9 | B38: Disponibilidad | C38: Failover
A39: 2.10 | B39: Ficha técnica | C39: Del equipo ofertado (es obligatorio adjuntar la ficha técnica junto con el presente anexo)

Sheet BMS_P
A1: ITEM | B1: DESCRIPCIÓN | C1: UND | D1: CANTIDAD | E1: VALOR UNITARIO | F1: VALOR PARCIAL
A2: 1 | B2: MÓDULO GESTIÓN DE ENERGÍA, GAS Y AGUA
A3: 1.01 | B3: Licencia principal PME | C3: Und | D3: 1 | F3: =E3*D3 -> 0
A4: 1.02 | B4: Licencia de integración | C4: Und | D4: 20 | F4: =E4*D4 -> 0
A5: 1.03 | B5: Servicio analítica para el sistema eléctrico / de energía. | C5: Und | D5: 50 | F5: 0
A6: 1.04 | B6: Software Assurance 3 Year | C6: Und | D6: 5 | F6: 0
A7: 2 | B7: MÓDULO BMS
A8: 2.01 | B8: Licencia Enterprise Server para hasta 10 controladores (incluye 3 estaciones de trabajo) | C8: Und | D8: 1 | F8: =E8*D8 -> 0
A9: 2.02 | B9: SmartConnector licencia que permite conectar a alto nivel módulo | C9: Und | D9: 1 | F9: 0
A10: 2.03 | B10: Transformador 100VA 120 - 24V para el AS-P | C10: Und | D10: 4 | F10: 0
A11: 2.04 | B11: Servidor / controlador principal BMS (solo hardware) | C11: Und | D11: 4 | F11: 0
A12: 2.05 | B12: Software permite integrar hasta 100 dispositivos | C12: Und | D12: 4 | F12: 0
A13: 2.06 | B13: Fuente de alimentación PS-24V | C13: Und | D13: 4 | F13: 0
A14: 2.07 | B14: Base terminal | C14: Und | D14: 4 | F14: 0
A15: 2.08 | B15: Base terminal para fuente de alimentación | C15: Und | D15: 4 | F15: 0
A16: 2.09 | B16: Licencia para habilitacion de Modbus | C16: Und | D16: 4 | F16: 0
A17: 3 | B17: Modulos entrada y salida
A18: 3.01 | B18: Controlador BMS 12A (8UIO, 4 DO) | C18: Und | D18: 8 | F18: =E18*D18 -> 0
A19: 3.02 | B19: Transformador 50VA 120 - 24V | C19: Und | D19: 8 | F19: 0
A20: 3.03 | B20: Panel servidor universal, dispositivo que permite integrar los equipos Modbus RTU (110V-277 VAC-V) | C20: Und | D20: 1 | F20: 0
A21: 4 | B21: MÓDULO DATACENTER
A22: 4.01 | B22: Licencia principal IT Data Center para 25 nodos | C22: Und | D22: 1 | F22: =E22*D22 -> 0
A23: 4.02 | B23: Licencia adicional de 100 nodos para IT Data Center Expert | C23: Und | D23: 1 | F23: 0
A24: 4.03 | B24: Licencia activación máquina virtual para IT Data Center Expert | C24: Und | D24: 1 | F24: 0
A25: 4.04 | B25: Servicio instación y configuración para Data Center Expert remoto | C25: Und | D25: 3 | F25: 0
A26: 4.05 | B26: Contrato de soporte / mantenimiento VM por 3 años para Data Center Expert 3 | C26: Und | D26: 1 | F26: 0
A27: 4.06 | B27: Contrato de soporte / mantenimiento VM por 3 años para 25 nodos de Data Center Expert | C27: Und | D27: 1 | F27: 0
A28: 4.07 | B28: Contrato de soporte / mantenimiento VM por 3 años para 100 nodos de Data Center Expert | C28: Und | D28: 1 | F28: 0
A29: 4.08 | B29: Licencia principal IT Advisor para 10 racks | C29: Und | D29: 5 | F29: 0
A30: 4.09 | B30: Licencia adicional módulo capacity 10 racks para IT Advisor | C30: Und | D30: 5 | F30: 0
A31: 4.10 | B31: Contrato de soporte / mantenimiento IT Advisor 3 años 10 racks | C31: Und | D31: 5 | F31: 0
A32: 4.11 | B32: Contrato de soporte / mantenimiento IT Advisor 3 años módulo capacity para 10 racks | C32: Und | D32: 5 | F32: 0
A33: 4.12 | B33: Servicio instalación y configuración | C33: Und | D33: 1 | F33: 0
A34: 4.13 | B34: SERVIDOR DE GESTION DE APLICACIÓN | C34: Und | D34: 1 | F34: 0
A35: 4.14 | B35: Monitor de 22" | D35: 1 | F35: 0
A36: 4.15 | B36: Tablero (4unidades) )NEMA y adecuaciones fisicas para señales MODBUS/eléctrica | C36: Und | D36: 1 | F36: 0
E37: SUBTOTAL | F37: =SUM(F2:F36) -> 0
E38: IVA | F38: =F37*19% -> 0
E39: TOTAL | F39: =F37+F38 -> 0

Sheet Datacenter
A3: ITEM | B3: DESCRIPCIÓN | D3: CUMPLE | E3: NO CUMPLE
A4: 1 | B4: CERTIFICACIÓN DE CALIDAD Y FABRICANTE DE PRODUCTOS
A5: 1.1 | B5: Todo hardware de conexión y cable de telecomunicaciones debe estar manufacturado por un fabricante certificado ISO 9001-2015 / ISO 14001 - 2015.
A6: 1.2 | B6: Es requisito obligatorio que el proponente anexe la certificación Intertek- ETL con norma vigente TIA e ISO que muestre los requisitos de desempeño en cada una de las normas descritas a una longitud de 100 metros y cuatro conexiones Categoría 6A hasta 500 MHz con cordones 26AWG.
A7: 1.3 | B7: Es requisito obligatorio que el proponente anexe catálogos originales (página web) en donde se demuestre que el cable cumple con los requisitos de flamabilidad, baja emisión de humo y halógenos cumpliendo IEC 60332-3, IEC 60754 e IEC 61034.
A8: 1.4 | B8: El fabricante deberá ser miembro activo de cualquiera de las siguientes alianzas de AV (HDBaseT, SDVoE, Dante AV, AVB (Audio Video Bridging) , la información podrá ser verificada en el sitio web de la alianza.
A9: 1.5 | B9: El fabricante hará una supervisión por parte de un ingeniero con matrícula profesional vigente y credencial RCDD que pertenezca a la nómina del fabricante para un soporte oportuno y cumplimiento de la supervisión exigida. Esta supervisión se hará durante la ejecución el proyecto. El RCDD debe aparecer vigente en la página de BICSI: Es requisito obligatorio que el proponente anexe una carta con el nombre del RDDD para verificación. https://www.bicsi.org/forms/Verify/CredentialHolder/.
A10: 1.6 | B10: El fabricante hará una supervisión al cuarto técnico/centro de datos por parte de un ingeniero con matrícula profesional vigente y credencial DCDC que pertenezca a la nómina del fabricante para un soporte oportuno y cumplimiento de la supervisión exigida. Esta supervisión se hará durante la ejecución el proyecto. El DCDC debe aparecer vigente en la página de BICSI.
A11: 1.7 | B11: Con el fin de proteger la inversión, el fabricante debe tener la opción de actualización del sistema a categorías superiores como categoría 7A, 8.2 sobre los mismos paneles y faceplates del sistema apantallado sin cambiar ninguno de ellos. Es requisito obligatorio que se anexen los catálogos impresos o electrónicos de los productos que demuestren esto.
A12: 1.8 | B12: El proponente debe anexar un documento emitido por el fabricante que indique que está autorizado para instalar sus productos y que puede tramitar y emitir la garantía con el fabricante.
A13: 1.9 | B13: Se deben anexar los catálogos originales (página web) de la solución de cableado ofrecido. Cada catálogo debe mostrar el código del producto ofertado, estas mismas fichas técnicas deberán estar disponibles en la página web del fabricante. de presentarse alguna inconsistencia se verificará el número de parte en el sitio web del fabricante y debe coincidir con las especificaciones solicitadas en el presente documento.
A14: 1.10 | B14: No se aceptarán propuestas cuyo número de parte no se encuentre en el sitio web oficial del fabricante.
A15: 1.11 | B15: La instalación, documentación, componentes y sistemas deben cumplir o exceder las siguientes especificaciones de la industria: | C15: ISO 14763-2/2019, ISO/IEC 11801, ANSI/TIA-526-7-A, ANSI/TIA-526-14-C, ANSI/ TIA-606-D o ISO/IEC 14763-2-1 , ANSI/TIA-607-E y/o ISO/IEC 30129, IEEE 802.3an , IEC 61156-5
A16: 2 | B16: ESPECIFICACIONES DE COMPONENTES
A17: 2.1 | B17: Además de cumplir con las especificaciones de la ISO/IEC 11801-1 para CLASE FA, todos los componentes deben cumplir con los requisitos descritos en esta sección, el oferente incluirá las barras colectoras de tierra , terminales y cables requeridos por los estándares de tierra y equipotencialización.
A18: 2.2 | B18: El proponente deberá anexar certificado de garantía, la cual incluye un cuadro con los parámetros mínimos de desempeño y el margen garantizado basado en ISO/IEC en caso de que aplique, esto incluye los valores de PS ANEXT y PS AACR-F, PS NEXT entre otros.
A19: 2.3 | B19: Todos los componentes del canal de cobre y fibra deben ser de una sola marca a fin de garantizar el funcionamiento end-to-end del mismo. No se aceptarán oferta donde se mezclen componentes o subsistemas de más de un (1) fabricante o marca.
A20: 2.4 | B20: Se exigirá que el sistema de cableado estructurado tenga una garantía expedida por el fabricante por un mínimo de 25 años sobre todos y cada uno de los componentes instalados. Así mismo se requerirá garantía que certifique el funcionamiento de todas las aplicaciones diseñadas para correr en las redes descritas y del rendimiento garantizado. También se exigirá que todas las ofertas presentadas vengan acompañadas de una carta emitida por el fabricante en donde se avale el respaldo de este a la empresa oferente y se asuma un compromiso por la garantía.
A21: 2.5 | B21: Adicional a lo anterior, el fabricante incluirá dentro de la garantía de producto la reinstalación del producto para los cambios requeridos por este concepto.
A22: 2.6 | B22: Es requisito obligatorio que el proponente anexe con la propuesta los catálogos de los productos ofertados. Cada catálogo debe mostrar el código del producto ofertado; no se aceptarán propuestas con catálogos que contengan códigos diferentes a los ofertados o descripciones diferentes a las solicitadas en el presente documento, la información podrá consultarse en la página web del fabricante.
A23: 3 | B23: AIM (ADMINISTRACION AUTOMATIZADA DE LA INFRAESTRUCTURA)
A24: 3.1 | B24: Cantidad | C24: De acuerdo al cuadro de cantidades
A25: 3.2 | B25: Marca | C25: Especificar
A26: 3.3 | B26: Modelo | C26: Especificar
A27: 3.4 | B27: COMPONENTES DE HARDWARE | C27: Los paneles de control(analizadores/controladores) son dispositivos de hardware que recopilan información sobre el estado del parcheo de los paneles de conexión inteligentes/bandejas de fibra optica. Esta información se transmite a través de la LAN/WAN del cliente a una base de datos central. Los paneles de control deben ser compatibles con el software del fabricante
A28: 3.5 | B28: Estar construidos en total conformidad con las normas ANSI/TIA-568-C.2 e ISO/IEC 11801 Ed. 2 o sus más recientes versiones.
A29: 3.6 | B29: Cumplir con la norma CEA-310-E o su más reciente versión para asegurar que su montaje es compatible con racks de 19 in.
A30: 3.7 | B30: Su interfaz modular (jack) debe permitir un mínimo de 1000 ciclos de inserciones de plugs RJ45 ó RJ11.
A31: 3.8 | B31: Su interfaz IDC debe permitir ambas configuraciones T568A y T568B, indicando claramente, con etiquetas o rotulado, ambas configuraciones.
A32: 3.9 | B32: Debe tener puertos modulares que cumplan con IEC 60603-7 y FCC CFR 47, parte 68, subparte F, con contactos de 50 micropulgadas de oro sobre níquel.
A33: 3.10 | B33: Debe tener una envolvente metálica totalmente cerrada para mayor protección física de los circuitos impresos y partes en termoplástico retardante a la flama libre de plomo, libre de PVC y libre de halógenos.
A34: 3.11 | B34: Poseer conectores tipo IDC (insulation displacement connection – conexión por desplazamiento de aislante) que permitan la terminación de conductores sólidos y multifilares de varios calibres, desde 26 AWG hasta 22 AWG.
A35: 3.12 | B35: Permitir la terminación de cables de hasta 9 mm de diámetro exterior.
A36: 3.13 | B36: Para facilitar la administración y el acomodo de los cables en su parte posterior, el dispositivo debe tener integrado un organizador posterior de cables.
A37: 3.14 | B37: Debe tener una altura que ocupe como máximo una (1) unidad de rack (1RMS = 44.5 mm [1.75 in]).
A38: 3.15 | B38: Debe monitorear continuamente todos los componentes del sistema y reportar las fallas al software de administración inteligente.
A39: 3.16 | B39: Debe cumplir o exceder las normas UL 60950-1, 1st Edition (2003) – Information Technology Equipment, ACA TS 001 y A/NZS 3260.
A40: 3.17 | B40: Cada analizador debe estar diseñado para alta densidad, tener una altura que ocupe como máximo una (1) unidad de rack (1RMS = 44.5 mm [1.75 in]) y brindar una capacidad de al menos 2880 puertos (120 paneles de 24 puertos) monitoreados. Esta especificación se da con el fin de reducir al mínimo el espacio requerido por el sistema de administración inteligente. El uso combinado de analizadores en una misma zona de parcheo, debe permitir extender su capacidad a por lo menos 65.000 puertos monitoreados.
A41: 3.18 | B41: Para la alta disponibilidad del sistema de administración inteligente, cada analizador debe ofrecer redundancia en todas sus conexiones, incluyendo puertos de alimentación eléctrica, puertos de comunicaciones LAN y puertos de bus de control.
A42: 3.19 | B42: Las conexiones entre el bus de control y los paneles inteligentes deben realizarse con cable balanceado de 4 pares y permitir su terminación en sitio en conectores estándar 110 ó RJ45. No se aceptarán cables de fabricación especial ni cables cuya terminación requieran conectores especiales.
A43: 3.20 | B43: El sistema debe permitir que el personal técnico realice sus actividades de administración directamente en los analizadores y paneles inteligentes, sin que sea necesario que el técnico requiera el uso de una computadora, tablet u otro dispositivo ni conexión a internet. Las actividades de administración que el técnico debe poder realizar de esta forma incluyen rastreo de patch cords, identificación y trazado de circuitos, diagnóstico de componentes y cierre de órdenes de trabajo.
A44: 3.21 | B44: El sistema debe ser eficiente en su consumo de energía, no consumir más de 21 W por analizador, no requerir más de una dirección IP y dos puertos LAN por cada zona de parcheo -incluso en aquellas de hasta 65,000 nodos-, y no requerir enfriamiento para su operación.
A45: 3.22 | B45: Estar construidos en total conformidad con las normas ANSI/TIA-568-C.2 e ISO/IEC 11801 Ed. 2 o sus más recientes versiones.
A46: 3.23 | B46: Cumplir con la norma CEA-310-E o su más reciente versión para asegurar que su montaje es compatible con racks de 19 in.
A47: 3.24 | B47: Su interfaz modular (jack) debe permitir un mínimo de 1000 ciclos de inserciones de plugs RJ45 ó RJ11.
A48: 3.25 | B48: Su interfaz IDC debe permitir ambas configuraciones T568A y T568B, indicando claramente, con etiquetas o rotulado, ambas configuraciones.
A49: 3.26 | B49: Debe tener puertos modulares que cumplan con IEC 60603-7 y FCC CFR 47, parte 68, subparte F, con contactos de 50 micropulgadas de oro sobre níquel.
A50: 3.27 | B50: Debe tener una estructura metálica para mayor protección y partes en termoplástico retardante a la flama libre de plomo, libre de PVC y libre de halógenos.
A51: 3.28 | B51: Debe ser 100% modular. Debe permitir la inserción de 24 puertos tipo keystone tanto blindados como no blindados; en caso de falla, debe permitir el reemplazo de cualquiera de sus conectores, sin que haya que desconectar los otros puertos ni interrumpir su monitoreo, y debe permitir el reemplazo de su módulo inteligente, sin que haya que desconectar sus puertos de cableado o interrumpir su servicio.
A52: 3.29 | B52: Cada panel debe contar con puertos redundantes para la conexión al bus de control del analizador. Las conexiones entre el bus de control y los paneles inteligentes deben realizarse con cable balanceado de 4 pares y permitir su terminación en sitio en conectores estándar 110 ó RJ45. No se aceptarán cables de fabricación especial ni cables cuya terminación requieran conectores especiales.
A53: 3.30 | B53: Los paneles de control deben ser lo suficientemente flexibles como para admitir una variedad de opciones de instalación del cliente. Estos incluirán, entre otros: | C53: Conexión Cruzada, en fibra óptica como en cobre (conexiones de panel a panel). Interconexión, en fibra óptica como en cobre (conexiones desde el panel inteligente de cobre/fibra al Switch). Un solo panel de control puede admitir paneles en múltiples gabinetes/racks. Será flexible en términos de densidad de puertos y adecuado (económicamente viable) para soportar entornos de sucursales remotas con capacidad para < 20 usuarios. Será escalable, lo que permitirá al usuario agregar paneles inteligentes para el crecimiento futuro.
A54: 3.31 | B54: MTBF (Main Time Between Failures) | C54: Minimo 20 años.
A55: 3.32 | B55: Ficha técnica | C55: Del equipo ofertado (es obligatorio adjuntar la ficha técnica junto con el presente anexo)
A56: 4 | B56: PANELES INTELIGENTES DE COBRE (Aplica para los paneles de par trenzado del sistema de administración inteligente )
A57: 4.1 | B57: Cantidad | C57: De acuerdo al cuadro de cantidades
A58: 4.2 | B58: Marca | C58: Especificar
A59: 4.3 | B59: Modelo | C59: Especificar
A60: 4.4 | B60: Estar construidos en total conformidad con las normas ANSI/TIA-568-C.2 e ISO/IEC 11801 Ed. 2 o sus más recientes versiones.
A61: 4.5 | B61: Cumplir con la norma CEA-310-E o su más reciente versión para asegurar que su montaje es compatible con racks de 19 in.
A62: 4.6 | B62: Su interfaz modular (jack) debe permitir un mínimo de 1000 ciclos de inserciones de plugs RJ45 ó RJ11.
A63: 4.7 | B63: Su interfaz IDC debe permitir ambas configuraciones T568A y T568B, indicando claramente, con etiquetas o rotulado, ambas configuraciones.
A64: 4.8 | B64: Debe tener puertos modulares que cumplan con IEC 60603-7 y FCC CFR 47, parte 68, subparte F, con contactos de 50 micropulgadas de oro sobre níquel.
A65: 4.9 | B65: Debe tener una estructura metálica para mayor protección y partes en termoplástico retardante a la flama libre de plomo, libre de PVC y libre de halógenos.
A66: 4.10 | B66: Los paneles deben ser modulares y sus conectores deben permitir la terminación de cables de hasta 9 mm de diámetro exterior y deben ser tipo IDC (insulation displacement connection – conexión por desplazamiento de aislante) que permitan la terminación de conductores sólidos y multifilares de varios calibres, desde 26 AWG hasta 22 AWG.
A67: 4.11 | B67: Para facilitar la administración y el acomodo de los cables en su parte posterior, el panel debe tener integrado un organizador posterior de cables.
A68: 4.12 | B68: El panel debe tener accesorios que permitan la puesta a tierra del panel y la conexión automática a tierra de los conectores blindados al momento de su inserción al panel.
A69: 4.13 | B69: Debe tener una altura que ocupe como máximo una (1) unidad de rack (1RMS = 44.5 mm [1.75 in]) para 24 puertos y de dos (2) unidades de rack para 48 puertos.
A70: 4.14 | B70: Debe cumplir o exceder las normas UL 60950-1, 1st Edition (2003) – Information Technology Equipment, ACA TS 001 y A/NZS 3260.
A71: 4.15 | B71: Cada panel debe contar con puertos redundantes para la conexión al bus de control del analizador. Las conexiones entre el bus de control y los paneles inteligentes deben realizarse con cable balanceado de 4 pares y permitir su terminación en sitio en conectores estándar 110 ó RJ45. No se aceptarán cables de fabricación especial ni cables cuya terminación requieran conectores especiales.
A72: 4.16 | B72: Debe ser 100% modular. Debe permitir la inserción de 24 puertos tipo keystone tanto blindados como no blindados; en caso de falla, debe permitir el reemplazo de cualquiera de sus conectores, sin que haya que desconectar los otros puertos ni interrumpir su monitoreo, y debe permitir el reemplazo de su módulo inteligente, sin que haya que desconectar sus puertos de cableado o interrumpir su servicio.
A73: 4.17 | B73: El sistema debe permitir que el personal técnico realice sus actividades de administración directamente en los analizadores y paneles inteligentes, sin que sea necesario que el técnico requiera el uso de una computadora, tablet ni conexión a internet. Las actividades de administración que el técnico debe poder realizar de esta forma incluyen rastreo de patch cords, identificación y trazado de circuitos, diagnóstico de componentes y cierre de órdenes de trabajo. Para lo anterior, cada panel inteligente debe contar sensores de puerto, pantalla LCD y LEDs indicadores.
A74: 4.18 | B74: Los paneles inteligentes de cobre no deben requerir su conexión directa al sistema eléctrico, su alimentación de energía debe ser por medio del cable de bus de control.
A75: 4.19 | B75: Debe tener un MTBF (Main Time Between Failures) de al menos 20 años.
A76: 4.20 | B76: Ficha técnica | C76: Del equipo ofertado (es obligatorio adjuntar la ficha técnica junto con el presente anexo)
A77: 5 | B77: PANELES INTELIGENTES DE FIBRA OPTICA (Aplica solo para Los paneles de fibra óptica del sistema de administración inteligente)
A78: 5.1 | B78: Cantidad | C78: De acuerdo al cuadro de cantidades
A79: 5.2 | B79: Marca | C79: Especificar
A80: 5.3 | B80: Modelo | C80: Especificar
A81: 5.4 | B81: Estar construidos en total conformidad con las normas ANSI/TIA-568-C.0, ANSI/TIA-568-C.3 e ISO/IEC 11801 Ed. 2 o sus más recientes versiones.
A82: 5.5 | B82: Cumplir con la norma CEA-310-E o su más reciente versión para asegurar que su montaje es compatible con racks de 19 in.
A83: 5.6 | B83: Debe tener una estructura metálica para mayor protección y partes en termoplástico retardante a la flama libre de plomo, libre de PVC y libre de halógenos.
A84: 5.7 | B84: En su compartimiento posterior, el panel debe tener integrados accesorios y organizadores para el acomodo y administración del cable de fibra óptica, reserva de cable y radios de curvatura. También debe permitir el montaje de bandejas de empalmes en caso de que estos se requieran para la terminación de la fibra óptica en pigtails.
A85: 5.8 | B85: Debe tener una altura que ocupe como máximo una (1) unidad de rack (1RMS = 44.5 mm [1.75 in]) para 24 Puertos y de dos (2) unidades de rack para 48 puertos
A86: 5.9 | B86: Debe cumplir o exceder las normas UL 60950-1, 1st Edition (2003) – Information Technology Equipment, ACA TS 001 y A/NZS 3260.
A87: 5.10 | B87: Debe tener una capacidad mínima de 48 fibras (24 puertos dúplex) en adaptadores LC a LC como tambien debe tener disponible la misma capacidad minima con conectividad MPO/MTP a LC.
A88: 5.11 | B88: Cada panel debe contar con puertos redundantes para la conexión al bus de control del analizador. Las conexiones entre el bus de control y los paneles inteligentes deben realizarse con cable balanceado de 4 pares y permitir su terminación en sitio en conectores estándar RJ45. No se aceptarán cables de fabricación especial ni cables cuya terminación requieran conectores especiales.
A89: 5.12 | B89: Debe permitir el reemplazo de su módulo inteligente, sin que haya que desconectar sus puertos de cableado o interrumpir su servicio.
A90: 5.13 | B90: El sistema debe permitir que el personal técnico realice sus actividades de administración directamente en los analizadores y paneles inteligentes, sin que sea necesario que el técnico requiera el uso de una computadora, tablet ni conexión a internet. Las actividades de administración que el técnico debe poder realizar de esta forma incluyen rastreo de patch cords, identificación y trazado de circuitos, diagnóstico de componentes y cierre de órdenes de trabajo. Para lo anterior, cada panel inteligente debe contar sensores de puerto, pantalla LCD y LEDs indicadores.
A91: 5.14 | B91: Los paneles inteligentes de fibra óptica no deben requerir su conexión directa al sistema eléctrico, su alimentación de energía debe ser por medio del cable de bus de control.
A92: 5.15 | B92: Debe tener un MTBF (Main Time Between Failures) de al menos 20 años.
A93: 5.16 | B93: Ficha técnica | C93: Del equipo ofertado (es obligatorio adjuntar la ficha técnica junto con el presente anexo)
A94: 6 | B94: PATCH CORDS DE PAR TRENSADO (patch cords de par trenzado del sistema de administración inteligente)
A95: 6.1 | B95: Cantidad | C95: De acuerdo al cuadro de cantidades
A96: 6.2 | B96: Marca | C96: Especificar
A97: 6.3 | B97: Modelo | C97: Especificar
A98: 6.4 | B98: Estar construidos en total conformidad con las normas ANSI/TIA-568-C.2 e ISO/IEC 11801 Ed. 2 o sus más recientes versiones.
A99: 6.5 | B99: Para Categoría 6A y/o 7A cumplir con las especificaciones para componentes Categoría 6A para 10 Gb/s con un ancho de banda hasta 500MHz y para componentes 7A 10Gb/s con un ancho de banda de hasta 1000Mhz.
A100: 6.6 | B100: Su interfaz modular (plug) debe permitir un mínimo de 1000 ciclos de inserciones en jacks RJ45.
A101: 6.7 | B101: Ser compatible retroactivamente con categorías inferiores.
A102: 6.8 | B102: Para Categoría 6A estar ensamblado en fábrica y verificado 100% en su transmisión con analizadores de red grado laboratorio para un desempeño apropiado hasta 500MHz. Para Categoria 7A estar ensamblado en fábrica y verificado 100% en su transmisión con analizadores de red grado laboratorio para un desempeño apropiado hasta 1000MHz.
A103: 6.9 | B103: Que sus pares estén blindados con aisladores metálicos patentados para un desempeño óptimo de NEXT y crimpeado a 360° para una excelente liberación de tensión en la unión de plug a cable sin causar deformación de pares.
A104: 6.10 | B104: Contar con un conductor adicional que asegure un monitoreo continuo fuera de banda -que no utiliza los pares que transmiten los datos y señales del cableado- para la detección automática y en tiempo real de conexiones y desconexiones.
A105: 6.11 | B105: Tener acceso a la punta de sensor en la parte posterior de la bota para pruebas y mapeo.
A106: 6.12 | B106: Usar plugs modulares que cumplan y excedan las especificaciones de las normas FCC CFR 47, parte 68 subparte F e IEC 60603-7.
A107: 6.13 | B107: Tener un mínimo de 50 micropulgadas de chapa de oro sobre contactos de níquel.
A108: 6.14 | B108: Ser resistente a la corrosión por humedad, temperaturas extremas y partículas suspendidas.
A109: 6.15 | B109: Estar disponible en longitudes estándar minimo de 1, 2, 3 y 5 metros con otras longitudes a medida bajo pedido.
A110: 6.16 | B110: Estar disponible en colores blanco, gris y azul para identificación de circuitos.
A111: 6.17 | B111: Estar certificado por Underwriters Laboratories (UL).
A112: 6.18 | B112: Contar con un noveno conductor y una punta de sensor con chapa de oro de 30 micropulgadas contenida en una robusta bota moldeada.
A113: 6.19 | B113: Incorporar un aislador interno de cordones multifilares dentro de un forro redondo, retardante a la flama que extienda la duración de su flexibilidad y mantenga la geometría de pares que haya que desconectar sus puertos de cableado o interrumpir su servicio.
A114: 6.20 | B114: Usar botas liberadoras de tensión (con iconos de identificación de colores opcionales) que aseguren su desempeño y protejan la presilla de pulgar contra atorones.
A115: 6.21 | B115: Ficha técnica | C115: Del equipo ofertado (es obligatorio adjuntar la ficha técnica junto con el presente anexo)
A116: 7 | B116: JUMPER DE FIBRA OPTICA (patch cords de fibra óptica del sistema de administración inteligente)
A117: 7.1 | B117: Cantidad | C117: De acuerdo al cuadro de cantidades
A118: 7.2 | B118: Marca | C118: Especificar
A119: 7.3 | B119: Modelo | C119: Especificar
A120: 7.4 | B120: Estar construidos en total conformidad con las normas ANSI/TIA-568-C.3 e ISO/IEC 11801 Ed. 2 o sus más recientes versiones.
A121: 7.5 | B121: Multimodo (MM) Utilizar cable de fibra dúplex multimodo 50/125µm que sea OFNR (grado riser) y cumpla los requisitos del NEC/NFPA 70 Sección 770-51(B).
A122: 7.6 | B122: Monomodo (SM) Utilizar cable de fibra dúplex monomodo que sea OFNR (grado riser) y cumpla los requisitos del NEC/NFPA 70 Sección 770-51(B).
A123: 7.7 | B123: Multimodo (MM) Cumplir con las especificaciones de la norma ISO/IEC 11801 para fibra tipo OM4.
A124: 7.8 | B124: Usar conectores y cable que cumplan con las especificaciones de código de color especificado en ANSI/TIA-568-C.3 y ANSI/TIA/EIA-598-C.
A125: 7.9 | B125: Incluir tapas que protejan los conectores y sus superficies de contacto contra daños y contaminación.
A126: 7.10 | B126: Estar disponible en longitudes estándar de 1, 2, 3 y 5 metros con longitudes a medida disponibles bajo pedido.
A127: 7.11 | B127: Multimodo (MM) Tener fibra optimizada para láser a 10 Gigabit que cumpla con los requisitos de IEEE 802.3ae (10 Gigabit Ethernet) así como con las especificaciones de IEC 60793-2-10 y TIA 492AAAC para retardo de modo diferencial de ancho de banda láser (DMD).
A128: 7.12 | B128: Tener una punta de sensor por cada conector dúplex para conectar con el sistema de parcheo inteligente.
A129: 7.13 | B129: Contar con un conductor que asegure un monitoreo continuo fuera de banda -que no utiliza los hilos de fibra que transmiten los datos y señales del cableado- para la detección automática y en tiempo real de conexiones y desconexiones.
A130: 7.14 | B130: Tener acceso a la punta de sensor en la parte posterior de la bota para pruebas y mapeo.
A131: 7.15 | B131: Tener un pulido superior de conector que cumpla con las especificaciones de Telcordia e ISO/IEC para geometría de superficie (incluyendo radio de curvatura, desfase de ápice y corte esférico).
A132: 7.16 | B132: Utilizar conectores con férulas de precisión de cerámica de circonio.
A133: 7.17 | B133: Ser resistente a la corrosión por humedad, temperaturas extremas y partículas suspendidas.
A134: 7.18 | B134: Estar certificado por Underwriters Laboratories (UL)
A135: 7.19 | B135: Multimodo (MM) Estar verificado al 100% en pruebas ópticas | C135: Ancho de banda mínimo de sobrellenado, 1500 MHz km@850 nm y 500MHz km@1300 nm Ancho de banda mínimo efectivo en láser, 2000 MHz km@850 nm Pérdida de inserción máxima 0.5 dB Pérdida de inserción típica 0.2 dB Pérdida de retorno mínima 30 dB Pérdida de retorno típica 35 dB
A136: 7.20 | B136: Monomodo (SM) Estar verificado al 100% en pruebas ópticas | C136: Pérdida de inserción máxima 0.4 dB Pérdida de inserción típica 0.1 dB Pérdida de retorno mínima 55 dB Pérdida de retorno típica 60 Db
A137: 7.21 | B137: Ficha técnica | C137: Del equipo ofertado (es obligatorio adjuntar la ficha técnica junto con el presente anexo)
A138: 8 | B138: SOFTWARE DE GESTION AUTOMATIZADA DE LA INFRAESTRUCTURA (AIM)
A139: 8.1 | B139: Marca | C139: Especificar
A140: 8.2 | B140: Modelo | C140: Especificar
A141: 8.3 | B141: El software de gestión automatizada de infraestructuras (AIM) ayudará a documentar y gestionar mejor las redes y dispositivos de TI.
A142: 8.4 | B142: AIM será un software altamente visual e intuitivo y proporcionará vistas gráficas de rack, planos de pisos y jerarquía de nodos de infraestructura.
A143: 8.5 | B143: Debe incluir protocolos de descubrimiento de red de varios niveles incorporados para encontrar todos los dispositivos y lugares basados en IP.
A144: 8.6 | B144: AIM proporcionará que tanto la capa física como las conexiones de dispositivos de red se actualicen automáticamente y proporcionen un seguimiento de circuito de extremo a extremo.
A145: 8.7 | B145: Otras herramientas incluyen análisis para ayudar a administrar la capacidad de TI y monitoreo de alarmas para detectar actividades no autorizadas o problemas de red.
A146: 8.8 | B146: Documentación | C146: Documentación y supervisión de la capa física en tiempo real, incluido el descubrimiento de dispositivos de TI, imágenes interactivas del suelo, elevaciones de rack y seguimientos de circuitos de extremo a extremo
A147: 8.9 | B147: Gestión de activos | C147: La base de datos en tiempo real con descubrimiento automático almacena el estado y la ubicación de todos los activos de cableado y TI para minimizar el tiempo de resolución de problemas y maximizar la utilización del equipo y el rack
A148: 8.10 | B148: Seguridad | C148: El software debe detectar y registrar toda la actividad física de la red y proporcionar alertas sobre el acceso no autorizado o la modificación en la capa física
A149: 8.11 | B149: Órdenes de trabajo | C149: Ser capaz de crear órdenes de trabajo y asignar, dirigir y rastrear tareas asociadas con estas órdenes, asegurando la precisión, eficiencia y documentación de la actividad de cambio.
A150: 8.12 | B150: Otras características | C150: Vista de pantalla personalizada para monitoreo NOC 24/7 del estado de la red y la alarma El software debe estar basado en HTML5 y ser capaz de integrarse con aplicaciones de 3ª parte a través de una API AIM estará disponible por activos montados en el piso (gabinete / rack) o ilimitados AIM incluirá soporte / mantenimiento gratuito el primer año sin costo y un año adicional previa solicitud. Los servicios de implementación de software pueden ser llevados a cabo por un representante OEM
A151: 8.13 | B151: Usuarios autorizados y acceso al software AIM | C151: Capacidad para crear usuarios y credenciales de seguridad de inicio de sesión en el software AIM. Acceso simultáneo ilimitado del usuario al software AIM sin costo adicional. Capacidad para restringir el acceso a ciertas funciones en el software AIM en función de la configuración del nivel de acceso. Capacidad para acceder al software AIM a través de dispositivos compatibles con un navegador web compatible y acceso a la red.
A152: 8.14 | B152: Capacidades de creación de bases de datos | C152: Crear dispositivos de cableado y puertos a través de la importación de archivos de Excel.
A153: 8.15 | B153: Capacidades de creación de bases de datos | C153: Posibilidad de importar planons de planta y dispositivos de superposición en estas imágenes.
C154: Cree elevaciones de rack/gabinete con vistas frontal y posterior.
C155: Incluir una amplia variedad de gráficos de dispositivos con el software AIM.
C156: Asignar automáticamente gráficos de dispositivo en el momento de la creación
C157: Capacidad para asignar automáticamente gráficos de dispositivos de red a medida que se descubren dispositivos.
C158: Detección y creación automáticas de dispositivos de red.
C159: Ubicar automáticamente los dispositivos finales de red detectados en su ubicación correcta en la base de datos.
C160: Actualizar automáticamente la base de datos AIM con información de parches de paneles inteligentes.
C161: Detectar automáticamente las conexiones/desconexiones de dispositivos de red y actualice la base de datos de AIM en consecuencia.
C162: Poseer una herramienta de construcción gráfica fácil de usar para construir, modificar o complementar .
C163: Capacidad para recopilar atributos de elementos de una variedad de fuentes (derivados de datos del sistema, ingresados / modificados manualmente, importados a través de Excel, descubiertos a través de SNMP v1, v2c o 3 u otras herramientas de descubrimiento de red, fuente de datos externa vinculada)
A164: 8.16 | B164: Alertas | C164: Los usuarios deben tener la capacidad de filtrar alertas basadas en la ubicación, día / hora, estado de la orden de trabajo, dirección IP, dirección MAC.
C165: Las opciones de alerta deben tener la capacidad de enviar información de alerta por correo electrónico.
C166: El sistema AIM también debe ser capaz de activar cámaras IP a una imagen en el área donde se produce la condición de falla.
C167: El sistema AIM también podrá enviar comandos SNMP en v1, v2c o v3 a concentradores y/o a dispositivos de red o aplicaciones de 3ros.
C168: El sistema AIM deberá tener la capacidad de ejecutar scripts en respuesta a alertas. Esto se puede utilizar para el intercambio de datos con software / bases de datos de3ª parte u otras aplicaciones definidas por el usuario.
C169: El usuarior deberá tener la capacidad de enviar notificaciones de alerta a varios usuarios. Cada notificación al usuario tendrá la capacidad de utilizar un filtro único.
C170: El software AIM proporcionará la capacidad de probar la conectividad entre el software AIM y el servidor de correo electrónico con un solo clic. El ensayo deberá proporcionar un indicador visual de aprobado o no aprobado.
C171: Los usuarios deben tener la capacidad de crear / personalizar scripts para disparadores de cámaras IP, comandos SNMP y capturas y scripts de alerta.
C172: En el sistema AIM se dispondrá de una amplia variedad de descripciones normalizadas. Estos incluyen alertas para dispositivos descubiertos, cambios de parches inteligentes y órdenes de trabajo.
A173: 8.17 | B173: Informes | C173: Se dispondrá de una amplia variedad de informes normalizados sobre capacidad, activos, costes y estado de las órdenes de trabajo y usuarios.
C174: Los administradores del sistema deben tener la capacidad de restringir el acceso a los informes por informe y usuario
C175: El software AIM tendrá la capacidad de enviar automáticamente informes por correo electrónico a los usuarios seleccionados en un horario predefinido.
C176: Los usuarios tendrán la opción de ver informes a través de un navegador web o generar un archivo de Excel
C177: El software AIM ofrecerá la posibilidad de filtrar informes por ubicación, tipo de dispositivo u hora.
A178: 8.18 | B178: Detección y supervisión automatizada de dispositivos de red | C178: Proporcionar a los administradores la capacidad de introducir información de detección de redes
C179: Descubrimiento SNMP compatible con v1, v2c y v3.
C180: Detección y creación automáticas de dispositivos con SNMP habilitado.
C181: Detectar automáticamente dispositivos sin SMP habilitado o capacidad (la información del dispositivo puede estar limitada a la dirección IP, MAC y nombre del dispositivo)
C182: Los administradores deben tener la capacidad de introducir la información del router para facilitar el descubrimiento adecuado de switches y dispositivos finales de red.
C183: Los administradores deben tener la capacidad de configurar períodos de sondeo de descubrimiento para rangos IP o dispositivos individuales.
C184: El software AIM continuará monitoreando los dispositivos descubiertos y actualizará automáticamente el estado de la conexión.
C185: La información de la VLAN del switch se rellenará automáticamente para cada puerto del switch (si está disponible). Esta información estará disponible como un atributo de puerto, así como en el diagrama de circuito en el software AIM.
C186: El software AIM debe tener la capacidad de etiquetar rangos IP como cableados, inalámbricos o conmutadores para ayudar a determinar la ubicación del dispositivo.
C187: Se mantendrá un registro de toda la actividad de descubrimiento de red en el software AIM y estará disponible a través de la visualización directa en el software y mediante la exportación de Excel.
A188: 8.19 | B188: Gestión de los Controladores | C188: El software AIM proporcionará una página dedicada para la configuración/gestión de los controladores.
C189: El software AIM descubrirá y creará automáticamente todos los paneles de control maestros. Estos paneles, junto con sus atributos, se mostrarán en la página Panel de control maestro
C190: Los administradores tendrán la capacidad de descargar nuevo firmware a los MCP a través de la página del Panel de control maestro
C191: La página Panel de control maestro proporcionará capacidades de depuración para solucionar problemas de MCP
C192: Todos los eventos relacionados con MCP se almacenarán en un registro. El registro debe poder verse desde la página del Panel de control maestro o exportarse a un archivo de Excel
A193: 8.20 | B193: El software y hardware de AIM cumplirá con los siguientes requisitos | C193: Los técnicos pueden ver los detalles de las órdenes de trabajo en el controlador y pantallas LCD de los paneles inteligentes de fibra y/o cobre.
C194: Los técnicos pueden ver la información de trazas del circuito en la pantalla LCD del controlador.
C195: Los paneles de conexión proporcionan una pantalla LCD que puede mostrar instrucciones de orden de trabajo de parches y proporcionar comentarios sobre parches correctos / incorrecto.
C196: El trazado del cable de conexión se puede realizar y mostrar en la pantalla LCD del controlador y en las pantallas LCD del panel.
C197: La pantalla LCD de los paneles inteligentes de fibray/o cobre muestra el nombre del panel y se puede actualizar mediante software si es necesario.
A198: 8.21 | B198: Ficha técnica | C198: Del equipo ofertado (es obligatorio adjuntar la ficha técnica junto con el presente anexo)
A199: 9 | B199: GARANTÍA CANAL
A200: 9.1 | B200: La garantía que deberá presentar el fabricante debe ser emitida por el mismo fabricante de la solución de cableado estructurado, y no por un instalador, por un tiempo mínimo de 25 años, en la que se especifique una garantía de fabricación de los componentes, performance, mano de obra y aplicaciones. Es requisito obligatorio anexar la carta del fabricante en donde se indique que se darán estos 4 tipos de garantía.
A201: 9.2 | B201: Estándares que cubre la garantía, mínimo los siguientes: | C201: 1. ISO/IEC 11801-1, ISO/IEC 11801-2, ISO/IEC 11801-3, ISO/IEC 11801-4, ISO/IEC 11801-5, ISO/IEC 11801-6 y enmiendas aplicables (clase EA y fibra)
C202: 2. Cualquier aplicación existente y futura aprobada por IEEE, ATM Fórum, ANSI o ISO que especifique compatibilidad con el canal instalado:
... 288 more rows

Sheet Datacenter_P
A2: ITEM | B2: DESCRIPCIÓN | C2: UND | D2: CANTIDAD | E2: VALOR UNITARIO | F2: VALOR PARCIAL
A3: 1 | B3: Bandeja FiberRunner, confinamiento DATACENTER | C3: gl | D3: 1 | F3: =E3*D3 -> 0
A4: 2 | B4: Cerradura con control de acceso 49 Racks | C4: und | D4: 49 | F4: =E4*D4 -> 0
A5: 3 | B5: Sensores de Datacenter | C5: und | D5: 49 | F5: 0
A6: 4 | B6: Confinamineto | C6: und | D6: 49 | F6: 0
A7: 5 | B7: Servicio de implementación, puesta en marcha, configuración y documentación de gabinetes por ingeniero especialista y certificado para proyecto C5 | C7: gl | D7: 1 | F7: 0
E8: SUBTOTAL | F8: =SUM(F3:F7) -> 0
E9: IVA | F9: =F8*19% -> 0
E10: TOTAL | F10: =F8+F9 -> 0

Sheet Red_Lan
B2: ESPECIFICACION DE CABLEADO ESTRUCTURADO , CLASE FA / CATEGORIA 7A S/FTP -RED DE SISTEMA TRONCAL DE FIBRA PLUG & PLAY – MÓDULOS MTP A LC OS2 - RACKS Y ACCESORIOS
A3: ITEM | B3: DESCRIPCIÓN | D3: CUMPLE | E3: NO CUMPLE
A4: 1 | B4: CERTIFICACIÓN DE CALIDAD Y FABRICANTE DE PRODUCTOS
A5: 1.1 | B5: Todo hardware de conexión y cable de telecomunicaciones debe estar manufacturado por un fabricante certificado ISO 9001-2015 / ISO 14001 - 2015.
A6: 1.2 | B6: Es requisito obligatorio que el proponente anexe la certificación Intertek- ETL con norma vigente TIA e ISO que muestre los requisitos de desempeño en cada una de las normas descritas a una longitud de 100 metros y cuatro conexiones Categoría 6A hasta 500 MHz con cordones 26AWG.
A7: 1.3 | B7: El requisito obligatorio que el proponente anexe catálogos originales (página web) en donde se demuestre que el cable cumple con los requisitos de flamabilidad, baja emisión de humo y halógenos cumpliendo IEC 60332-3, IEC 60754 e IEC 61034.
A8: 1.4 | B8: El fabricante deberá ser miembro activo de cualquiera de las siguientes alianzas de AV (HDBaseT, SDVoE, Dante AV, AVB (Audio Video Bridging) , la información podrá ser verificada en el sitio web de la alianza.
A9: 1.5 | B9: El fabricante hará una supervisión por parte de un ingeniero con matrícula profesional vigente y credencial RCDD que pertenezca a la nómina del fabricante para un soporte oportuno y cumplimiento de la supervisión exigida. Esta supervisión se hará durante la ejecución el proyecto. El RCDD debe aparecer vigente en la página de BICSI: Es requisito obligatorio que el proponente anexe una carta con el nombre del RDDD para verificación. https://www.bicsi.org/forms/Verify/CredentialHolder/.
A10: 1.6 | B10: El fabricante hará una supervisión al cuarto técnico/centro de datos por parte de un ingeniero con matrícula profesional vigente y credencial DCDC que pertenezca a la nómina del fabricante para un soporte oportuno y cumplimiento de la supervisión exigida. Esta supervisión se hará durante la ejecución el proyecto. El DCDC debe aparecer vigente en la página de BICSI.
A11: 1.7 | B11: Con el fin de proteger la inversión el fabricante debe tener la opción de actualización del sistema a categorías superiores como categoría 7A, 8.2 sobre los mismos paneles y faceplates del sistema apantallado sin cambiar ninguno de ellos. Es requisito obligatorio que se anexen los catálogos impresos o electrónicos de los productos que demuestren esto.
A12: 1.8 | B12: El proponente debe anexar un documento emitido por el fabricante que indique que está autorizado para instalar sus productos y que puede tramitar y emitir la garantía con el fabricante.
A13: 1.9 | B13: Se deben anexar los catálogos originales (página web) de la solución de cableado ofrecido. Cada catálogo debe mostrar el código del producto ofertado, estas mismas fichas técnicas deberán estar disponibles en la página web del fabricante. de presentarse alguna inconsistencia se verificará el número de parte en el sitio web del fabricante y debe coincidir con las especificaciones solicitadas en el presente documento.
A14: 1.10 | B14: No se aceptarán propuestas cuyo número de parte no se encuentre en el sitio web oficial del fabricante.
A15: 1.11 | B15: La instalación, documentación, componentes y sistemas deben cumplir o exceder las siguientes especificaciones de la industria: | C15: ISO 14763-2/2019, ISO/IEC 11801, ANSI/TIA-526-7-A, ANSI/TIA-526-14-C, ANSI/ TIA-606-D o ISO/IEC 14763-2-1 , ANSI/TIA-607-E y/o ISO/IEC 30129, IEEE 802.3an , IEC 61156-5
A16: 2 | B16: ESPECIFICACIONES DE COMPONENTES
A17: 2.1 | B17: Además de cumplir con las especificaciones de la ISO/IEC 11801-1 para CLASE FA, todos los componentes deben cumplir con los requisitos descritos en esta sección, el oferente incluirá las barras colectoras de tierra , terminales y cables requeridos por los estándares de tierra y equipotencialización.
A18: 2.2 | B18: El proponente deberá anexar certificado de garantía, la cual incluye un cuadro con los parámetros mínimos de desempeño y el margen garantizado basado en ISO/IEC en caso de que aplique , esto incluye los valores de PS ANEXT y PS AACR-F, PS NEXT entre otros.
A19: 2.3 | B19: Todos los componentes del canal de cobre y fibra deben ser de una sola marca a fin de garantizar el funcionamiento end-to-end del mismo. No se aceptarán oferta donde se mezclen componentes o subsistemas de más de un (1) fabricante o marca.
A20: 2.4 | B20: Se exigirá que el sistema de cableado estructurado tenga una garantía expedida por el fabricante por un mínimo de 25 años sobre todos y cada uno de los componentes instalados. Así mismo se requerirá garantía que certifique el funcionamiento de todas las aplicaciones diseñadas para correr en las redes descritas y del rendimiento garantizado. También se exigirá que todas las ofertas presentadas vengan acompañadas de una carta emitida por el fabricante en donde se avale el respaldo de este a la empresa oferente y se asuma un compromiso por la garantía.
A21: 2.5 | B21: Adicional a lo anterior, el fabricante incluirá dentro de la garantía de producto la reinstalación del producto para los cambios requeridos por este concepto.
A22: 2.6 | B22: Es requisito obligatorio que el proponente anexe con la propuesta los catálogos de los productos ofertados. Cada catálogo debe mostrar el código del producto ofertado, no se aceptarán propuestas con catálogos que contengan códigos diferentes a los ofertados o descripciones diferentes a las solicitadas en el presente documento, la información podrá consultarse en la página web del fabricante.
A23: 3 | B23: ESPECIFICACIONES RED HORIZONTAL
A24: 3.1 | B24: SALIDAS DE TELECOMUNICACIONES | C24: Todas las salidas de información Categoría 7A designadas para la terminación de cables de cobre de par trenzado balanceado Categoría 7A deben poseer como mínimo las siguientes características:
A25: 3.2 | B25: Los Outlets y plugs deben ser libre de halógenos, estar fabricados bajo las especificaciones contenidas en el estándar IEC 61076-3-104 última edición. Cumplir las especificaciones de desempeño eléctrico ISO/IEC Categoría 7A o superior.
A26: 3.3 | B26: Permitir su montaje en la placa frontal (faceplate) en orientación plana o, con la incorporación de un adaptador, en orientación angulada, esta última opción reduce la profundidad requerida en la caja/canaleta, protege mejor la conexión entre plug y Outlet y reduce la tensión en el cordón de parcheo
A27: 3.4 | B27: Utilizar diseño de cuadrante blindado para aislar completamente los pares., que permita compartir aplicaciones por medio de la instalación de múltiples plugs en la salida sin el uso de adaptadores
A28: 3.5 | B28: Permitir que todos los cuatro pares del cable sean terminados sin herramienta de impacto.
A29: 3.6 | B29: Exceder los requerimientos ISO/IEC 11801.
A30: 3.7 | B30: Las salidas incluirán una puerta frontal para evitar la exposición al polvo y otros contaminantes.
A31: 3.8 | B31: Que su interfaz (Outlet) permita una cantidad de ciclos de inserción de sus plugs (mayor) > a 750
A32: 3.9 | B32: Deben ser certificadas por Underwriters Laboratories.
A33: 3.10 | B33: Debe permitir su terminación con cables de 22 a 24 AWG de cable sólido y de cables flexibles.
A34: 3.11 | B34: Soportar PoE tipo 1,2,3, 4 (IEEE 802.3af ,IEEE 802.3at , 802.3bt) y POH.
A35: 3.12 | B35: Para el soporte de dispositivos IP de comunicaciones, seguridad o automatización, los conectores categoría 7A deben soportar hasta dos (2) aplicaciones PoE o PoE+ en aplicaciones Fast Ethernet 10/100.
A36: 3.13 | B36: Estar verificados por un laboratorio de tercera parte en el cumplimiento de la norma IEC 60512-99-001/002 para asegurar que el acoplamiento entre las superficies críticas de contacto (plug y outlet) no sufran daño al ser conectadas y desconectadas bajo carga eléctrica.
A37: 3.14 | B37: Las salidas se instalarán por encima de 12 “ del piso, de preferencia a 18” pulgadas del piso.
A38: 4 | B38: CORDONES DE COBRE
A39: 4.1 | B39: Todos los patch cords propuestos deben ser de 4 pares , la línea de producto propuesta debe cumplir además con:
A40: 2.1 | B40: Se debe tener la posibilidad de configurar patch cords de longitudes de 1, 2 y 3 metros y con cubiertas LSZH.
A41: 2.2 | B41: Tener disponible una versión de patch cord de 4 pares con conector estándar rectangular en un extremo y de tipo RJ45 blindada en el otro extremo.
A42: 2.3 | B42: Tener disponible una versión de patch cord de 2 pares con conector estándar rectangular en un extremo y de tipo RJ45 blindada en el otro extremo.
A43: 2.4 | B43: Tener disponible una versión de patch cord de 1 par para soportar aplicaciones análogas.
A44: 2.5 | B44: Tener disponible una versión de patch cord de 1 par para soportar aplicaciones de video.
A45: 2.6 | B45: Los patch cords empleados en el área de trabajo serán los mismos a emplearse en los espacios de telecomunicaciones.
A46: 2.7 | B46: Deben ser certificados por Underwriters Laboratories.
A47: 2.8 | B47: Las interfaces utilizadas en los plugs deben cumplir con la ISO/IEC 11801
A48: 2.9 | B48: El diámetro externo de los cordones independiente de la cantidad de pares usados no será mayor a 6.5mm
A49: 5 | B49: PANELES DE COBRE
A50: 5.1 | B50: Todos los paneles de terminación deben facilitar la conexión cruzada e interconexión usando cordones de parcheo, y deben estar en conformidad con los requerimientos de montaje en rack de 19 pulgadas estándar.
A51: 5.2 | B51: Permitir el uso de cualquier combinación de módulos IEC 61076-3-104, RJ45 blindados Cat 6A, al igual que en los faceplates. Se deben anexar catálogos de los productos que muestren esto.
A52: 5.3 | B52: Permitir el uso de otras salidas multimedia incluyendo fibra óptica y coaxial.
A53: 5.4 | B53: Tener los números de identificación de los puertos, y porta-etiquetas para acomodación de labels.
A54: 5.5 | B54: Ofrecer herrajes o patch panels 24 puertos por cada espacio de montaje en bastidor en un panel de 1U (1RMS = 44.5 mm [1.75 pulg.]).
A55: 5.6 | B55: Tener acomodadores de cable integrados en la parte trasera del panel para la organización y fijación del cableado.
A56: 5.7 | B56: Permitir la conexión automática a tierra de sus módulos blindados al ser insertados.
A57: 5.8 | B57: Es obligatorio que los herrajes integren en la parte posterior una barra de organización.
A58: 5.9 | B58: Los patch panels a instalar deben ser angulados. Para aquellos espacios donde se dificulte la instalación de paneles angulados se debe contar con la opción de paneles en versión plana
A59: 5.10 | B59: Los espacios no ocupados por outlets deben ser sellados con tapas de color negro de la misma marca de la red cableada.
A60: 6 | B60: CABLES
A61: 6.1 | B61: CABLES | C61: Los cables deben cumplir los siguientes requerimientos:
A62: 6.2 | B62: Estar en grupos de unidades de 4-pares.
A63: 6.3 | B63: Manejar anchos de banda de 1000MHz según lo especificado por el estándar ISO 11801 para categoría 7A.
A64: 6.4 | B64: El cable debe cumplir con IEC 61156-5, IEC 60754, IEC 60332-3, IEC 61034.
A65: 6.5 | B65: Es requisito obligatorio para su verificación anexar documentos que indiquen que el cable es de 1000 MHz con conductores calibre 23 AWG.
A66: 6.6 | B66: El cable debe venir marcado como Cat 7A. y con el nombre del fabricante que ofrece la conectividad.
A67: 6.7 | B67: El cable debe ser S/FTP con un foil recubriendo cada uno de los pares y una malla alrededor de los 4 pares.
A68: 6.8 | B68: El cable debe cumplir mínimo con los siguientes rangos de temperatura: Para Almacenamiento y para operación desde -20 ºC a +75 ºC.
A69: 6.9 | B69: Se verificará a través de un laboratorio reconocido por la NRTL (UL o ETL) las características de flamabilidad de la chaqueta IEC 60332-3.
A70: 6.10 | B70: El cable debe tener un diámetro máximo de 7.8 mm.
A71: 6.11 | B71: El cable categoría 7A debe haber sido probado por un laboratorio externo en función de los requerimientos ISO 11801 y IEC 61156.
A72: 6.12 | B72: La ficha técnica original del cable del fabricante deberá exhibir el desempeño típico en un modelo de canal de 100 metros a 1000 MHz , los requisitos mínimos solicitados se listan a continuación: Pérdidas de inserción :máxima 56 dB ACR mayor a 22.8 dB PSNEXT, mayor a 80 dB RL mayor a 24 dB
A73: 6.13 | B73: La información se podrá consultar a través de la página web oficial del fabricante.
A74: 7 | B74: PLACAS FRONTALES FACEPLATE
A75: 7.1 | B75: Los faceplates deben tener capacidad para alojar módulos de fibra óptica LC, módulos para aplicaciones de audio y HDMI, outlets de menor y superior desempeño a la propuesta en conformidad con ISO/IEC 11801-1. También deben tener porta etiquetas con protector transparente de acrílico.
A76: 7.2 | B76: Los faceplates deberán estar disponibles en configuración de uso vertical y en configuración de uso horizontal.
A77: 7.3 | B77: Se deberán ofrecer adaptador angulado por cada faceplate ofertado.
A78: 7.4 | B78: Deberán estar disponibles en varios colores y compatibles con categorías de mayor y menor desempeño según ISO/IEC.
A79: 7.5 | B79: Los espacios no ocupados deberán ser sellados con una tapa, esta será del mismo color del faceplate
A80: 7.6 | B80: Para salidas HDMI, debe proporcionarse un faceplate de la misma marca de la conectividad con adaptador HDMI hembra -hembra que facilite la conexión de los dispositivos desde la placa de pared/mesa de juntas.
A81: 8 | B81: PLACAS FRONTALES PARA CANALIZACIONES EN MOBILIARIO
A82: 8.1 | B82: Los faceplate ofertados serán compatible con la especificación de los outlets y estos serán instalados en la canalización provista por el fabricante de muebles, a continuación, las características que deben cumplir:
A83: 8.2 | B83: Los faceplates deben tener capacidad para alojar los outlets propuestos, y categorías de menor y superior desempeño acorde con la ISO/IEC 11801-1. También deben tener porta etiquetas con protector transparente de acrílico.
A84: 8.3 | B84: Los faceplates deberán ser de tipo piramidal y con adaptador angulado con el fin de proporcionar un mayor espacio y cuidar los radios mínimos de curvatura del cable., su profundidad será mayor a 1 pulgada.
A85: 8.4 | B85: Los Faceplates para mobiliario solicitados deben ser compatibles con troquelados entre 67 mm y 76 mm de ancho
A86: 8.5 | B86: Los Faceplates para mobiliario solicitados deben ser compatibles con troquelados entre 33 mm y 44 mm de alto
A87: 8.6 | B87: Deben ser de la misma marca de la conectividad propuesta y deben ser libres de halógeno.
A88: 8.7 | B88: Los espacios no ocupados serán sellados con el accesorio del fabricante de cableado de cobre y fibra.
A89: 8.8 | B89: PRUEBAS | C89: Antes del cierre del sistema se deben hacer las pruebas de todos los canales de cables recientemente instalados.
A90: 8.9 | B90: Prueba del canal de cable de cobre | C90: Todas las pruebas de campo de la Categoría 7A /Clase Fa deben ser realizadas con un dispositivo aprobado de prueba de campo de par trenzado balanceado bajo IEC 61935 y/o aprobados por el fabricante de cableado estructurado. Todos los canales instalados de la Categoría 7A /Clase Fa deben funcionar igual o mejor que los requerimientos mínimos especificados en la tabla a continuación:
A91: 8.10 | B91: Parámetro | C91: 1000 MHz
B92: Pérdida de inserción (Máximo) | C92: 67.6 dB
B93: Pérdida NEXT (Mínimo) | C93: 47.9 dB
B94: PS NEXT(Mínimo) | C94: 44.9 dB
B95: ACR (Mínimo) | C95: -19.6 dB
B96: PS ACR (Mínimo) | C96: -22.6 dB
B97: ELFEXT (Mínimo) | C97: 27.4dB
B98: PS ELFEXT (Mínimo) | C98: 24.4 dB
B99: Pérdida del retorno (Mínimo) | C99: 6.0 dB
B100: Retardo de Prop (Mínimo) | C100: 545 ns
B101: Retardo de sesgo (Mínimo) | C101: 30 ns
A102: 8.11 | B102: Todos los cables de backbone de par trenzado balanceado que excedan 90 m (295 ft) o 100 m (328 ft) deben ser probados al 100% por continuidad si no se requieren aseguramiento de las aplicaciones.
A103: 8.12 | B103: Los cables horizontales y de backbone de par trenzado balanceado Categoría 7 A /Clase Fa, cuya longitud no exceda 90 m (295 ft) para el enlace básico y 100 m (328 ft) para el canal serán probados al 100 por ciento de acuerdo con ISO/IEC 11801: Los parámetros de prueba incluyen el mapa de cables más la continuidad del blindaje SFTP (cuando esté presente), pérdida de inserción, longitud, pérdida NEXT (par a par), pérdida NEXT (sumatoria de potencias), pérdida ELFEXT (par a par), pérdida ELFEXT (sumatoria de potencias), pérdida del retorno, pérdida de inserción, demora de la propagación, Resistencia de bucle, Resistencia de desbalance.
A104: 9 | B104: PUNTOS DE CONSOLIDACION/PUNTO DE CONCENTRACIÓN DE SERVICIO
A105: 9.1 | B105: En caso de requerir puntos de consolidación o puntos de concentración de Servicio, estos se instalarán en los lugares definidos en una caja metálica de pared/techo, esta caja protegerá los elementos allí incluidos y será de la misma marca de la conectividad y el cable.
A106: 9.2 | B106: Solo se permitirán plugs 7A armados en campo que estén habilitados por el fabricante para trámite de garantía extendida y que cumplan las especificaciones descritas en el capítulo de PLUGS (Numeral 8, a continuación, descripción de los requisitos de configuración propuestos para el cableado Zonal
A107: 9.3 | B107: Desde el patch panel ubicado en el espacio de telecomunicaciones se extenderá el cable solido conectado a un Outlet 7A que se instalará en la caja de zona, la instalación del outlet incluirá todos los elementos necesarios para su correcta instalación y cumplirá los requisitos del numeral 1 y 7.:
A108: 9.4 | B108: Cumpla o exceda las especificaciones de desempeño eléctrico de mínimo Cat 7A, según el estándar ISO-IEC 61076-3-104.
A109: 9.5 | B109: Utilice diseño de cuadrante blindado para aislar completamente los pares.
A110: 9.6 | B110: Permita que todos los cuatro pares del cable sean terminados sin utilizar herramienta de impacto.
A111: 9.7 | B111: La mínima longitud de horizontal del cable entre el cuarto de comunicaciones y el punto de consolidación debe ser 15mts (50ft)
A112: 9.8 | B112: La mínima longitud de horizontal del cable entre el punto de consolidación y el área de trabajo debe ser 5mts (16ft)
A113: 10 | B113: CONECTOR 7A MACHO/PLUGS PARA CAJA DE ZONA
A114: 10.1 | B114: Para extender el cableado desde la caja zonal se conectará un plug de terminación en campo al outlet de la caja, ver numeral 7, de este saldrá el cable sólido conectado a un plug 7A. Este plug debe cumplir con:
A115: 10.2 | B115: Las versiones de 4 pares deben exceder las especificaciones de desempeño eléctrico ISO/IEC Clase FA/Categoría 7 A.
A116: 10.3 | B116: Las versiones de 4 pares deben utilizar diseño de cuadrante blindado para aislar completamente las partes.
A117: 10.4 | B117: Proporcionar una instalación rápida y fácil con una sola herramienta para preparar y terminar los cables.
A118: 10.5 | B118: Las versiones de 4 pares deben exceder los requerimientos ISO/IEC 11801
A119: 10.6 | B119: Tener botas disponibles en negro, blanco, rojo, amarillo, azul y verde para la identificación de los puertos
A120: 10.7 | B120: Compatible con cables S/FTP sólidos 22 AWG y 23 AWG
A121: 10.8 | B121: Deben ser certificadas por UL.
A122: 11 | B122: CONECTOR 6A MACHO/PLUGS PARA CONEXIÓN DE EQUIPO
A123: 11.1 | B123: Solo para dispositivos de techo o pared que requieran conexión directa se podrá adicionar un plug de terminación en campo Cat6A compatible con el cable S/FTP, este debe cumplir con:
A124: 11.2 | B124: En algunos casos para dispositivos de techo Digital se podrá terminar el cable sólido 7A en un plug habilitado para terminación en campo Cat 6A, el plug deberá ser de la misma marca de la conectividad y cable,
A125: 11.3 | B125: El Plug debe permitir su re-terminación y soportar más de 750 ciclos de inserción.
A126: 11.4 | B126: Se debe adicionar guía de desconexión color negro, rojo, verde, violeta y amarillo para identificar los servicios.
A127: 12 | B127: CAJA DE ZONA
A128: 12.1 | B128: La caja de zona sirve para albergar el punto de consolidación o HCP que facilita la realización de MACs (movimientos, adiciones y cambios) en el cableado hacia las salidas de equipo de voz, datos, video, seguridad, automatización, iluminación y demás aplicaciones de baja potencia.
A129: 12.2 | B129: Solo se permitirán plugs 7A armados en campo en la caja de zona, la caja de zona debe tener las siguientes características:
A130: 12.3 | B130: Permitir el montaje de hasta 24 salidas planas Categoría 7A, así como módulos de fibra óptica.
A131: 12.4 | B131: Permitir su montaje arriba del techo falso, debajo del piso falso y en pared.
A132: 12.5 | B132: Cumplir con las certificaciones UL siguientes: UL 1863 Norma para accesorios y circuitos de comunicaciones. UL 2043 Prueba de fuego de emisiones de calor y humo visible para productos discretos y sus accesorios instalados en espacios de manejo de aire (ambientes plenum). UL 2416 Sistemas de racks, gabinetes y cajas para tecnologías de la información y comunicaciones y audio y video.
A133: 12.6 | B133: Tener juntas de espuma para reducir al mínimo las vibraciones y evitar que entre polvo en la caja.
A134: 12.7 | B134: Cumplir con la directiva RoHS al estar libre de plomo, libre de halógenos y libre de PVC.
A135: 12.8 | B135: La cubierta debe ser totalmente extraíble a través de cierres de apertura rápida, proporcionando un fácil acceso a las conexiones; tener un pestillo para asegurar la cubierta a la base y tener un espacio de etiquetado integrado para la identificación de puertos y documentación de la red.
A136: 12.9 | B136: Estar construido con acero laminado en frío y recubrimiento de pintura en polvo
A137: 12.10 | B137: Ficha técnica | C137: Del equipo ofertado (es obligatorio adjuntar la ficha técnica junto con el presente anexo, que permita confirmar el cumplimiento de las especificaciones técnicas mínimas aquí indicadas)
A138: 13 | B138: II. ESPECIFICACIONES DEL SISTEMA TROCAL DE FIBRA OPTICA PRECONECTORIZADA
A139: 13.1 | B139: En caso de requerir fibra óptica en el proyecto se deben cumplir las siguientes especificaciones. Además de cumplirse con las especificaciones descritas en las normas en la ISO/IEC 11801 y TIA deben cumplirse los requisitos de esta sección, los cuales son aplicables a todos los componentes de fibra óptica descritos a continuación. El backbone del edificio se manejará con fibra óptica pre-terminada en conectores MTP/MPO – MTP/MPO de uso interior multimodo de 12 hilos 9/125 OS2, esta red se distribuye desde el cuarto técnico principal, hasta cada uno de los cuartos de telecomunicaciones en topología estrella.
A141: 14 | B141: SISTEMA DE TRONCALES DE FIBRA ÓPTICA PRECONECTORIZADAS
A142: 14.1 | B142: Para las conexiones de óptica paralela se requieren enlaces MTP de 12 y/o 8 Fibras en cada extremo, los tendidos en fibra interior deben ser pre-conectorizados OS2, tipo LS0H-3, con la polaridad requerida para la conformación del canal.
A143: 14.2 | B143: Se solicita Fibra óptica (OS2) de 12 Hilos MTP a MTP.
A144: 14.3 | B144: Los cables basados en 8 Fibras deben distinguirse físicamente de los cables basados en 12 Fibras, esto se debe evidenciar en el catálogo de los cables troncales.
A145: 14.4 | B145: La pérdida máxima de la interfaz será de 0.3dB
A146: 14.5 | B146: Debe tener cubierta de tipo Low Smoke Zero Halogen LS0H-3
A147: 14.6 | B147: Estar construidos a la medida y probados en fábrica para asegurar su calidad y desempeño óptico.
A148: 14.7 | B148: Disponibles en al menos dos colores (aqua y otro) para poder hacer segregación de servicios y/o aplicaciones.
A149: 14.8 | B149: Estar disponible en configuraciones de 12, 24, 36, 48, 72, 96 y 144 hilos, en donde cada subgrupo de 12 hilos tenga una cubierta con diámetro exterior no mayor a 3 mm, para un mejor provecho del espacio en canalizaciones y organizadores de cables.
A150: 14.9 | B150: Debe incluir mínimo una manga de tracción que facilite el proceso de instalación.
A151: 14.10 | B151: Debe permitir configurar el pinado (género) del conector MTP.
A152: 14.11 | B152: Temperatura de Operación de -20°C a 70°C
A153: 14.12 | B153: Debe cumplir estándares como: ISO/IEC 11801-1, ANSI/TIA 568.3, IEC 61300-3-30.
A154: 14.13 | B154: Deben tener la opción de extender su longitud para permitir adiciones a enlaces Plug & Play a través de la opción de configuración de su número de parte.
A155: 14.14 | B155: Debe tener la posibilidad de configurarse con armadura o sin armadura.
A156: 14.15 | B156: Debe cumplir con los métodos de polaridad definidos por el estándar (A, B y C), se ofrecerá la polaridad requerida para las aplicaciones de óptica paralela.
A157: 14.16 | B157: Se debe adjuntar reporte IEC para el cable troncal, este será emitido por un laboratorio aprobado por ISO 17025
A158: 14.17 | B158: Deberá ser de la misma marca de conectividad.
A159: 15 | B159: DISTRIBUIDORES DE FIBRA ÓPTICA DISTRIBUIDOR PRINCIPAL DE AREA (MDA/ Equipment Room)
A160: 15.1 | B160: A continuación, se anexa la especificación que deben cumplir las bandejas de fibra óptica en el cuarto de equipos “ER”, Esta bandeja consolidará todos los enlaces, , los espacios no ocupados deberán integrar tapas ciegas, la solución deberá ser de la misma marca de la red de cobre
A161: 15.2 | B161: Deben tener un diseño compacto de 1, 2 o 4 RU de acuerdo con el diseño propuesto; cada unidad de rack debe tener capacidad de concentrar 96 Fibras óptica en terminaciones LC.
A162: 15.3 | B162: Las bandejas deben estar en capacidad de utilizar placas adaptadoras de fibra ST, FC, LC, SC,MTP-MTP, bandejas de empalme, Módulos MTP a LC y módulos de empalme.
A163: 15.4 | B163: Debe incluir puerta frontal y posterior translúcidas con llave, las puertas deben tener cierre magnético y ser completamente removibles.
A164: 15.5 | B164: Debe integrar un porta etiquetas desplegable al que se puede acceder incluso cuando la puerta está cerrada.
A165: 15.6 | B165: Tener una cubierta superior removible.
A166: 15.7 | B166: Tener una bandeja deslizante que se desplaza desde la parte delantera y trasera de la estructura, totalmente desmontable para un mayor acceso y con puntos de parada en su proceso
A167: 15.8 | B167: Debe Incorporar un soporte de cable trasero y un soporte de gestión de fibra desmontable y guiado en el punto de entrada de fibra para garantizar que exista una holgura adecuada del cable al extender la bandeja hacia adelante y hacia atrás.
A168: 15.9 | B168: Debe utilizar administradores de cables frontales con bisagras capaces de administrar las 96 fibras en uno o ambos lados.
A169: 15.10 | B169: Los soportes de montaje deben permitir instalar la bandeja en el rack en al menos tres posiciones.
A170: 15.11 | B170: Sobre los soportes de montaje debe tener orificios abiertos que permiten preinstalar la bandeja.
A171: 15.12 | B171: Utilice clips de administración de cables traseros de dos niveles a presión que permiten múltiples opciones de montaje y enrutamiento de cables
A172: 15.13 | B172: Tener un panel de etiquetado que se pueda ver con las puertas cerradas.
A173: 15.14 | B173: La bandeja deberá tener reporte de tercera parte en conformidad a IEC.
A174: 15.15 | B174: Debe incluir las tapas ciegas necesarias para no dejar espacios vacíos
A175: 16 | B175: DISTRIBUIDORES DE FIBRA ÓPTICA EN CUARTOS DE EQUIPOS (Telecomunication Room)
A176: 16.1 | B176: A continuación, se anexa la especificación que deben cumplir las bandejas de fibra óptica de los distribuidores de Piso, , los espacios no ocupados deberán integrar tapas ciegas , la solución deberá ser de la misma marca de la red de cobre.
A177: 16.2 | B177: Deben tener un diseño compacto de 1Unidad de Rack.
A178: 16.3 | B178: Las bandejas deben estar en capacidad de utilizar placas adaptadoras de fibra ST, FC, LC, SC,MTP-MTP, bandejas de empalme, Módulos MTP a LC y módulos de empalme.
A179: 16.4 | B179: Debe incluir puerta frontal removible para habilitar la marcación del sistema.
A180: 16.5 | B180: Debe incluir al menos dos ingresos de cables en la parte posterior.
A181: 16.6 | B181: Los Ingresos de cables debe integrar Grommets para asegurar y proteger el cable.
A182: 16.7 | B182: Debe tener bandeja deslizante hacia adelante
A183: 16.8 | B183: Debe Incorporar anillos para la gestión y organización de fibra y jumpers
A184: 16.9 | B184: Debe utilizar base sólida frontal integrada en la misma unidad de rack para la gestión de los Jumpers, no se requerirá organizador horizontal para la salida de los jumpers.
A185: 16.10 | B185: Los soportes de montaje deben permitir instalar la bandeja en el rack en al menos tres posiciones.
A186: 16.11 | B186: Sobre los soportes de montaje debe tener orificios abiertos que permiten preinstalar la bandeja.
A187: 16.12 | B187: Debe incluir velcros, amarres y tornillería para la organización de la fibra óptica.
A188: 16.13 | B188: La bandeja deslizable puede ser totalmente removible, para facilitar la terminación de la fibra óptica.
A189: 16.14 | B189: De requerirse se podrán adicionar presta estopas (glándulas) en lugar de los grommets para mejorar el aseguramiento de los cables
A190: 16.15 | B190: Debe incluir las tapas ciegas necesarias para no dejar espacios vacíos
A191: 17 | B191: CORDONES DE FIBRA ÓPTICA MTP (JUMPERS)
A192: 17.1 | B192: Los jumpers deberán tener reporte de tercera parte en conformidad a IEC, además debe cumplir con las siguientes características:
A193: 17.2 | B193: Deberá tener la posibilidad de configurarse en diferentes longitudes. La longitud estará basada en la disposición de los equipos y las bandejas de fibra óptica, no se aceptará holgura excesiva de cable dentro de los racks.
A194: 17.3 | B194: Deberán utilizar cable con diámetro externo menor a 3 mm.
A195: 17.4 | B195: Deben incorporar la opción de cambiar la polaridad en sitio, así como el género del conector, la herramienta debe estar disponible como número de parte en la ficha técnica del fabricante de la solución.
A196: 17.5 | B196: Se deben poder ofrecer opciones de conector basados en 8 fibras o 12 Fibras.
A197: 17.6 | B197: Los cables basados en 8 Fibras deben tener un distintivo de los cables de 12 fibras, esta información se debe verificar en el sitio web del fabricante.
A198: 17.7 | B198: El conector debe cumplir las especificaciones de IEC 61754-7
A199: 17.8 | B199: Atenuación máxima del cable 0.4/0.4/0.3 en 1310/1383/1550nm respectivamente
A200: 17.9 | B200: Deberán estar verificado al 100% en pruebas ópticas para cumplir con las siguientes especificaciones de desempeño para 9/125:
A201: 17.10 | B201: Pérdida de Inserción Máxima del conector en (dB): 0.3
A202: 17.11 | B202: Mono marca con la solución de conectividad y fibra.
... 149 more rows

Sheet Red_Lan_P
A2: ITEM | B2: DESCRIPCIÓN | C2: UND | D2: CANTIDAD | E2: VALOR UNITARIO | F2: VALOR PARCIAL
A3: 1 | B3: Suministro e instalación de Gabinete V800, ancho 800mm, profundidad 1200mm, alto 45RU, puerta frontal simple micro perforada, puerta trasera doble micro perforada, Negro (RAL 9011), ORGANIZADOR TIPO SPOOL VP-SPL, PARA ORGANIZADOR VERTICAL Ref. VP-SPL, KIT TIERRA VP-GRD, PARA GABINETE Y RACK 19";PN" , BANDEJA VERTICAL V-TRAY-150-1-45, 150MM 45U, PARA V600-V800 , Organizadores de cable horizontal, frontal, ranurado con tapa, 2RU, negro R, Organizadores verticales, frontal, ranurado con tapa, 6”, 45RU, negro, instalable en gabinete de piso V800 . PDU, Monitoreada Unit Level EC, 30A, 208V, 4.9kW, Vertical, (36) IEC C13, (6) IEC C19, 10ft power cord con L6-30P, 2 Unidades por Gabinete y se incluyen (87) Blancking panels | C3: und | D3: 8 | F3: =E3*D3 -> 0
A4: 2 | B4: Suministro e instalación de Cable troncal de fibra óptica 12 hilos, MTP-MTP, hembra/hembra, monomodo OS1/OS2, 50 metros, plug y play, polaridad C, color AMARILLO, pulling eye Incluye Certificación y garantía de 20 años de fabricante LightVerse Pro, 1UR, bandeja deslizante, instalación modular, 4 aberturas Incluye Certificación y garantía de 25 años de fabricante. Incluye 4 fibras para sistema de VideoWall entre datacenter y gabinetes de VideoWall y 4 enlaces de cuarto de ingreso proveedores a cada Core. | C4: und | D4: 24 | F4: =E4*D4 -> 0
A5: 3 | B5: Troncal Plug & Play, pérdida ultrabaja, 12 hilos, RazorCore, XGLO, monomodo solución MTP base 12, solución MTP base 12, polaridad B, OS2, 9/125, LSOH-3C, 1 Manga de tracción, Baja pérdida | C5: und | D5: 92 | F5: 0
A6: 4 | B6: Suministro e instalación de Punto de red, Herraje angulado de 24 puertos blindado, para jacks Z-MAX y TERA, vacío, 19", Ref.TM-PNLZ-24-01, JACK TERA T7F-01-1,CAT 7A,BLINDADO, NEGRO, PC TERA T4A-S02M-B06L 4P-RJ45 CAT 6A MARFIL, BOTA AZUL 2M CABLE SFTP 9T7L4-E10 CAT 7A LSZH 1-3-22 VIOLETA 305M 23AWG (82.810 metros Aprox), Patch cord de 4 pares TERA a RJ45, blindado S/FTP, marfil, bota blanca, 3m Incluye puntos de consolidación (63 unidades). Incluye Certificación y garantía de 25 años de fabricante | C6: und | D6: 710 | F6: =E6*D6 -> 0
A7: 5 | B7: Suministro e instalación de Punto de red lug categoría 6S Zplug terminación directa para cámaras, Control de acceso y Access Point, Herraje angulado de 24 puertos blindado, para jacks Z-MAX y TERA, vacío, 19"", JACK TERA T7F-01-1,CAT 7A,BLINDADO, NEGRO, PC TERA T4A-S02M-B06L 4P-RJ45 CAT 6A MARFIL, BOTA AZUL 2M , CABLE SFTP 9T7L4-E10 CAT 7A LSZH 1-3-22 VIOLETA 305M 23AWG (35.329 metros aproximadamente, incluye cable de los puntos de red terminado en Zplug), (1) Patch cord de 4 pares TERA a RJ45 para conexión Patchpanel-Switch, blindado S/FTP, marfil, bota blanca, 3m . Incluye Certificación y garantía de 25 años de fabricante | C7: und | D7: 619 | F7: 0
E8: SUBTOTAL | F8: =SUM(F3:F7) -> 0
E9: IVA | F9: =F8*19% -> 0
E10: TOTAL | F10: =F8+F9 -> 0

Sheet Gabinetes
B2: GABINETES PARA CENTRO DE DATOS
A3: ITEM | B3: DESCRIPCIÓN | D3: CUMPLE | E3: NO CUMPLE
A4: 1 | B4: GABINETES
A5: 1.1 | B5: Cantidad | C5: De acuerdo al cuadro de cantidades
A6: 1.2 | B6: Marca | C6: Especificar
A7: 1.3 | B7: Modelo | C7: Especificar
A8: 1.4 | B8: Tener dimensiones generales de 1200mm de profundidad, 800 mm de ancho y 42 RU de alto y chapa con llave, la chapa debe poder permitir la instalación de lector biométrico o teclado.
A9: 1.5 | B9: La profundidad riel a riel máxima (sin soporte/organizadores, ni tapas laterales) será de al menos 1006 mm y el gabinete permitirá el montaje de bandejas porta equipos de 4 postes de estas mismas dimensiones.
A10: 1.6 | B10: Estar disponible con patrón de perforación cómo mínimo el 70% en puertas frontales y traseras para maximizar la eficiencia en el flujo de aire.
A11: 1.7 | B11: Tener disponibles puertas divididas con las mismas características de perforación, niveladores y juego de al menos 50 tuercas cuadradas para instalación de equipos.
A12: 1.8 | B12: Tener 42 UR con perforaciones de montaje CEA-310E.
A13: 1.9 | B13: El fabricante del gabinete debe tener disponible opción de gabinetes de mayor altura a la requerida.
A14: 1.10 | B14: Debe tener certificación ETL.
A15: 1.11 | B15: Disponible en color negro.
A16: 1.12 | B16: Estar construidos en acero con una capacidad de carga estática de (1000 Kg).
A17: 1.13 | B17: Estar construidos en acero con una capacidad de carga dinámica de (714 Kg).
A18: 1.14 | B18: Tener un acceso de piso totalmente abierto que facilite el ingreso de cableado.
A19: 1.15 | B19: Debe ofrecerse acceso superior de cables en sus laterales , se incluirán al menos (4) cuatro pasa cables tipo escobilla en los accesos de cableado lateral del gabinete.
A20: 1.16 | B20: Solo para los gabinetes principales MDA/HDA, en su base superior se debe ofrecer la cantidad necesaria de pasacables centrales que permitan consolidar la totalidad de enlaces, estos pasacables, serán adicionales a los pasables laterales.
A21: 1.17 | B21: Deberá incluir organizadores verticales frontales, estos deberán incluir tapas frontales y base con pasantes redondeados para mejorar la organización del gabinete, la profundidad de los organizadores se acomodará a la cantidad de cables a instalar, proyectando un crecimiento de al menos el 25%.
A22: 1.18 | B22: Los dedos de los organizadores estarán en presentación de 4 pulgadas y 6 pulgadas.
A23: 1.19 | B23: Deben poder alojar kit de tierras de la misma marca del gabinete, este debe ser para montaje en las 19 pulgadas.
A24: 1.20 | B24: Se incluirán tapas laterales para la instalación de los sistemas de distribución de energía del gabinete (Power Strips/PDUs para rack).
A25: 1.21 | B25: Se incluirán tapas laterales entre los rieles frontales y posteriores para la organización del cableado horizontal, estas tapas tendrán un patrón de perforación que facilite la instalación de velcro en los grupos de cables.
A26: 1.22 | B26: Para los espacios que no están siendo ocupados y a fin de controlar el circuito de aire de bypass se deberán instalar paneles ciegos horizontales y verticales
A27: 1.23 | B27: En caso de requerir pasar cables desde la parte frontal del gabinete, hacia la parte de atrás de este, se debe incluir un ducto con o sin tapa de la misma marca del gabinete que facilite la comunicación y enrutado de cables, este accesorio deberá ser instalado entre el riel y la tapa lateral de tal forma que no limite la instalación de equipos y/o componentes pasivos.
A28: 1.24 | B28: Para los equipos que no pueden instalarse en las 19” debe considerarse bandejas porta equipos de 4 puntos , UL 2416 y con soporte de al menos 130 kg de peso.
A29: 1.25 | B29: Para la organización del cableado debe considerarse la instalación de organizadores Horizontales con dedos de 6 pulgadas de profundidad para la red de cobre y de 4 pulgadas en donde se requiera una menor densidad.
A30: 1.26 | B30: Para cordones de energía que requieran ser organizados se deberá adicionar un accesorio que elimine la necesidad de que los cordones caigan al piso o a los equipos adyacentes.
A31: 1.27 | B31: Los anteriores elementos serán de la misma marca del cable y de la Conectividad.
A32: 1.28 | B32: Los gabientes deben contar con el espacio para la instalacion del control de acceso biometrico
A33: 1.28 | B33: Ficha técnica | C33: Del equipo ofertado (es obligatorio adjuntar la ficha técnica junto con el presente anexo)
A34: 2 | B34: ORGANIZADOR HORIZONTAL DE 2 RU
A35: 2.1 | B35: Cantidad | C35: De acuerdo al cuadro de cantidades
A36: 2.2 | B36: Marca | C36: Especificar
A37: 2.3 | B37: Modelo | C37: Especificar
A38: 2.4 | B38: Tipo | C38: Estos organizadores serán usados para enrutar cables que salen o vienen de los patch panel o switches instalados en el rack, deben ser fabricados por el mismo fabricante de los racks, el organizador de cable horizontal deberá montarse arriba y debajo de cada switch al frente del rack o gabinete, por cada panel de 24 puertos se debe proporcionar un organizador de 2RUs
A39: 2.5 | B39: Tener disponibles versiones de 2 y 4 Unidades de Rack
A40: 2.6 | B40: Tener cubiertas para retener y mantener protegidos los cordones de equipo o patch cords.
A41: 2.7 | B41: Tener múltiples accesos para el fácil enrutado de cables hacia atrás del organizador.
A42: 2.8 | B42: Tener redondeados todos los puntos de paso y enrutado de patch cords para evitar deformaciones y daños a éstos.
A43: 2.9 | B43: Tener cubiertas con bisagras que permitan su apertura hacia arriba y hacia abajo.
A44: 2.10 | B44: Sus dedos tendrán una profundidades de 6 pulgadas.
A45: 2.11 | B45: Los organizadores deben incluir pasantes ovalados o semicirculares en la base del organizador.
A46: 2.12 | B46: Deben ser de la misma marca de los Racks y de la conectividad de cobre y Fibra
A47: 2.13 | B47: Ficha técnica | C47: Del equipo ofertado (es obligatorio adjuntar la ficha técnica junto con el presente anexo)
A48: 3 | B48: GARANTÍA GABIENTE
A49: 3.1 | B49: La garantía que deberá presentar el fabricante debe ser emitida por el mismo fabricante de la solución de cableado estructurado, y no por un instalador, por un tiempo mínimo de 5 años

Sheet Gabinetes_P
A2: ITEM | B2: DESCRIPCIÓN | C2: UND | D2: CANTIDAD | E2: VALOR UNITARIO | F2: VALOR PARCIAL
A3: 1 | B3: Gabinete , 800MM X 1200MM, 45RU, Negro, Organizadores verticales ( se inclyen 479 Blancking panels ) | C3: und | D3: 49 | F3: =E3*D3 -> 0
A4: 2 | B4: PDU monitoreable | C4: und | D4: 98 | F4: =E4*D4 -> 0
E5: SUBTOTAL | F5: =SUM(F3:F4) -> 0
E6: IVA | F6: =F5*19% -> 0
E7: TOTAL | F7: =F5+F6 -> 0

Sheet Red_Inalambrica
A3: ITEM | B3: DESCRIPCIÓN | D3: CUMPLE | E3: NO CUMPLE
A4: 1 | B4: Switch Acceso para access points
A5: 1.1 | B5: Cantidad | C5: De acuerdo con el cuadro de cantidades
A6: 1.2 | B6: Marca | C6: Especificar
A7: 1.3 | B7: Modelo | C7: Especificar
A8: 1.4 | B8: Tipo | C8: Switch de acceso con puertos 10G/mGig
A9: 1.5 | B9: Puertos | C9: 24 puertos 10G/mGig Ethernet (10G/5G/2.5G/1G/100M) (RJ45)
C10: 4 puertos de uplink modulares 1G/10G SFP+
A11: 1.6 | B11: Capacidad de conmutación | C11: 640 Gbps
A12: 1.7 | B12: Rendimiento de reenvío | C12: 476.19 Mpps (paquetes por segundo)
A13: 1.8 | B13: Direcciones MAC | C13: Hasta 64,000
A14: 1.9 | B14: Rutas IPv4 | C14: Hasta 32,000 (20,000 directas, 12,000 indirectas)
A15: 1.10 | B15: Rutas IPv6 | C15: Hasta 16,000
A16: 1.11 | B16: Rutas multicast IPv4 | C16: Hasta 8,000
A17: 1.12 | B17: Rutas multicast IPv6 | C17: Hasta 8,000
A18: 1.13 | B18: VLANs | C18: Hasta 4,096 VLANs
A19: 1.14 | B19: PoE+ | C19: 48 puertos PoE+ con 30W por puerto
A20: 1.15 | B20: Escalabilidad y Flexibilidad | C20: Stacking
C21: Hasta 8 switches en pila.
A22: 1.16 | B22: Seguridad | C22: Cifrado MACsec
C23: Autenticación de imagen
C24: Arranque seguro
A25: 1.17 | B25: Optimización para Redes Inteligentes | C25: Priority Flow Control (PFC)
C26: Explicit Congestion Notification (ECN)
C27: Flow Classification
A28: 1.18 | B28: Temperatura de operación | C28: 0° a 40°C
A29: 1.19 | B29: Humedad | C29: 5% a 95% sin condensación
A30: 1.20 | B30: Suministro de energía | C30: Redundante, opción de doble fuente
A31: 1.21 | B31: Unidades de ventilación | C31: Redundante, reemplazable en caliente con opción de fallo
A32: 1.22 | B32: Ficha técnica | C32: Del equipo ofertado (es obligatorio adjuntar la ficha técnica junto con el presente anexo, que permita confirmar el cumplimiento de las especificaciones técnicas mínimas aquí indicadas)
A33: 2 | B33: Access point tipo 1
A34: 2.1 | B34: Cantidad | C34: De acuerdo con el cuadro de cantidades
A35: 2.2 | B35: Marca | C35: Especificar
A36: 2.3 | B36: Modelo | C36: Especificar
A37: 2.4 | B37: Tipo | C37: Punto de acceso Wi-Fi 6E (802.11ax) para uso en interiores con antenas omnidireccionales integradas
A38: 2.5 | B38: Puertos | C38: 1 puerto 100M/1000M/2.5G/5G Multigigabit Ethernet (RJ-45)
A39: 2.6 | B39: Estandares wifi | C39: Wi-Fi 6E (802.11ax extendido)
C40: Wi-Fi 6 (802.11ax)
C41: Wi-Fi 5 (802.11ac)
C42: Wi-Fi 4 (802.11n)
A43: 2.7 | B43: Antenas | C43: 2,4GHz: Ganancia máxima 3 dBi, antena interna, omnidireccional
C44: 5GHz: Ganancia pico 5 dBi, antena interna, omnidireccional
C45: 5GHz (XOR): Ganancia pico 5 dBi, antena interna, omnidireccional
C46: 6GHz: Ganancia máxima 4 dBi, antena interna, omnidireccional
A47: 2.8 | B47: Seguridad | C47: WPA3
C48: WPA2-Personal y WPA2-Enterprise
C49: Detección de interferencias en las bandas 2.4, 5 y 6 GHz
C50: Arranque seguro y firma de imágenes
A51: 2.9 | B51: Rendimiento soportado | C51: 2.4 GHz: Hasta 1.5 Gbps.
C52: 5 GHz: Hasta 3.4 Gbps.
C53: 6 GHz: Hasta 7.78 Gbps.
A54: 2.10 | B54: Flujos espaciales | C54: 4
A55: 2.11 | B55: Tecnologías para manejo de trafico | C55: OFDMA (Orthogonal Frequency-Division Multiple Access)
C56: MU-MIMO (Multi-User Multiple Input, Multiple Output)
C57: Client Steering
C58: TWT (Target Wake Time)
A59: 2.12 | B59: Sensores ambientales | C59: Calidad del aire, temperatura y humedad
A60: 2.13 | B60: Captura de trafico | C60: Permite la captura de datos de la red para un análisis profundo y resolución de problemas en tiempo real
A61: 2.14 | B61: Temperatura de operación | C61: 0° a 50°C
A62: 2.15 | B62: Humedad | C62: 10% a 90% sin condensación
A63: 2.16 | B63: Certificaciones | C63: Wi-Fi Alliance: Wi-Fi 6 (R2), Wi-Fi 6E, WPA3-R3, WPA3-Suite B, Enhanced Open Security. Bluetooth SIG: Bluetooth Low Energy (BLE)
A64: 2.19 | B64: Ficha técnica | C64: Del equipo ofertado (es obligatorio adjuntar la ficha técnica junto con el presente anexo, que permita confirmar el cumplimiento de las especificaciones técnicas mínimas aquí indicadas)
A65: 3 | B65: ACCESS POINT TIPO 2 | D65: CUMPLE | E65: NO CUMPLE
A66: 3.1 | B66: Cantidad | C66: De acuerdo con el cuadro de cantidades
A67: 3.2 | B67: Marca | C67: Especificar
A68: 3.3 | B68: Modelo | C68: Especificar
A69: 3.4 | B69: Tipo | C69: Punto de acceso Wi-Fi 6E (802.11ax) para uso en interiores con antenas omnidireccionales integradas
A70: 3.5 | B70: Puertos | C70: 1 puerto 100M/1000M/2.5G/5G Multigigabit Ethernet (RJ-45)
A71: 3.6 | B71: Estandares wifi | C71: Wi-Fi 6E (802.11ax extendido)
C72: Wi-Fi 6 (802.11ax)
C73: Wi-Fi 5 (802.11ac)
C74: Wi-Fi 4 (802.11n)
A75: 3.7 | B75: Antenas | C75: Antena 2.4 GHz, ganancia de 3 dBi, omnidireccionales
C76: Antena 5 GHz, ganancia de 5 dBi, omnidireccionales
C77: Antena 6 GHz, ganancia de 4 dBi, omnidireccionales
A78: 3.8 | B78: Seguridad | C78: WPA3
C79: WPA2-Personal y WPA2-Enterprise
C80: Detección de interferencias en las bandas 2.4, 5 y 6 GHz
C81: Arranque seguro y firma de imágenes
A82: 3.9 | B82: Rendimiento soportado | C82: 2.4 GHz: Hasta 1.5 Gbps.
C83: 5 GHz: Hasta 3.4 Gbps.
C84: 6 GHz: Hasta 7.78 Gbps.
A85: 3.10 | B85: Flujos espaciales | C85: 4
A86: 3.11 | B86: Tecnologías para manejo de trafico | C86: OFDMA (Orthogonal Frequency-Division Multiple Access)
C87: MU-MIMO (Multi-User Multiple Input, Multiple Output)
C88: Client Steering
C89: TWT (Target Wake Time)
A90: 3.12 | B90: Sensores ambientales | C90: Calidad del aire, temperatura y humedad
A91: 3.13 | B91: Captura de trafico | C91: Permite la captura de datos de la red para un análisis profundo y resolución de problemas en tiempo real
A92: 3.14 | B92: Temperatura de operación | C92: 0° a 50°C
A93: 3.15 | B93: Humedad | C93: 10% a 90% sin condensación
A94: 3.16 | B94: Ficha técnica | C94: Del equipo ofertado (es obligatorio adjuntar la ficha técnica junto con el presente anexo, que permita confirmar el cumplimiento de las especificaciones técnicas mínimas aquí indicadas)

Sheet Red_Inalambrica_P
A2: ITEM | B2: DESCRIPCIÓN | C2: UND | D2: CANTIDAD | E2: VALOR UNITARIO | F2: VALOR PARCIAL
B3: EQUIPOS DE SWITCH PARA WIFI
A4: 2025-01-01 | B4: Equipio de red / 24-port mGig and UPOE, Network Advantage | C4: und | D4: 4 | F4: =E4*D4 -> 0
A5: 2025-02-01 | B5: Modulo SFP / 10GBASE-SR SFP Module, Enterprise-Class | C5: und | D5: 8 | F5: =E5*D5 -> 0
A6: 2025-03-01 | B6: Contrato de soporte y garantía del equipo de red / SHIP NEXT BUS DAY 24port mGig and UPOE Net | C6: und | D6: 4 | F6: 0
A7: 2025-04-01 | B7: Licenciamiento de equipo de red / C9300 DNA Advantage, 24-Port, 5 Year Term License | C7: und | D7: 4 | F7: 0
A8: 2025-05-01 | B8: Fuente de poder redundante / 1100W AC 80+ platinum Config 1 Secondary Power Supply | C8: und | D8: 4 | F8: 0
A9: 2025-06-01 | B9: Módulo de enlace adicional x 8 a 10GE / Catalyst 9300 8 x 10GE Network Module (para conexion sw Core) | C9: und | D9: 4 | F9: 0
B10: EQUIPOS DE RED WI-FI
A11: 2025-07-01 | B11: AP (W6E, tri-band 4x4, XOR) w/Reg-A | C11: und | D11: 2 | F11: 0
A12: 2025-08-01 | B12: AP (W6E, tri-band 4x4) w/Reg-A | C12: und | D12: 26 | F12: 0
A13: 2025-09-01 | B13: Meraki MR Enterprise License, 5YR | C13: und | D13: 28 | F13: 0
B14: SERVICIOS PROFESIONALES
A15: 2025-10-01 | B15: Servicio de implementación, puesta en marcha, configuración, documentación y estabilización de equipos de RED WLAN por ingeniero especialista y certificado por fabricante para proyecto C5, incluye soporte 5 años | C15: gb | D15: 1 | F15: 0
E16: SUBTOTAL | F16: =SUM(F3:F15) -> 0
E17: IVA | F17: =F16*19% -> 0
E18: TOTAL | F18: =F16+F17 -> 0

Sheet VMS
B2: SISTEMA DE INTEGRACION SUBSISTEMAS DE SEGURIDAD Y VMS
A3: ITEM | B3: DESCRIPCIÓN | D3: CUMPLE | E3: NO CUMPLE
A4: 1 | B4: SISTEMA DE INTEGRACION DE SUBSISTEMAS DE SEGURIDAD VMS
A5: 1.1 | B5: Marca | C5: Especificar
A6: 1.2 | B6: Modelo | C6: Especificar
A7: 1.3 | B7: Funcionalidades | C7: Debe Permitir la gestión y control de los sistema de control de acceso
C8: Debe Permitir la gestión y control de los sistema de control de Visitantes - Integracion con el Sistema de gestion de visitantes
C9: Debe Permitir gestión de seguridad y detección de intrusión.
C10: Debe presentarse carta de cada uno de los fabricantes indicando que la plataforma VMS security cuenta con las integraciones a cada uno de los subsistemas.
A11: 1.4 | B11: Software de gestión de video vigilancia (conocido como “sistema” o “VMS”) es el sistema que administra el 100% de los dispositivos, servidores y subsistemas de seguridad que conforman el sistema de CCTV interno.
A12: 1.5 | B12: Debe ser un sistema abierto (compatible con otros subsistemas), escalable (que permita crecimiento) y flexible, que permita una perfecta gestión de vídeo digital, audio y datos a través de cualquier red IP. Debe Proporcionar y permitir opciones de arquitectura para implementaciones multisitio.
A13: 1.6 | B13: Debe soportar grabación y visualización de flujos IP H.264 y H.265.
A14: 1.7 | B14: Debe tener capacidad de definir cuentas de usuario de nivel administrador, las cuales tendrán la capacidad de fijar nuevos roles y subconjuntos de permisos, determinando las funciones del sistema y dispositivos que los usuarios pueden acceder.
A15: 1.8 | B15: Debe Permitir Autenticación de video exportado a través de comprobación / verificación.
A16: 1.9 | B16: Debe tener Capacidad para Consulta y recuperación de video en Micro SD de las cámaras fijas y PTZ desde el sistema VMS. Llenado automático de huecos en el NVR (una vez se restablezca conexión entre NVR y cámara, siempre y cuando esta última tenga alimentación eléctrica constante y una Micro SD instalada)
A17: 1.10 | B17: El sistema deberá contar con la funcionalidad de Matriz virtual (Digital), el cual será administrado por el centro de control. Se define matriz virtual como la capacidad de llamar cualquier cámara o grupo de cámaras en cualquier monitor desde cualquier teclado del sistema de CCTV
A18: 1.11 | B18: Debe permitir Transmisión multipunto de video en vivo: Brinda varias transmisiones para verlas en vivo usando cualquier combinación de estándares, resoluciones de video y fotogramas soportados.
A19: 1.12 | B19: Debe permitir Exportación de video a cualquier medio accesible por el sistema, incluyendo localmente al disco duro, dispositivo USB, o a un almacenamiento en red.
A20: 1.13 | B20: Permitir Autentificación de inicio de sesión mediante Directorio Activo Microsoft.
A21: 1.14 | B21: Debe Permitir control global del estado del sistema, incluidas cámaras, software y equipos de almacenamiento.
A22: 1.15 | B22: Debe Permitir Control de Cámaras PTZ: Control PTZ desde la cámara y desde el sistema; Posiciones preestablecidas de la cámara PTZ; control PTZ manual y automático del sistema; Capacidad para tener reglas con base en un programa y en un evento para mover las cámaras PTZ a posiciones preestablecidas.
A23: 1.16 | B23: Analiticas | C23: Debera gestionar cada una de las analiticas que tengan las camara, incluir las licencias de LPR y reconocimieto facil
A24: 1.17 | B24: Debe ser Compatible con una plataforma de integración.
A25: 1.17 | B25: Debe implementarse en un equipo de cómputo que supere las características acordes a los requerimientos mínimos de fábrica, esto previendo el crecimiento futuro de la plataforma.
A26: 1.18 | B26: Debe permitir configurar su interfaz con diferentes Idiomas, entre ellos Español.
A27: 1.19 | B27: La plataforma debe permitir supervision en tiempo real del estado de todos los componentes, ubicación en mapas CAD u otros formatos
A28: 1.20 | B28: Debe permitir la integracion con la controladora de videowall existente y garantizar actualizaciones por 5 años.
A29: 1.21 | B29: Ficha técnica | C29: Del equipo ofertado (es obligatorio adjuntar la ficha técnica junto con el presente anexo)
A30: 2 | B30: ESTACIÓN DE TRABAJO (INCLUYE MONITOR 23" TECLADO Y MOUSE)
A31: 2.1 | B31: Marca | C31: Especificar
A32: 2.2 | B32: Modelo | C32: Especificar
A33: 2.3 | B33: Implementado en máquinas basadas en Windows.
A34: 2.4 | B34: Permite a los usuarios configurar y rellamar espacios de trabajo completos, permitiendo a los operadores iniciar sesión rápidamente y obtener la información que necesitan.
A35: 2.5 | B35: El software de visualización podrá ser controlado con un ráton y teclado estándar.
A36: 2.6 | B36: La operación del software podrá recibir un ratón 3D, o teclado avanzado para trabajo continuo.
A37: 2.7 | B37: Procesador Intel® core i7 9700 equivalente o superior
A38: 2.8 | B38: Memoria Interna 16GB RAM equivalente o superior
A39: 2.9 | B39: Sistema Operativo Windows 10 profesional equivalente o superior
A40: 2.10 | B40: Almacenamiento Interno Disco de Estado Solido SSD MINIMO (512 GB )
A41: 2.11 | B41: Puertos USB 6 puertos USB 2.0 (2 frontal, 2 traseros), 2 puertos USB 3.0 (traseros)
A42: 2.12 | B42: Salidas de Video: Minimo 2 x DisplayPort, DVI-D, VGA, HDMI.
A43: 2.13 | B43: Capacidad de manejo mínimo 2 monitores
A44: 2.14 | B44: Resolución Máxima DisplayPort 4K
A45: 2.15 | B45: Interfaces de red 1 puerto Gigabit Ethernet (1000Base-T)
A46: 2.16 | B46: Entrada de alimentación 100 a 240 VAC, 50/60 Hz, auto seleccionable
A47: 2.17 | B47: Temperatura de Operación 10° a 35°C (50° a 95°F) a la entrada de aire
A48: 2.18 | B48: Humedad de Operación 20% a 80%, sin condensación
A49: 2.19 | B49: Altitud de Operación 0 a 3,048 mts
A50: 2.20 | B50: Sistema de Video con minimo las siguientes caracteristicas: * Memoria GPU: 4GB GDDR5 * Interfaz de Memoria: 256-bit * Ancho de Banda de Memoria: 173 GB/s * Núcleos CUDA: 1536 * Interfaz de Sistema: PCI Express 2.0 x16 * Conectores de Monitores: DVI-I DL y/o HDMI + DVI-D DL y/o HDMI + DP 1.2 y/o HDMI + DP 1.2 y/o HDMI + Estéreo * Número de Monitores Compatibles: 4 * Máxima Resolución DP 1.2 3840 x 2160 a 60Hz * Máxima Resolución DVI-I DL 2560 x 1600 a 60Hz * Máxima Resolución DVI-I SL 1920 x 1200 a 60Hz * Máxima Resolución VGA 2048 x 1536 a 85Hz con sus accesorios. Equivalente o superior.
A51: 2.21 | B51: Certificaciones: obligatorias CE, UL opcionales FCC, C-Tick, CCC
A52: 2.22 | B52: Ficha técnica | C52: Del equipo ofertado (es obligatorio adjuntar la ficha técnica junto con el presente anexo)
A53: 3 | B53: SERVIDOR DE SISTEMA DE INTEGRACION SUBSISTEMAS DE SEGURIDAD Y VMS
A54: 3.1 | B54: Marca | C54: Especificar
A55: 3.2 | B55: Modelo | C55: Especificar
A56: 3.3 | B56: Windows Server 2025 o superior
A57: 3.4 | B57: Base de datos SQL 2022 o superior
A58: 3.5 | B58: Procesador Intel Xeon de 8 nucleos, equivalente o superior.
A59: 3.6 | B59: Almacenamiento 3 Terabytes
A60: 3.7 | B60: Caché del procesador L3 25 MB
A61: 3.8 | B61: DDR4 16GB o superior
A62: 3.9 | B62: 6 ranuras de expansión
A63: 3.10 | B63: Controlador de red: 2 x Ethernet de 1 Gb
A64: 3.11 | B64: Ranuras de memoria minimo 12 ranuras
A65: 3.12 | B65: Tipo de memoria DDR4 SmartMemory
A66: 3.13 | B66: Tipo de fuente de alimentación x 2 (redundancia)

Sheet VMS_P
A2: ITEM | B2: DESCRIPCIÓN | C2: UND | D2: CANTIDAD | E2: VALOR UNITARIO | F2: VALOR PARCIAL
A3: 2025-01-02 | B3: Licencia Camara | C3: und | D3: 289 | F3: =E3*D3 -> 0
A4: 2025-02-02 | B4: Licencia LPR | C4: und | D4: 4 | F4: =E4*D4 -> 0
A5: 2025-03-02 | B5: Licencia Facial | C5: und | D5: 18 | F5: 0
A6: 2025-04-02 | B6: Licencia Integración Intrusión e Incendio | C6: und | D6: 1 | F6: 0
A7: 2025-05-02 | B7: Licencia Operadores/Administradores (100 usuarios) | C7: und | D7: 1 | F7: 0
A8: 2025-06-02 | B8: Módulo Control de Acceso | C8: und | D8: 1 | F8: 0
A9: 2025-07-02 | B9: Módulo Dashboard | C9: und | D9: 1 | F9: 0
A10: 2025-08-02 | B10: Web Service - API y SDK | C10: und | D10: 1 | F10: 0
A11: 2025-09-02 | B11: Módulo Server Onvif | C11: und | D11: 420 | F11: 0
A12: 2025-10-02 | B12: Módulo SIP | C12: und | D12: 1 | F12: 0
A13: 2025-11-02 | B13: Módulo despachador de eventos para BMS | C13: und | D13: 1 | F13: 0
A14: 2025-12-02 | B14: Estación de trabajo con doble monitor de 22" | C14: und | D14: 6 | F14: 0
A15: 2026-01-02 | B15: Servidor de almacenamiento | C15: und | D15: 2 | F15: 0
A16: 2026-02-02 | B16: Servidor de procesamiento | C16: und | D16: 1 | F16: 0
A17: 2026-03-02 | B17: Servidor de Analíticas | C17: und | D17: 1 | F17: 0
A18: 2026-04-02 | B18: Ethernet to Wiegand Converter Module | C18: und | D18: 1 | F18: 0
A19: 2026-05-02 | B19: Sistema de revisión vehicular inferior | C19: und | D19: 2 | F19: 0
A20: 2026-06-02 | B20: Controlador video y analítica revision de acceso vehicular | C20: und | D20: 2 | F20: 0
A21: 2026-07-02 | B21: Servicios Fabrica | C21: gl | D21: 1 | F21: 0
A22: 2026-08-02 | B22: Soporte (5 años) | C22: gl | D22: 1 | F22: 0
A23: 2026-08-03 | B23: Instalación del subsistema VMS | C23: gl | D23: 1 | F23: 0
E24: SUBTOTAL | F24: =SUM(F3:F23) -> 0
E25: IVA | F25: =F24*19% -> 0
E26: TOTAL | F26: =F24+F25 -> 0

Sheet Switch
A3: ITEM | B3: DESCRIPCIÓN | D3: CUMPLE | E3: NO CUMPLE
A4: 1 | B4: SWITCH CORE
A5: 1.1 | B5: Cantidad | C5: De acuerdo con el cuadro de cantidades
A6: 1.2 | B6: Marca | C6: Especificar
A7: 1.3 | B7: Modelo | C7: Especificar
A8: 1.4 | B8: Tipo | C8: Switch de alto rendimiento
A9: 1.5 | B9: Puertos | C9: 48 puertos 1/10/25G Ethernet (SFP28)
C10: 4 puertos de uplink 40/100G Ethernet (QSFP28)
A11: 1.6 | B11: Capacidad de conmutación | C11: 2.0 Tbps
A12: 1.7 | B12: Rendimiento de reenvío | C12: 1 Bpps (paquetes por segundo)
A13: 1.8 | B13: Direcciones MAC | C13: Hasta 256,000
A14: 1.9 | B14: Rutas IPv4 (rutas indirectas) | C14: Hasta 256,000
A15: 1.10 | B15: Rutas IPv6 (rutas indirectas) | C15: Hasta 128,000
A16: 1.11 | B16: Rutas IPv4 de host | C16: Hasta 90,000
A17: 1.12 | B17: Rutas IPv6 de host | C17: Hasta 40,000
A18: 1.13 | B18: Rutas multicast IPv4 | C18: Hasta 32,000
A19: 1.14 | B19: Rutas multicast IPv6 | C19: Hasta 16,000
A20: 1.15 | B20: ACL de seguridad IPv4/v6 | C20: Hasta 27,000
A21: 1.16 | B21: ACL QoS IPv4/v6 | C21: Hasta 18,000
A22: 1.17 | B22: Tamaño de buffer | C22: 16 GB de memoria DRAM, 16 GB de memoria Flash
A23: 1.18 | B23: Jumbo frame | C23: 9,216 bytes
A24: 1.19 | B24: Protocolos de red soportados | C24: IPv4 y IPv6
C25: MPLS
C26: VXLAN
C27: BGP, OSPF, EIGRP, y otros protocolos de enrutamiento
A28: 1.20 | B28: Tecnologías soportadas | C28: StackWise Virtual
C29: NetFlow Flexible
A30: 1.21 | B30: Compatibilidad con APIs | C30: NETCONF, RESTCONF, YANG
B31: Gestión basada en la nube | C31: Visibilidad en tiempo real y gestión centralizada
A32: 1.22 | B32: Temperatura de operación | C32: -5°C a +45°C
B33: Humedad relativa | C33: 10% a 85% (no condensante)
A34: 1.23 | B34: Suministro de energía | C34: Redundante, opción de doble fuente
B35: Unidades de ventilación | C35: Redundante, reemplazable en caliente con opción de fallo
A36: 1.24 | B36: Ficha técnica | C36: Del equipo ofertado (es obligatorio adjuntar la ficha técnica junto con el presente anexo, que permita confirmar el cumplimiento de las especificaciones técnicas mínimas aquí indicadas)
A37: 2 | B37: SWITRCH ACCESO DATACENTER | D37: CUMPLE | E37: NO CUMPLE
A38: 2.1 | B38: Cantidad | C38: De acuerdo con el cuadro de cantidades
A39: 2.2 | B39: Marca | C39: Especificar
A40: 2.3 | B40: Modelo | C40: Especificar
A41: 2.4 | B41: Tipo | C41: Switch de alto rendimiento
A42: 2.5 | B42: Puertos | C42: 48 puertos 1/10/25G Ethernet (SFP28)
C43: 6 puertos de uplink 40/100G Ethernet (QSFP28)
A44: 2.6 | B44: Capacidad de conmutación | C44: 3.6 Tbps
A45: 2.7 | B45: Rendimiento de reenvío | C45: 1.2 Bpps (paquetes por segundo)
A46: 2.8 | B46: Direcciones MAC | C46: Hasta 512,000
A47: 2.9 | B47: Rutas IPv4 | C47: Hasta 1,792,000 rutas de Longest Prefix Match (LPM)
A48: 2.10 | B48: Rutas IPv6 | C48: Hasta 896,000 rutas de Longest Prefix Match (LPM)
A49: 2.11 | B49: Rutas multicast IPv4 | C49: Hasta 128,000
A50: 2.12 | B50: Rutas multicast IPv6 | C50: Hasta 128,000
A51: 2.13 | B51: VLANs | C51: Soporta hasta 40,963 VLANs
A52: 2.14 | B52: Número de colas | C52: 8
A53: 2.15 | B53: Seguirdad | C53: enlace de seguridad IEEE 802.1ae
C54: Autenticación de imagen
C55: Arranque seguro
A56: 2.16 | B56: Protocolos de Red soportados | C56: IPv4 y IPv6
C57: BGP, OSPF, EIGRP, RIP, PIM-SM, MSDP, VXLAN EVPN, MPLS, Segment Routing (SR y SRv6)
C58: Multicast y IGMP Snooping
A59: 2.17 | B59: Redundancia y disponibilidad | C59: Virtual Port-Channel
C60: Equal-Cost MultiPath
A61: 2.18 | B61: Optimización para Redes Inteligentes | C61: Priority Flow Control (PFC)
C62: Explicit Congestion Notification (ECN)
C63: Flow Classification
A64: 2.19 | B64: Tabla de reenvío flexible | C64: 2 millones de entradas compartidas
A65: 2.20 | B65: Número de ACL | C65: 5,000 entradas de ACL en entrada
C66: 2,000 entradas de ACL en salida
A67: 2.21 | B67: Capacidades de FEX (Fabric Extender) | C67: Hasta 162 dispositivos FEX
A68: 2.22 | B68: Temperatura de operación | C68: 0° a 40°C
A69: 2.23 | B69: Humedad | C69: 5% a 95% sin condensación
A70: 2.24 | B70: Suministro de energía | C70: Redundante, opción de doble fuente
A71: 2.25 | B71: Ficha técnica | C71: Del equipo ofertado (es obligatorio adjuntar la ficha técnica junto con el presente anexo, que permita confirmar el cumplimiento de las especificaciones técnicas mínimas aquí indicadas)
A72: 3 | B72: SWITCH TOP OF RACK Datacenter | D72: CUMPLE | E72: NO CUMPLE
A73: 3.1 | B73: Cantidad | C73: De acuerdo con el cuadro de cantidades
A74: 3.2 | B74: Marca | C74: Especificar
A75: 3.3 | B75: Modelo | C75: Especificar
A76: 3.4 | B76: Tipo | C76: Switch de acceso compacto y alto rendimiento
A77: 3.5 | B77: Puertos | C77: 48 puertos 100M/1/10G BASE-T Ethernet
C78: 6 puertos de uplink 40/100G Ethernet (QSFP28)
A79: 3.6 | B79: Capacidad de conmutación | C79: 2.16 Tbps
A80: 3.7 | B80: Rendimiento de reenvío | C80: 1.2 Bpps (paquetes por segundo)
A81: 3.8 | B81: Direcciones MAC | C81: Hasta 512,000
A82: 3.9 | B82: Rutas IPv4 | C82: Hasta 1,792,000 rutas de Longest Prefix Match (LPM)
A83: 3.10 | B83: Rutas IPv6 | C83: Hasta 896,000 rutas de Longest Prefix Match (LPM)
A84: 3.11 | B84: Rutas multicast IPv4 | C84: Hasta 128,000
A85: 3.12 | B85: Rutas multicast IPv6 | C85: Hasta 128,000
A86: 3.13 | B86: VLANs | C86: Soporta hasta 40,963 VLANs
A87: 3.14 | B87: Número de colas | C87: 8
A88: 3.15 | B88: Seguirdad | C88: enlace de seguridad IEEE 802.1ae
C89: Autenticación de imagen
C90: Arranque seguro
A91: 3.16 | B91: Protocolos de Red soportados | C91: IPv4 y IPv6
C92: BGP, OSPF, EIGRP, RIP, PIM-SM, MSDP, VXLAN EVPN, MPLS, Segment Routing (SR y SRv6)
C93: Multicast y IGMP Snooping
A94: 3.17 | B94: Redundancia y disponibilidad | C94: Virtual Port-Channel
C95: Equal-Cost MultiPath
A96: 3.18 | B96: Optimización para Redes Inteligentes | C96: Priority Flow Control (PFC)
C97: Explicit Congestion Notification (ECN)
C98: Flow Classification
A99: 3.19 | B99: Tabla de reenvío flexible | C99: 2 millones de entradas compartidas
A100: 3.20 | B100: Número de ACL | C100: 5,000 entradas de ACL en entrada
C101: 2,000 entradas de ACL en salida
A102: 3.21 | B102: Capacidades de FEX (Fabric Extender) | C102: Hasta 162 dispositivos FEX
A103: 3.22 | B103: Temperatura de operación | C103: 0° a 40°C
A104: 3.23 | B104: Humedad | C104: 5% a 95% sin condensación
A105: 3.24 | B105: Suministro de energía | C105: Redundante, opción de doble fuente
A106: 3.25 | B106: Ficha técnica | C106: Del equipo ofertado (es obligatorio adjuntar la ficha técnica junto con el presente anexo, que permita confirmar el cumplimiento de las especificaciones técnicas mínimas aquí indicadas)
A107: 4 | B107: SWITCH ADMINISTRACION | D107: CUMPLE | E107: NO CUMPLE
A108: 4.1 | B108: Cantidad | C108: De acuerdo con el cuadro de cantidades
A109: 4.2 | B109: Marca | C109: Especificar
A110: 4.3 | B110: Modelo | C110: Especificar
A111: 4.4 | B111: Tipo | C111: Switch fijo de acceso con puertos Ethernet
A112: 4.5 | B112: Puertos | C112: 24 puertos 10/100/1000BASE-T Ethernet (RJ45)
C113: 4 puertos de uplink 1G fijos (SFP)
A114: 4.6 | B114: Capacidad de conmutación | C114: 56 Gbps
A115: 4.7 | B115: Rendimiento de reenvío | C115: 41.67 Mpps (paquetes por segundo)
A116: 4.8 | B116: Direcciones MAC | C116: Hasta 16,000
A117: 4.9 | B117: Rutas IPv4 | C117: Hasta 11,000 (8,000 directas, 3,000 indirectas)
A118: 4.10 | B118: Rutas IPv6 | C118: Hasta 5,000
A119: 4.11 | B119: Rutas multicast IPv4 | C119: Hasta 1,000
A120: 4.12 | B120: Rutas multicast IPv6 | C120: Hasta 1,000
A121: 4.13 | B121: VLANs | C121: Hasta 4,096 VLANs
A122: 4.14 | B122: Escalabilidad y Flexibilidad | C122: Stacking
C123: Hasta 8 switches stackeables.
A124: 4.15 | B124: Seguridad | C124: Cifrado MACsec
C125: 802.1X, Control de acceso al puerto, PVS
A126: 4.16 | B126: Temperatura de operación | C126: 0° a 40°C
A127: 4.17 | B127: Humedad | C127: 5% a 95% sin condensación
A128: 4.18 | B128: Suministro de energía | C128: Redundante, opción de doble fuente
A129: 4.19 | B129: Ficha técnica | C129: Del equipo ofertado (es obligatorio adjuntar la ficha técnica junto con el presente anexo, que permita confirmar el cumplimiento de las especificaciones técnicas mínimas aquí indicadas)
A130: 5 | B130: SWITCH ACCESO | D130: CUMPLE | E130: NO CUMPLE
A131: 5.1 | B131: Cantidad | C131: De acuerdo con el cuadro de cantidades
A132: 5.2 | B132: Marca | C132: Especificar
A133: 5.3 | B133: Modelo | C133: Especificar
A134: 5.4 | B134: Tipo | C134: Switch de acceso apilable con 48 puertos PoE+
A135: 5.5 | B135: Puertos | C135: 48 puertos 10/100/1000BASE-T Ethernet (PoE+)
C136: 4 puertos de uplink 1G o 10G (modulares, SFP o SFP+)
A137: 5.6 | B137: Capacidad de conmutación | C137: 256 Gbps
A138: 5.7 | B138: Rendimiento de reenvío | C138: 190.47 Mpps (paquetes por segundo)
A139: 5.8 | B139: Direcciones MAC | C139: Hasta 32,000
A140: 5.9 | B140: Rutas IPv4 | C140: Hasta 32,000 (24,000 directas y 8,000 indirectas)
A141: 5.10 | B141: Rutas IPv6 | C141: Hasta 16,000
A142: 5.11 | B142: Rutas multicast IPv4 | C142: Hasta 8,000
A143: 5.12 | B143: Rutas multicast IPv6 | C143: Hasta 8,000
A144: 5.13 | B144: VLANs | C144: Hasta 4,096 VLANs
A145: 5.14 | B145: PoE+ | C145: 48 puertos PoE+ con 30W por puerto
A146: 5.15 | B146: Escalabilidad y Flexibilidad | C146: Stacking
C147: Hasta 8 switches en pila.
A148: 5.16 | B148: Seguridad | C148: Cifrado MACsec
C149: Autenticación de imagen
C150: Arranque seguro
A151: 5.17 | B151: Optimización para Redes Inteligentes | C151: Priority Flow Control (PFC)
C152: Explicit Congestion Notification (ECN)
C153: Flow Classification
A154: 5.18 | B154: Temperatura de operación | C154: 0° a 40°C
A155: 5.19 | B155: Humedad | C155: 5% a 95% sin condensación
A156: 5.20 | B156: Suministro de energía | C156: Redundante, opción de doble fuente
A157: 5.21 | B157: Unidades de ventilación | C157: Redundante, reemplazable en caliente con opción de fallo
A158: 5.22 | B158: Ficha técnica | C158: Del equipo ofertado (es obligatorio adjuntar la ficha técnica junto con el presente anexo, que permita confirmar el cumplimiento de las especificaciones técnicas mínimas aquí indicadas)

Sheet Switch_P
A2: ITEM | B2: DESCRIPCIÓN | C2: UND | D2: CANTIDAD | E2: VALOR UNITARIO | F2: VALOR PARCIAL
B3: SWITCH CORE
A4: 1 | B4: Equipo de red 48-port x 1/10/25G + 4-port 40/100G | C4: und | D4: 2 | F4: =E4*D4 -> 0
A5: 2 | B5: Soporte de fabrica y garantía de fabricante 48port x 11025G 4por | C5: und | D5: 2 | F5: 0
A6: 3 | B6: Soporte de fabrica y garantía sobre el licenciamiento | C6: und | D6: 2 | F6: 0
A7: 4 | B7: Licenciamiento de equiposDNA Advantage 5 años de licencia | C7: und | D7: 2 | F7: 0
A8: 5 | B8: Pluggable SSD storage | C8: und | D8: 2 | F8: 0
A9: 6 | B9: Cable de poder 930W DC Config 4 Power Supply front to back cooling | C9: und | D9: 2 | F9: 0
A10: 7 | B10: Modulo SFP / 10GBASE-LR SFP módulo, Enterprise-Class Switch Wifi | C10: und | D10: 24 | F10: 0
A11: 8 | B11: 100GBASE QSFP Active Optical Cable, 30m | C11: und | D11: 6 | F11: 0
B12: SWITCH DE ACCESO | D12: 0
A13: 9 | B13: Equipo de red de capa de acceso / 48p 1/10/25G, 6p 40/100G, MACsec,SyncE | C13: und | D13: 2 | F13: 0
A14: 10 | B14: Contrato de soporte y garantía de fabricante / CX LEVEL 1 8X7NCD 48p 1/10/25G, 6p 40/100G, MACse | C14: und | D14: 2 | F14: 0
A15: 11 | B15: Módulo de memoria adicional / memoria de 16GB para Switches | C15: und | D15: 2 | F15: 0
A16: 12 | B16: Licencia de equipo de red / DCN Advantage Term N9300 XF, 3Y | C16: und | D16: 2 | F16: 0
A17: 13 | B17: Equipo de red de capa de acceso / con 48p 100M/1/10GT & 6p 40/100G QSFP28+ | C17: und | D17: 30 | F17: 0
A18: 14 | B18: Contrato de soporte y garantía de fabricante / CX LEVEL 1 8X7NCD con 48p 100M/1/10GT 6p 40 | C18: und | D18: 30 | F18: 0
A19: 15 | B19: Licencia de equipo de red / DCN Advantage Term N9300 XF, 3Y | C19: und | D19: 30 | F19: 0
A20: 16 | B20: 40GBASE Active Optical Cable, 30m | C20: und | D20: 30 | F20: 0
A21: 17 | B21: Modulo SFP/ 1000BASE-SX short wavelength; con DOM | C21: und | D21: 4 | F21: 0
B22: SWITCH DE ADMINISTRACIÓN | D22: 0
A23: 18 | B23: Equipo de Red / 24-port data only, 4 x 1G, Network Essentials | C23: und | D23: 16 | F23: 0
A24: 19 | B24: Contrato de soporte y garantía del equipo de red / CX LEVEL 1 8X7NCD 24port data 4 x 1G Net | C24: und | D24: 16 | F24: 0
A25: 20 | B25: Contrato de soporte y garantia de licenciamiento / CX LEVEL 1 SW SUB DNA Ess | C25: und | D25: 16 | F25: 0
A26: 21 | B26: Licenciamiento de equipo de red / DNA Essentials, 24-port, 3 Year Term license | C26: und | D26: 16 | F26: 0
A27: 22 | B27: Módulo de apilamiento de equipo de red / Stack Module | C27: und | D27: 16 | F27: 0
B28: ACCESO LAN | D28: 0
A29: 23 | B29: Equipio de red /Catalyst 9300 48-port PoE+, Network Advantage | C29: und | D29: 38 | F29: 0
A30: 24 | B30: Contrato de soporte y garantía del equipo de red / 48port PoE Network Adva | C30: und | D30: 38 | F30: 0
A31: 25 | B31: Licenciamiento de equipo de red / C9300 DNA Advantage, 48-Port, 5 Year Term License | C31: und | D31: 38 | F31: 0
A32: 26 | B32: Fuente de poder redundante / 1100W AC 80+ platinum Config 1 Secondary Power Supply | C32: und | D32: 38 | F32: 0
A33: 27 | B33: Cable de apilamiento de equipo de red / 50CM Type 1 Stacking Cable | C33: und | D33: 38 | F33: 0
A34: 28 | B34: Cable de red para fuente redundante / Stack Power Cable 30 CM | C34: und | D34: 38 | F34: 0
A35: 29 | B35: Módulo de enlace adicional x 8 a 10GE / 8 x 10GE Network Module | C35: und | D35: 38 | F35: 0
A36: 30 | B36: Módulo SFP/ 10GBASE-LR SFP Module, Enterprise-Class | C36: und | D36: 28 | F36: 0
A37: 31 | B37: Servicio de implementación, puesta en marcha, configuración, documentación y estabilización de equipos de RED y DATACENTER por ingeniero especialista y certificado por fabricante para proyecto C5, soporte 5 años | C37: gb | D37: 1 | F37: 0
E38: SUBTOTAL | F38: =SUM(F3:F37) -> 0
E39: IVA | F39: =F38*19% -> 0
E40: TOTAL | F40: =F38+F39 -> 0

Sheet CCTV
A3: ITEM | B3: DESCRIPCIÓN | D3: CUMPLE | E3: NO CUMPLE
A4: 1 | B4: CÁMARA TIPO PANORAMICA
A5: 1.1 | B5: Cantidad | C5: De acuerdo con el cuadro de cantidades
A6: 1.2 | B6: Marca | C6: Especificar
A7: 1.3 | B7: Modelo | C7: Especificar
A8: 1.4 | B8: Tipo | C8: Tipo minidomo
A9: 1.5 | B9: Rango de operación | C9: Día / Noche
A10: 1.6 | B10: Formato sensor de Imagen | C10: 1/1.8 CMOS
A11: 1.7 | B11: Salida de vídeo | C11: IP
A12: 1.8 | B12: Resolución de salida | C12: 6 megapíxeles o superior
A13: 1.9 | B13: Tipo de Escaneo | C13: Progresivo
A14: 1.10 | B14: Iluminación mínima | C14: Color: 0.16 lux a 50 o mejor. B/N: 0.03 lux a 50 o mejor
A15: 1.11 | B15: Ajuste de la camara | C15: Giro digital +- 180°
A16: 1.12 | B16: Movimiento horizontal/vertical | C16: PTZ digital
A17: 1.13 | B17: WDR | C17: Como mínimo 120 dB o superior
A18: 1.14 | B18: Zoom | C18: Óptico
A19: 1.15 | B19: Compresión de video | C19: H.265 o superior
A20: 1.16 | B20: Rondas | C20: 10 o mejor
A21: 1.17 | B21: Compatibilidad ONVIF | C21: ONVIF Profile S, G, T (verificable en la página de https://www.onvif.org/).
A22: 1.18 | B22: Conectores | C22: M12 hembra
A23: 1.19 | B23: Temperatura de operación | C23: .-40° a 55°
A24: 1.20 | B24: Consumo eléctrico | C24: Máximo 13 W
A25: 1.21 | B25: Certificación | C25: IP 66, IK10 o CE o FCC
A26: 1.22 | B26: Protocoles de red | C26: IPv4/v6, HTTP, HTTPS, SNMP, DNS, TCP/IP, DHCP, RTP, UDP, RTSP, NTP, IGMP, QoS, (SMTP, FTP opcional).
A27: 1.23 | B27: Debe tener | C27: Control Automático de ganancia - AGC.
C28: Balance de blancos - AWB.
A29: 1.24 | B29: Seguridad de red | C29: Certificado: Compatibilidad con la infraestructura de claves públicas (PKI) o FIPS 140-2 Encryption.
C30: HTTPS
C31: Codificación: TLS o AES 256 ó AES 128 en transmisión y almacenamiento de datos.
C32: Filtrado de direcciones IP, 802-1X.
A33: 1.25 | B33: Analíticas incluidas sin requerir licencias o componentes adicionales | C33: Incluidas en la cámara sin requerir licencias o componentes adicionales.
C34: Detección de movimiento
C35: Detección de alarma antimanipulación
A36: 1.26 | B36: Memoria de Respaldo Local | C36: Compatible con tarjetas MicroSD, MicroSDXC.
A37: 1.27 | B37: Mantenimiento y soporte | C37: El contratista deberá tomar acciones que permitan detectar las fallas y defectos de los equipos o elementos del sistema, para lo cual cada (03) tres meses deberá realizar un mantenimiento con sus respectivos procedimiento o protocolos y de ser necesario adelantar acciones correctivas, finalizada la actividad el contratista entregará un informe técnico de lo actuado, mínimo durante el plazo de garantía 3 años.
A38: 1.28 | B38: Instalación y Configuración | C38: Las cámaras deberán entregarse instaladas, cableadas, configuradas y en correcto funcionamiento como un Sistema integrado. Incluye todos los elementos de cableado, fijación, etc, necesarios para un óptimo funcionamiento e instalación hasta la ubicación del sistema de almacenamiento.
A39: 1.29 | B39: Garantía | C39: El contratista debe proveer un periodo mínimo de 3 años de garantía en la solución implementada.
C40: Los equipos instalados en la solución, deberán contar con periodo de garantía de 5 años directos de fábrica.
A41: 1.30 | B41: Ficha Tecnica | C41: Del equipo ofertado (es obligatorio adjuntar la ficha técnica junto con el presente anexo, que permita confirmar el cumplimiento de las especificaciones técnicas mínimas aquí indicadas)
A42: 2 | B42: CÁMARA TIPO DOMO VISTA 360° CON AUDIO | D42: CUMPLE | E42: NO CUMPLE
A43: 2.1 | B43: Cantidad | C43: De acuerdo con el cuadro de cantidades
A44: 2.2 | B44: Marca | C44: Especificar
A45: 2.3 | B45: Modelo | C45: Especificar
A46: 2.4 | B46: Tipo | C46: Tipo minidomo
A47: 2.5 | B47: Rango de operación | C47: Día / Noche
A48: 2.6 | B48: Formato sensor de Imagen | C48: 1/1.8 CMOS
A49: 2.7 | B49: Salida de vídeo | C49: IP
A50: 2.8 | B50: Resolución de salida | C50: 6 megapíxeles o superior
A51: 2.9 | B51: Tipo de Escaneo | C51: Progresivo
A52: 2.10 | B52: Iluminación mínima | C52: Color: 0.16 lux a 50 o mejor. B/N: 0.03 lux a 50 o mejor
A53: 2.11 | B53: Ajuste de la camara | C53: Giro digital +- 180°
A54: 2.12 | B54: Movimiento horizontal/vertical | C54: PTZ digital
A55: 2.13 | B55: WDR | C55: Como mínimo 120 dB o superior
A56: 2.14 | B56: Entrada/Salida de Audio | C56: Microfono integrado
A57: 2.15 | B57: Compresión de video | C57: H.265 o superior
A58: 2.16 | B58: Rondas de vigilancia | C58: Si
A59: 2.17 | B59: Compatibilidad ONVIF | C59: ONVIF Profile S, G, T (verificable en la página de https://www.onvif.org/).
A60: 2.18 | B60: Conectores | C60: 1 RJ45 10/100 Ethernet port y 1 entrada de alarma y 1 salida de 12 VCC.
A61: 2.19 | B61: Temperatura de operación | C61: .-40° a 50°
A62: 2.20 | B62: Consumo eléctrico | C62: Máximo 13 W
A63: 2.21 | B63: Certificación | C63: IP 66, IK10 o CE o FCC
A64: 2.22 | B64: Protocoles de red | C64: IPv4/v6, HTTP, HTTPS, SNMP, DNS, TCP/IP, DHCP, RTP, UDP, RTSP, NTP, IGMP, QoS, (SMTP, FTP opcional).
A65: 2.23 | B65: Debe tener | C65: Control Automático de ganancia - AGC.
C66: Balance de blancos - AWB.
A67: 2.24 | B67: Seguridad de red | C67: Certificado: Compatibilidad con la infraestructura de claves públicas (PKI) o FIPS 140-2 Encryption.
C68: HTTPS
C69: Codificación: TLS o AES 256 ó AES 128 en transmisión y almacenamiento de datos.
C70: Filtrado de direcciones IP, 802-1X.
A71: 2.25 | B71: Analíticas incluidas sin requerir licencias o componentes adicionales | C71: Incluidas en la cámara sin requerir licencias o componentes adicionales.
C72: Detección de movimiento
C73: Movimiento de area
C74: Deteccion de cruce de linea
C75: Merodeo
C76: Deteccion de audio
C77: Detección de alarma antimanipulación
A78: 2.26 | B78: Memoria de Respaldo Local | C78: Compatible con tarjetas MicroSD, MicroSDXC.
A79: 2.27 | B79: Mantenimiento y soporte | C79: El contratista deberá tomar acciones que permitan detectar las fallas y defectos de los equipos o elementos del sistema, para lo cual cada (03) tres meses deberá realizar un mantenimiento con sus respectivos procedimiento o protocolos y de ser necesario adelantar acciones correctivas, finalizada la actividad el contratista entregará un informe técnico de lo actuado, mínimo durante el plazo de garantía 3 años.
A80: 2.28 | B80: Instalación y Configuración | C80: Las cámaras deberán entregarse instaladas, cableadas, configuradas y en correcto funcionamiento como un Sistema integrado. Incluye todos los elementos de cableado, fijación, etc, necesarios para un óptimo funcionamiento e instalación hasta la ubicación del sistema de almacenamiento.
A81: 2.29 | B81: Garantía | C81: El contratista debe proveer un periodo mínimo de 3 años de garantía en la solución implementada.
C82: Los equipos instalados en la solución, deberán contar con periodo de garantía de 5 años directos de fábrica.
A83: 2.29 | B83: Ficha técnica | C83: Del equipo ofertado (es obligatorio adjuntar la ficha técnica junto con el presente anexo, que permita confirmar el cumplimiento de las especificaciones técnicas mínimas aquí indicadas)
A84: 3 | B84: CÁMARA TIPO FIJA MINIDOMO TIPO 1 | D84: CUMPLE | E84: NO CUMPLE
A85: 3.1 | B85: Cantidad | C85: De acuerdo con el cuadro de cantidades
A86: 3.2 | B86: Marca | C86: Especificar
A87: 3.3 | B87: Modelo | C87: Especificar
A88: 3.4 | B88: Tipo | C88: Tipo minidomo
A89: 3.5 | B89: Rango de operación | C89: Día / Noche
A90: 3.6 | B90: Formato sensor de Imagen | C90: 1/2.7 CMOS
A91: 3.7 | B91: Salida de vídeo | C91: IP
A92: 3.8 | B92: Resolución de salida | C92: 4 megapíxeles o superior
A93: 3.9 | B93: Tipo de Escaneo | C93: Progresivo
A94: 3.10 | B94: Iluminación mínima | C94: Color: 0.19 lux a 50 o mejor. B/N: 0.03 lux a 50 o mejor
A95: 3.11 | B95: Ajuste de la camara | C95: Horizontal ±175°, vertical ±80°, rotación ±175°
A96: 3.12 | B96: Movimiento horizontal/vertical | C96: PTZ digital
A97: 3.13 | B97: WDR | C97: Como mínimo 120 dB o superior
A98: 3.14 | B98: Compresión de video | C98: H.265 o superior
A99: 3.15 | B99: Compatibilidad ONVIF | C99: ONVIF Profile S, G, T (verificable en la página de https://www.onvif.org/).
A100: 3.16 | B100: Conectores | C100: 1 RJ45 10/100 Ethernet port
A101: 3.17 | B101: Temperatura de operación | C101: 0° a 45°
A102: 3.18 | B102: Consumo eléctrico | C102: Máximo 5 W
A103: 3.19 | B103: Certificación | C103: IP 42, IK8 o CE o FCC
A104: 3.20 | B104: Protocoles de red | C104: IPv4/v6, HTTP, HTTPS, SNMP, DNS, TCP/IP, DHCP, RTP, UDP, RTSP, NTP, IGMP, QoS, (SMTP, FTP opcional).
A105: 3.21 | B105: Debe tener | C105: Balance de blancos - AWB.
A106: 3.22 | B106: Seguridad de red | C106: Certificado: Compatibilidad con la infraestructura de claves públicas (PKI) o FIPS 140-2 Encryption.
C107: HTTPS
C108: Codificación: TLS o AES 256 ó AES 128 en transmisión y almacenamiento de datos.
C109: Filtrado de direcciones IP, 802-1X.
A110: 3.23 | B110: Analíticas incluidas sin requerir licencias o componentes adicionales | C110: Incluidas en la cámara sin requerir licencias o componentes adicionales.
C111: Detección de movimiento
C112: Analitica de objetos
C113: Deteccion de audio
C114: Analitica de audio
C115: Detección de alarma antimanipulación
A116: 3.24 | B116: Memoria de Respaldo Local | C116: Compatible con tarjetas MicroSD, MicroSDXC.
A117: 3.25 | B117: Mantenimiento y soporte | C117: El contratista deberá tomar acciones que permitan detectar las fallas y defectos de los equipos o elementos del sistema, para lo cual cada (03) tres meses deberá realizar un mantenimiento con sus respectivos procedimiento o protocolos y de ser necesario adelantar acciones correctivas, finalizada la actividad el contratista entregará un informe técnico de lo actuado, mínimo durante el plazo de garantía 3 años.
A118: 3.26 | B118: Instalación y Configuración | C118: Las cámaras deberán entregarse instaladas, cableadas, configuradas y en correcto funcionamiento como un Sistema integrado. Incluye todos los elementos de cableado, fijación, etc, necesarios para un óptimo funcionamiento e instalación hasta la ubicación del sistema de almacenamiento.
A119: 3.27 | B119: Garantía | C119: El contratista debe proveer un periodo mínimo de 3 años de garantía en la solución implementada.
C120: Los equipos instalados en la solución, deberán contar con periodo de garantía de 5 años directos de fábrica.
A121: 3.28 | B121: Ficha técnica | C121: Del equipo ofertado (es obligatorio adjuntar la ficha técnica junto con el presente anexo, que permita confirmar el cumplimiento de las especificaciones técnicas mínimas aquí indicadas)
A122: 4 | B122: CÁMARA TIPO FIJA DOMO TIPO 1 | D122: CUMPLE | E122: NO CUMPLE
A123: 4.1 | B123: Cantidad | C123: De acuerdo con el cuadro de cantidades
A124: 4.2 | B124: Marca | C124: Especificar
A125: 4.3 | B125: Modelo | C125: Especificar
A126: 4.4 | B126: Tipo | C126: Tipo Domo
A127: 4.5 | B127: Rango de operación | C127: Día / Noche
A128: 4.6 | B128: Formato sensor de Imagen | C128: 1/2.8 CMOS
A129: 4.7 | B129: Lente | C129: Varifocal 3.5 – 6.6 mm
A130: 4.8 | B130: Salida de vídeo | C130: IP
A131: 4.9 | B131: Resolución de salida | C131: 2 megapíxeles o superior
A132: 4.10 | B132: Tipo de Escaneo | C132: Progresivo
A133: 4.11 | B133: Iluminación mínima | C133: Color: 0.14 lux a 50 o mejor. B/N: 0.03 lux a 50 o mejor
A134: 4.12 | B134: Ajuste de la camara | C134: Horizontal ±180°, vertical de -40° a +65°, rotación ±105°
A135: 4.13 | B135: Movimiento horizontal/vertical | C135: PTZ digital
A136: 4.14 | B136: WDR | C136: Como mínimo 110 dB o superior
A137: 4.15 | B137: Compresión de video | C137: H.265 o superior
A138: 4.16 | B138: Compatibilidad ONVIF | C138: ONVIF Profile S, G, T (verificable en la página de https://www.onvif.org/).
A139: 4.17 | B139: Conectores | C139: 1 RJ45 10/100 Ethernet port
A140: 4.18 | B140: Temperatura de operación | C140: 0° a 45°
A141: 4.19 | B141: Consumo eléctrico | C141: Máximo 10 W
A142: 4.20 | B142: Certificación | C142: IP 42, IK8 o CE o FCC
A143: 4.21 | B143: Protocoles de red | C143: IPv4/v6, HTTP, HTTPS, SNMP, DNS, TCP/IP, DHCP, RTP, UDP, RTSP, NTP, IGMP, QoS, (SMTP, FTP opcional).
A144: 4.22 | B144: Debe tener | C144: Balance de blancos - AWB.
A145: 4.23 | B145: Seguridad de red | C145: Certificado: Compatibilidad con la infraestructura de claves públicas (PKI) o FIPS 140-2 Encryption.
C146: HTTPS
C147: Codificación: TLS o AES 256 ó AES 128 en transmisión y almacenamiento de datos.
C148: Filtrado de direcciones IP, 802-1X.
A149: 4.24 | B149: Analíticas incluidas sin requerir licencias o componentes adicionales | C149: Incluidas en la cámara sin requerir licencias o componentes adicionales.
C150: Detección de movimiento
C151: Analitica de objetos
C152: Deteccion de rostros
A153: 4.25 | B153: Memoria de Respaldo Local | C153: Compatible con tarjetas MicroSD, MicroSDXC.
A154: 4.26 | B154: Mantenimiento y soporte | C154: El contratista deberá tomar acciones que permitan detectar las fallas y defectos de los equipos o elementos del sistema, para lo cual cada (03) tres meses deberá realizar un mantenimiento con sus respectivos procedimiento o protocolos y de ser necesario adelantar acciones correctivas, finalizada la actividad el contratista entregará un informe técnico de lo actuado, mínimo durante el plazo de garantía 3 años.
A155: 4.27 | B155: Instalación y Configuración | C155: Las cámaras deberán entregarse instaladas, cableadas, configuradas y en correcto funcionamiento como un Sistema integrado. Incluye todos los elementos de cableado, fijación, etc, necesarios para un óptimo funcionamiento e instalación hasta la ubicación del sistema de almacenamiento.
A156: 4.28 | B156: Garantía | C156: El contratista debe proveer un periodo mínimo de 3 años de garantía en la solución implementada.
C157: Los equipos instalados en la solución, deberán contar con periodo de garantía de 5 años directos de fábrica.
A158: 4.29 | B158: Ficha técnica | C158: Del equipo ofertado (es obligatorio adjuntar la ficha técnica junto con el presente anexo, que permita confirmar el cumplimiento de las especificaciones técnicas mínimas aquí indicadas)
A159: 5 | B159: CÁMARA TIPO FIJA DOMO TIPO 2 | D159: CUMPLE | E159: NO CUMPLE
A160: 5.1 | B160: Cantidad | C160: De acuerdo con el cuadro de cantidades
A161: 5.2 | B161: Marca | C161: Especificar
A162: 5.3 | B162: Modelo | C162: Especificar
A163: 5.4 | B163: Tipo | C163: Tipo Domo
A164: 5.5 | B164: Rango de operación | C164: Día / Noche
A165: 5.6 | B165: Formato sensor de Imagen | C165: 1/2.8 CMOS
A166: 5.7 | B166: Lente | C166: Varifocal 3.5 – 6.6 mm
A167: 5.8 | B167: Salida de vídeo | C167: IP
A168: 5.9 | B168: Resolución de salida | C168: 8 megapíxeles o superior
A169: 5.10 | B169: Tipo de Escaneo | C169: Progresivo
A170: 5.11 | B170: Iluminación mínima | C170: Color: 0.24 lux a 50 o mejor. B/N: 0.04 lux a 50 o mejor. 0 Lux con iluminación IR activada.
A171: 5.12 | B171: Ajuste de la camara | C171: Horizontal ±180°, vertical de -40° a +65°, rotación ±105°
A172: 5.13 | B172: Movimiento horizontal/vertical | C172: PTZ digital
A173: 5.14 | B173: WDR | C173: Como mínimo 110 dB o superior
A174: 5.15 | B174: Compresión de video | C174: H.265 o superior
A175: 5.16 | B175: Compatibilidad ONVIF | C175: ONVIF Profile S, G, T (verificable en la página de https://www.onvif.org/).
A176: 5.17 | B176: Conectores | C176: 1 RJ45 10/100 Ethernet port
A177: 5.18 | B177: Temperatura de operación | C177: 0° a 40°
A178: 5.19 | B178: Consumo eléctrico | C178: Máximo 10 W
A179: 5.20 | B179: Certificación | C179: IP 42, IK8 o CE o FCC
A180: 5.21 | B180: Protocoles de red | C180: IPv4/v6, HTTP, HTTPS, SNMP, DNS, TCP/IP, DHCP, RTP, UDP, RTSP, NTP, IGMP, QoS, (SMTP, FTP opcional).
A181: 5.22 | B181: Debe tener | C181: Balance de blancos - AWB.
A182: 5.23 | B182: Seguridad de red | C182: Certificado: Compatibilidad con la infraestructura de claves públicas (PKI) o FIPS 140-2 Encryption.
C183: HTTPS
C184: Codificación: TLS o AES 256 ó AES 128 en transmisión y almacenamiento de datos.
C185: Filtrado de direcciones IP, 802-1X.
A186: 5.24 | B186: Analíticas incluidas sin requerir licencias o componentes adicionales | C186: Incluidas en la cámara sin requerir licencias o componentes adicionales.
C187: Detección de movimiento
C188: Analitica de objetos
A189: 5.25 | B189: Memoria de Respaldo Local | C189: Compatible con tarjetas MicroSD, MicroSDXC.
A190: 5.26 | B190: Mantenimiento y soporte | C190: El contratista deberá tomar acciones que permitan detectar las fallas y defectos de los equipos o elementos del sistema, para lo cual cada (03) tres meses deberá realizar un mantenimiento con sus respectivos procedimiento o protocolos y de ser necesario adelantar acciones correctivas, finalizada la actividad el contratista entregará un informe técnico de lo actuado, mínimo durante el plazo de garantía 3 años.
A191: 5.27 | B191: Instalación y Configuración | C191: Las cámaras deberán entregarse instaladas, cableadas, configuradas y en correcto funcionamiento como un Sistema integrado. Incluye todos los elementos de cableado, fijación, etc, necesarios para un óptimo funcionamiento e instalación hasta la ubicación del sistema de almacenamiento.
A192: 5.28 | B192: Garantía | C192: El contratista debe proveer un periodo mínimo de 3 años de garantía en la solución implementada.
C193: Los equipos instalados en la solución, deberán contar con periodo de garantía de 5 años directos de fábrica.
A194: 5.29 | B194: Ficha técnica | C194: Del equipo ofertado (es obligatorio adjuntar la ficha técnica junto con el presente anexo, que permita confirmar el cumplimiento de las especificaciones técnicas mínimas aquí indicadas)
A195: 6 | B195: CÁMARA TIPO FIJA DOMO TIPO 2 | D195: CUMPLE | E195: NO CUMPLE
A196: 6.1 | B196: Cantidad | C196: De acuerdo con el cuadro de cantidades
A197: 6.2 | B197: Marca | C197: Especificar
A198: 6.3 | B198: Modelo | C198: Especificar
A199: 6.4 | B199: Tipo | C199: Tipo Domo
A200: 6.5 | B200: Rango de operación | C200: Día / Noche
A201: 6.6 | B201: Formato sensor de Imagen | C201: 1/2.8 CMOS
A202: 6.7 | B202: Lente | C202: Varifocal 3.5 – 6.6 mm
... 553 more rows

Sheet CCTV_P
A2: ITEM | B2: DESCRIPCIÓN | C2: UND | D2: CANTIDAD | E2: VALOR UNITARIO | F2: VALOR PARCIAL
B3: CÁMARA MINIDOMO IP
A4: 2025-01-01 | B4: Domo varifocal de 2 MP con IR y aprendizaje profundo | C4: und | D4: 99 | F4: =E4*D4 -> 0
A5: 2025-02-01 | B5: Domo varifocal de 4 MP con deep learning | C5: und | D5: 2 | F5: 0
A6: 2025-03-01 | B6: Domo varifocal de 8 MP con infrarrojos y deep learning | C6: und | D6: 5 | F6: 0
A7: 2025-04-01 | B7: Domo para interior de 2 MP con deep learning | C7: und | D7: 0 | F7: 0
A8: 2025-05-01 | B8: Domo para interior de 2 MP con infrarrojos y deep learning | C8: und | D8: 1 | F8: 0
A9: 2025-06-01 | B9: Multisensor de 13 MP Cobertura de 180° en horizontal y 90° en vertical | C9: und | D9: 1 | F9: 0
B10: CÁMARA 360 IP | D10: 0
A11: 2025-07-01 | B11: Domo integrado de 6 MP con vista panorámica de 360° | C11: und | D11: 1 | F11: 0
A12: 2025-08-01 | B12: Domo para exteriores de 6 MP con vista panorámica de 360° y captura de audio | C12: und | D12: 40 | F12: 0
A13: 2025-09-01 | B13: Domo de 12 MP con vista de 360° y deep learning | C13: und | D13: 7 | F13: 0
A14: 2025-10-01 | B14: Cámara multidireccional de 4x5 MP con tecnología de IA | C14: und | D14: 1 | F14: 0
B15: CÁMARA PTZ IP o MULTISENSOR | D15: 0
A16: 2025-11-01 | B16: Cámara de 360° con control PTZ de un solo clic 4 sensores de 5 MP, resolución total de total 20 MP | C16: und | D16: 5 | F16: 0
A17: 2025-12-01 | B17: Cámara de 360° con control PTZ con un solo clic 4 sensores de 4 MP, resolución total de 16 MP | C17: und | D17: 6 | F17: 0
A18: 1.13 | B18: PTZ para exterior con UHD 4K | C18: und | D18: 1 | F18: 0
B19: CÁMARA DOS LENTES IP | D19: 0
A20: 1.14 | B20: Sensor dual con IR de 360° y deep learning | C20: und | D20: 45 | F20: 0
A21: 1.15 | B21: Cámara de doble sensor de 2x8MP alimentada por IA | C21: und | D21: 2 | F21: 0
B22: CÁMARA BULLET IP | D22: 0
A23: 1.16 | B23: Cámara fija tipo bala de 2 MP , 9mm | C23: und | D23: 2 | F23: 0
A24: 1.17 | B24: Joystick para gestión profesional de cámaras y vídeos | C24: und | D24: 2 | F24: 0
E25: SUBTOTAL | F25: =SUM(F3:F24) -> 0
E26: IVA | F26: =F25*19% -> 0
E27: TOTAL | F27: =F25+F26 -> 0

Sheet EVAC
A2: VOCEO Y MEGAFONIA
A3: ITEM | B3: DESCRIPCIÓN | D3: CUMPLE | E3: NO CUMPLE
A4: 1 | B4: AMPLIFICADOR
A5: 1.1 | B5: Descripción | C5: Se trata de un amplificador de potencia multicanal flexible y compacto para sistemas de altavoces de 100 V o 70 V en aplicaciones de megafonía y alarma por voz.
A6: 1.2 | B6: Marca | C6: Especificar
A7: 1.3 | B7: Modelo | C7: Especificar
A8: 1.4 | B8: Capácidad | C8: De minimo 600W
A9: 1.5 | B9: Canales | C9: Mínimo 9
A10: 1.6 | B10: Certificaciones
A11: 1.6.1 | B11: Estandar de emergencia: | C11: EN 54‐16 y ISO 7240‐16
A12: 1.6.2 | B12: Conformidad con la normativa de emergencia: | C12: EN 50849, BS 5839-8
A13: 1.6.3 | B13: Ambitos de regulación | C13: Seguridad: EN/IEC/CSA/UL 62368‐1
C14: Inmunidad: EN 55035, EN 50130‐4
C15: Emisiones: EN 55032, EN 61000‐6‐3, ICES‐003, FCC‐47 apartado 15B clase A, EN 62479
C16: Entorno: EN/IEC 63000
A17: 1.7 | B17: Salidas del amplificador
A18: 1.7.1 | B18: Tensión de salida nominal | C18: Modo 100 V, 1 kHz, THD <1 %, sin carga (VRMS) : 100 VRMS
C19: Modo 70 V, 1 kHz, THD <1 %, sin carga (VRMS) : 70 VRMS
A20: 1.8 | B20: Potencia de salida maxima / Potencia RMS
A21: 1.8.1 | B21: Con todos canales combinados: Modo 100 V, carga de 16,7 Ohm Modo de 70 V, carga de 8,3 Ohm. | C21: Potencia de salida (W): Mínimo 600 W Potencia RMS (W): Mínimo 150 W
A22: 1.8.2 | B22: Canal 1 (modo 100 V, carga de 16,7 ohmios // 20 nF) | C22: Potencia de salida (W): Mínimo 600 W Potencia RMS (W): Mínimo 150 W
A23: 1.8.3 | B23: Canal 1 (modo 70 V, carga de 11,7 ohmios //20 nF) | C23: Potencia de salida (W): Mínimo 420 W Potencia RMS (W): Mínimo 105 W
A24: 1.8.4 | B24: Otros canales (modo 100 V, carga 33,3 ohmios // 20 nF | modo de 70 V, carga 16,7 ohmios // 20 nF) | C24: Potencia de salida (W): Mínimo 300 W Potencia RMS (W): Mínimo 75 W Tensión de compensación CC (mV) < 50 mV
A25: 1.9 | B25: Pocesamiento de señales por canal
A26: 1.9.1 | B26: EQ Maestro | C26: Mínimo 7 bandas
A27: 1.9.2 | B27: Control de nivel (dB) | C27: 0 dB ‒ -60 dB, silencio
A28: 1.9.3 | B28: Resolución de control de nivel (dB) | C28: Maximo 1 dB
A29: 1.9.4 | B29: Retardo(s) de audio | C29: Entre 0 s ‒ 60 s
A30: 1.9.5 | B30: Resolución del retardo de audio (ms) | C30: Maximo 1 ms
A31: 1.9.6 | B31: Limitador de potencia RMS | C31: Por RMS de alimentación
A32: 1.10 | B32: Acústico
A33: 1.10.1 | B33: Regulación de carga máxima a sin carga (dB) (de 20 Hz a 20.000 kHz) | C33: < 0,2 dB
A34: 1.10.2 | B34: Respuesta en frecuencias (-3 dB) (Hz) (Potencia RMS, +0,5) | C34: Entre 20 Hz – 20,000 Hz
A35: 1.10.3 | B35: Distorsión armónica total + ruido (%) (Potencia RMS, de 20 Hz a 20.000 Hz) | C35: < 0.50%
A36: 1.10.4 | B36: Distorsión armónica total + ruido (%) (6 dB por debajo de la potencia RMS, de 20 Hz a 20,000 Hz) | C36: < 0,1 %
A37: 1.10.5 | B37: Distorsión de intermodulación (19/20 kHz) (%) (6 dB por debajo de la potencia RMS, 1:1) | C37: Maximo 0.10%
A38: 1.10.6 | B38: Relación señal-ruido (> valor declarado) (dBA) (modo de 100 V, de 20 Hz a 20.000 Hz) | C38: Maximo 110 dBA
A39: 1.10.7 | B39: Relación señal-ruido (> valor declarado) (dBA) (modo de 70 V, de 20 Hz a 20.000 Hz) | C39: Maximo 107 dBA
A40: 1.10.8 | B40: Diafonía entre canales (dBA) (de 100 Hz a 20.000 Hz) | C40: < -84 dBA
A41: 1.11 | B41: Consumo de energía (W), a full carga | C41: De maximo 246 W
A42: 1.12 | B42: Puertos Ethernet | C42: Mínimo 2
A43: 1.13 | B43: Tipo de Ethernet | C43: 100BASE-TX; 1000BASE-T
A44: 1.14 | B44: Fiabilidad MTBF | C44: Mayor a 250.000 h
A45: 1.15 | B45: Rango de temperatura de funcionamiento | C45: Desde -1°C a 50°C o superior
A46: 1.16 | B46: Resistencia a Golpes (transporte) (G) | C46: < 10 G (IEC 60068-2-27)
A47: 1.17 | B47: Dimensión | C47: Para instalación de 1 UR, 19"
A48: 1.18 | B48: Grado de protección mínimo | C48: IP30
A49: 1.19 | B49: Instalación | C49: Debe inlcuir: * Juego de soportes de montaje en rack de 19" * Cables de instalación y conectores. * Guía rápida de instalación
A50: 1.20 | B50: Vida útil | C50: Mínimo 5 años
A51: 1.21 | B51: Ficha técnica | C51: Del equipo ofertado (es obligatorio adjuntar la ficha técnica junto con el presente anexo, que permita confirmar el cumplimiento de las especificaciones técnicas mínimas aquí indicadas)
A53: 2 | B53: CONTROLADORA DE SISTEMA
B54: Debe permitir la gestion de todas las funciones relacionadas con el sistema en un sistema de megafonía y alarma por voz
A55: 2.1 | B55: Marca | C55: Especificar
A56: 2.2 | B56: Modelo | C56: Especificar
A57: 2.3 | B57: Control del sistema y direccionamiento de audio | C57: Capacidad para controlar un sistema con hasta 250 dispositivos para servir más de 500 zonas.
C58: Soporte nativo para redes conmutadas de subred única, con soporte add‐on para topologías de múltiples subredes enrutadas.
C59: Asignación dinámica de varios canales de audio simultáneos para ahorrar ancho de banda de red;
C60: Interconexiones seguras mediante estándar de cifrado avanzado (AES128) para datos de audio y seguridad de la capa de transporte (TLS) para datos de control.
C61: Receptor para canales de audio Dante o AES67 desde fuentes externas con redireccionamiento dinámico a canales seguros o abiertos OMNEO.
C62: Capacidad de almacenamiento interno de mensajes y tonos; debe permitir reproducir simultáneamente hasta ocho de mensajes.
C63: Reloj interno en tiempo real para eventos programados e inserción de código de tiempo en eventos; soporte para el protocolo de hora de red (NTP) con ajuste automático para el horario de verano (DST).
C64: Registro de eventos de fallo y de eventos internos del sistema.
C65: Interfaz de control de red para aplicaciones de otros fabricantes.
C66: Servidor web integrado para la configuración gestión de archivos a través de un navegador.
C67: Opción de controlador de sistema redundante dual para obtener la máxima disponibilidad del sistema en aplicaciones esenciales.
A68: 2.4 | B68: Calidad de audio | C68: Audio sobre IP, la frecuencia de muestreo de audio debe ser de minimo 48 khz con tamaño de muestra de 24 bits.
C69: Debe permitir que los mensajes y tonos se guarden como archivos wav sin comprimir de alta definición.
A70: 2.5 | B70: Supervisión | C70: El sistema debe tener funciones de supervisión: • Supervisión de mensajes y tonos almacenados. • Temporizadores de supervisión interna para detectar y recuperarse de fallos de procesamiento. • Se recogen, notifican y registran los problemas o fallos de todos los dispositivos del sistema.
A71: 2.6 | B71: Tolerancia a fallos | C71: Entradas CC duales con protección de inversión de polaridad.
A72: 2.7 | B72: Certificaciones
A73: 2.7.1 | B73: Estandar de emergencia: | C73: EN 54‐16 y ISO 7240‐16
A74: 2.7.2 | B74: Conformidad con la normativa de emergencia: | C74: EN 50849, BS 5839-8
A75: 2.7.3. | B75: Ambitos de regulación | C75: Seguridad: EN/IEC/CSA/UL 62368‐1
C76: Inmunidad: EN 55024, EN 55103‐2 (E1, E2, E3), EN 50130‐4
C77: Emisiones: EN 55032, EN 61000‐6‐3, ICES‐003, ANSI C63.4, FCC‐47, parte 15B, clase A
C78: Entorno: EN/IEC 63000
A79: 2.7.4 | B79: Declaraciones de confirmidad | C79: Europa: CE/CPR
A80: 2.8 | B80: Consumo de energía | C80: De maximo 10W
A81: 2.9 | B81: Número de canales Dante | C81: Mínimo 120
A82: 2.10 | B82: Puertos Ethernet | C82: Mínimo 5
A83: 2.11 | B83: Tipo de Ethernet | C83: 100BASE-TX; 1000BASE-T
A84: 2.12 | B84: Protocolos y Estandares | C84: Mínimo Dante, AES 70, AES 67.
A85: 2.13 | B85: Frecuencia de Muestreo | C85: Mínimo 48 khz
A86: 2.14 | B86: Sistema operativo preinstalado | C86: Linux
A87: 2.15 | B87: Configuración | C87: Navegador; Servidor Web
A88: 2.16 | B88: Cifrado | C88: AES 128;TSL.
A89: 2.17 | B89: Sincronización de reloj: | C89: En tiempo real, NTP
A90: 2.18 | B90: Almacenamiento mínimo de mensajes | C90: 90 Minutos
A91: 2.19 | B91: Número mínimo de almacenamiento de eventos | C91: 3000
A92: 2.20 | B92: Protección: | C92: WhatchDog; RSTP
A93: 2.21 | B93: Rango de temperatura de funcionamiento | C93: Desde -1°C a 50°C
A94: 2.22 | B94: Entradas de audio estático dante o canales AES67 | C94: Mínimo 120
A95: 2.23 | B95: Salidas de audio estático canales Dante | C95: Mínimo 8
A96: 2.24 | B96: Tamaño de memoria SD soportada | C96: de 1 a 32GB minimo.
A97: 2.25 | B97: Capacidad mínima de dispositivos en red, sobre subred única | C97: 250
A98: 2.26 | B98: Fiabilidad MTBF | C98: Mayor que 999.999 h
A99: 2.27 | B99: Dimensión | C99: Para instalación de 1 UR, 19"
A100: 2.28 | B100: Grado de protección mínimo | C100: IP30
B101: Resistencia a Golpes (transporte) (G) | C101: < 10 G (IEC 60068-2-27)
A102: 2.29 | B102: Instalación | C102: Debe inlcuir: * Juego de soportes de montaje en rack de 19" * Cables de instalación y conectores. * Guía rápida de instalación
A103: 2.30 | B103: Vida útil | C103: Mínimo 5 años
A104: 2.31 | B104: Ficha técnica | C104: Del equipo ofertado (es obligatorio adjuntar la ficha técnica junto con el presente anexo, que permita confirmar el cumplimiento de las especificaciones técnicas mínimas aquí indicadas)
A107: 3 | B107: ESTACIÓN DE LLAMADA IP DE MESA
A108: 3.1 | B108: Descripción | C108: Es una estación IP que permite la emisión de alertas de voz, compatible con el sistema de audio evacuación.
A109: 3.2 | B109: Marca | C109: Especificar
A110: 3.3 | B110: Modelo | C110: Especificar
A111: 3.4 | B111: Certificaciones
A112: 3.4.1 | B112: Estandar de emergencia: | C112: EN 54‐16 y ISO 7240‐16
A113: 3.4.2 | B113: Declaración de conformidad | C113: Europea: CE/CPR
A114: 3.4.3 | B114: Ambitos de regulación | C114: Seguridad: EN/IEC/CSA/UL 62368‐1
C115: Inmunidad: EN 55024, EN 55103‐2 (E1, E2, E3), EN 50130‐4
C116: Emisiones: EN 55032, EN 61000‐6‐3, ICES‐003, ANSI C63.4, FCC‐47 apartado 15B clase A.
C117: Entorno: EN 50581
A118: 3.5 | B118: Nivel de entrada nominal de acustica (configurable) | C118: De 80 a 100 dBSPL
A119: 3.6 | B119: Maximo nivel de acustico de entrada | C119: 120 dBSPL
A120: 3.7 | B120: Relación Señal a Ruido minumo permitido | C120: Mayor a 70 dBA
A121: 3.8 | B121: Directividad | C121: Unidireccional
A122: 3.9 | B122: Frecuencia de respuesta (+3 / -6 dB) | C122: 100 Hz a 14 Khz
A123: 3.10 | B123: Tamaño del display Touch | C123: Mínimo de 4"
A124: 3.11 | B124: Resolución del display | C124: 480x272 px
A125: 3.12 | B125: Brillo del display | C125: Maximo de 300 cd/m2
A126: 3.13 | B126: Control de volumen | C126: Mute, -40 dB to 0 dB
A127: 3.14 | B127: Frequency range (-10 dB) | C127: 400 Hz to 10 kHz
A128: 3.15 | B128: Relacion señal a ruido | C128: > 96 dBA
A129: 3.16 | B129: Total distorisión armónica mas ruido (THD + N) | C129: < 0.1 %
A130: 3.17 | B130: Consumo maximo de potencia | C130: 5.4W
A131: 3.18 | B131: Puertos Ethernet | C131: Mínimo 2
A132: 3.19 | B132: Tipo de Ethernet | C132: 100BASE-TX; 1000BASE-T
A133: 3.20 | B133: Fiabilidad: MTBF (extrapolated from calculated MTBF of PRA-AD608) | C133: Mayor que 999.999 h
A134: 3.21 | B134: Temperatura de operación | C134: ;-5 to +50 °C (23 to 122 °F)
A135: 3.22 | B135: Resistencia a Golpes (transporte) (G) | C135: < 10 G (IEC 60068-2-27)
A136: 3.23 | B136: Grado de protección minimo | C136: IP 30
A137: 3.24 | B137: Instalación | C137: Debe inlcuir: * Debe sopotarse sobre mesa * Cables de instalación y conectores. * Guía rápida de instalación
A138: 3.25 | B138: Vida útil | C138: Mínimo 5 años
A139: 3.26 | B139: Ficha técnica | C139: Del equipo ofertado (es obligatorio adjuntar la ficha técnica junto con el presente anexo, que permita confirmar el cumplimiento de las especificaciones técnicas mínimas aquí indicadas)
A141: 4 | B141: ESTACIÓN DE LLAMADA IP DE PARED
A142: 4.1 | B142: Descripción | C142: Es una estación IP que permite la emisión de alertas de voz, compatible con el sistema de audio evacuación. No es serequrido si viene con las estaciones de llamada de mesa y de pared.
A143: 4.2 | B143: Marca | C143: Especificar
A144: 4.3 | B144: Modelo | C144: Especificar
A145: 4.4 | B145: Certificaciones
A146: 4.4.1 | B146: Estandar de emergencia: | C146: EN 54‐16 y ISO 7240‐16
A147: 4.4.2 | B147: Declaración de conformidad | C147: Europea: CE/CPR
A148: 4.4.3 | B148: Ambitos de regulación | C148: Seguridad: EN/IEC/CSA/UL 62368‐1
C149: Inmunidad: EN 55024, EN 55103‐2 (E1, E2, E3), EN 50130‐4
C150: Emisiones: EN 55032, EN 61000‐6‐3, ICES‐003, ANSI C63.4, FCC‐47 apartado 15B clase A.
C151: Entorno: EN 50581
A152: 4.5 | B152: Nivel de entrada nominal de acustica (configurable) | C152: De 85 a 105 dBSPL
A153: 4.6 | B153: Maximo nivel de acustico de entrada | C153: 120 dBSPL
A154: 4.7 | B154: Relación Señal a Ruido minumo permitido | C154: Mayor a 70 dBA
A155: 4.8 | B155: Directividad | C155: Unidireccional
A156: 4.9 | B156: Frecuencia de respuesta (+3 / -6 dB) | C156: 500 Hz a 8 Khz (cancelación de ruido)
A157: 4.10 | B157: Tamaño del display Touch | C157: Mínimo de 4"
A158: 4.11 | B158: Resolución del display | C158: 480x272 px
A159: 4.12 | B159: Brillo del display | C159: Maximo de 300 cd/m2
A160: 4.13 | B160: Control de volumen | C160: Mute, -40 dB to 0 dB
A161: 4.14 | B161: Frequency range (-10 dB) | C161: 400 Hz to 10 kHz
A162: 4.15 | B162: Relacion señal a ruido | C162: > 96 dBA
A163: 4.16 | B163: Total distorisión armónica mas ruido (THD + N) | C163: < 0.1 %
A164: 4.17 | B164: Consumo maximo de potencia | C164: 5.4W
A165: 4.18 | B165: Puertos Ethernet | C165: Mínimo 2
A166: 4.19 | B166: Tipo de Ethernet | C166: 100BASE-TX; 1000BASE-T
A167: 4.20 | B167: Fiabilidad: MTBF (extrapolated from calculated MTBF of PRA-AD608) | C167: Mayor que 999.999 h
A168: 4.21 | B168: Temperatura de operación | C168: ;-5 to +50 °C (23 to 122 °F)
A169: 4.22 | B169: Resistencia a Golpes (transporte) (G) | C169: < 10 G (IEC 60068-2-27)
A170: 4.23 | B170: Grado de protección minimo | C170: IP 30
A171: 4.24 | B171: Instalación | C171: Debe inlcuir: * La estaciónm para instalación en pared. * Microfono * Cables de instalación y conectores. * Guía rápida de instalación
A172: 4.25 | B172: Vida útil | C172: Mínimo 5 años
A173: 4.26 | B173: Ficha técnica | C173: Del equipo ofertado (es obligatorio adjuntar la ficha técnica junto con el presente anexo, que permita confirmar el cumplimiento de las especificaciones técnicas mínimas aquí indicadas)
A175: 5 | B175: EXTENSIÓN DE ESTACIÓN DE LLAMADA
A176: 5.1 | B176: Descripción | C176: Es una extensión de teclado para uso en combinación con las estaciones de llamado IP, compatible. Para realizar selecciones de llamadas de alarma.
A177: 5.2 | B177: Marca | C177: Especificar
A178: 5.3 | B178: Modelo | C178: Especificar
A179: 5.4 | B179: Certificaciones
A180: 5.4.1 | B180: Estandar de emergencia: | C180: EN 54‐16 y ISO 7240‐16
A181: 5.4.2 | B181: Declaración de conformidad | C181: Europea: CE/CPR
A182: 5.4.3 | B182: Ambitos de regulación | C182: Seguridad: EN/IEC/CSA/UL 62368‐1
C183: Inmunidad: EN 55024, EN 55103‐2 (E1, E2, E3), EN 50130‐4
C184: Emisiones: EN 55032, EN 61000‐6‐3, ICES‐003, ANSI C63.4, FCC‐47 apartado 15B clase A.
C185: Entorno: EN 50581
A186: 5.5 | B186: Fiabilidad: MTBF (extrapolated from calculated MTBF of PRA-AD608) | C186: Mayor que 1.999.999 horas
A187: 5.6 | B187: Temperatura de operación | C187: ;-5 to +50 °C (23 to 122 °F)
A188: 5.7 | B188: Resistencia a Golpes (transporte) (G) | C188: < 10 G (IEC 60068-2-27)
A189: 5.8 | B189: Grado de protección minimo | C189: IP 30
A190: 5.9 | B190: Instalación | C190: Debe inlcuir: * El dispositivo de extensión * Cable de interconexión * Cables de instalación y conectores. * Guía rápida de instalación
A191: 5.10 | B191: Vida útil | C191: Mínimo 5 años
A192: 5.11 | B192: Ficha técnica | C192: Del equipo ofertado (es obligatorio adjuntar la ficha técnica junto con el presente anexo, que permita confirmar el cumplimiento de las especificaciones técnicas mínimas aquí indicadas)
A194: 6 | B194: FUENTE DE ALIMENTACIÓN MULTIFUNCIÓN
A195: 6.1 | B195: Descripción | C195: Es una fuente supervisada para alimentar los equipos que hacen parte del sistema de audio evacuación. Propociona alimentación CC a los amplificadores conectados y los periféricos de la red eléctrica con un cargador confirme a las normas para una única batería de reserva de 12V. Con switch ethernet integrado, y SFP
A196: 6.2 | B196: Marca | C196: Especificar
A197: 6.3 | B197: Modelo | C197: Especificar
A198: 6.4 | B198: Certificaciones
A199: 6.4.1 | B199: Estandar de emergencia: | C199: EN 54‐16, EN 54‐4 y ISO 7240‐16
A200: 6.4.2 | B200: Declaración de conformidad | C200: Europea: EN 50849
A201: 6.4.3 | B201: Ambitos de regulación | C201: Seguridad: EN/IEC/CSA/UL 62368‐1
C202: Inmunidad: EN 55035, EN 50130-4
C203: Emisiones: EN 55032, EN 61000-3-2, EN 61000-3-3, EN 61000‐6‐3, ICES‐003, FCC‐47 apartado 15B clase A.
C204: Especificaciones medio ambientales: EN/IEC 63000
A205: 6.5 | B205: Supervisión | C205: Variables que el dipositivo debe supervisar
A206: 6.5.1 | B206: Batería | C206: Desconectar Cortocircuito Nivel de carga Impedancia
A207: 6.5.2 | B207: Fuentes de alimentación | C207: Tensiones de conversión Tensiones de salida
... 339 more rows

Sheet EVAC_P
A2: ITEM | B2: DESCRIPCIÓN | C2: UND | D2: CANTIDAD | E2: VALOR UNITARIO | F2: VALOR PARCIAL
A3: 1 | B3: Suministro, instalación, programación y puesta a punto de Controlador del sistema | C3: und | D3: 2 | F3: =E3*D3 -> 0
A4: =A3+1 -> 2 | B4: Suministro, instalación, programación y puesta a punto de Fuente alimentación multifunción | C4: und | D4: 4 | F4: =E4*D4 -> 0
A5: 3 | B5: Suministro, instalación, programación y puesta a punto de Amplificador, 600W, 8 canales | C5: und | D5: 12 | F5: 0
A6: 4 | B6: Suministro, instalación, programación y puesta a punto de Módulo de interfaz de control, 16 por 8 | C6: und | D6: 4 | F6: 0
A7: 5 | B7: Suministro, instalación, programación y puesta a punto de Switch Ethernet, 8 por PoE | C7: und | D7: 4 | F7: 0
A8: 6 | B8: Suministro, instalación, programación y puesta a punto de Dispositivo de fin de línea | C8: und | D8: 86 | F8: 0
A9: 7 | B9: Suministro, instalación, programación y puesta a punto de Estación llamada LCD sobremesa | C9: und | D9: 3 | F9: 0
A10: 8 | B10: Suministro, instalación, programación y puesta a punto de Estación llamada LCD montaje pared | C10: und | D10: 1 | F10: 0
A11: 9 | B11: Suministro, instalación, programación y puesta a punto de Extensión estación de llamada | C11: und | D11: 10 | F11: 0
A12: 10 | B12: Suministro, Instalación, y puesta a punto de Altavoz de Cielo Tipo 1 (Cielo 1) | C12: und | D12: 278 | F12: 0
A13: 11 | B13: Suministro, Instalación, y puesta a punto de Altavoz de Cielo Tipo 2 (Cielo 2) | C13: und | D13: 83 | F13: 0
A14: 12 | B14: Suministro, Instalación, y puesta a punto de Altavoz de Cielo Tipo 3 (Cielo 3) | C14: und | D14: 69 | F14: 0
A15: 13 | B15: Suministro, Instalación, y puesta a punto de Altavoz de Muro Tipo 1 (Muro 1) | C15: und | D15: 73 | F15: 0
A16: 14 | B16: Suministro, Instalación, y puesta a punto de Altavoz de Muro Tipo 2 (Muro 2) | C16: und | D16: 12 | F16: 0
A17: 15 | B17: Suministro, Instalación, y puesta a punto de Altavoz de Muro Tipo 3 (Muro 3) | C17: und | D17: 18 | F17: 0
A18: 16 | B18: Suministro, Instalación, y puesta a punto de Altavoz de Muro Tipo 4 (Muro 4) | C18: und | D18: 2 | F18: 0
A19: 17 | B19: Suministro, Instalación, Programación y puesta a punto de amplificador 2 x 1400 watts | C19: und | D19: 1 | F19: 0
A20: 18 | B20: Suministro, Instalación, Programación y puesta a punto de sensor de ruido ambiental | C20: und | D20: 2 | F20: 0
A21: 19 | B21: Suministro, Instalación, y puesta a punto de Módulo fuente de Alimentación | C21: und | D21: 4 | F21: 0
A22: 20 | B22: Suministro, Instalación, y puesta a punto de Módulo domo para altavoz en cielo con conector cerámico | C22: und | D22: 428 | F22: 0
A23: 21 | B23: Suministro, Instalación, y puesta a punto de Kit de suspensión metálico para altavoz de cielo | C23: und | D23: 2 | F23: 0
B24: CANALIZACIÓN | D24: 0 | F24: 0
A25: 22 | B25: Suministro, logística, seguro e instalación de Tubería EMT 3/4" | C25: und | D25: 1712 | F25: 0
A26: =A25+1 -> 23 | B26: Suministro, logística, seguro e instalación de Tubería EMT 1" | C26: und | D26: 855.42 | F26: 0
A27: 24 | B27: Suministro, logística, seguro e instalación de portacable de Acero tipo Ducto 100 mm Ancho x 60 mm de alto, incluye accesorios de instalación | C27: und | D27: 783 | F27: 0
A28: 25 | B28: Suministro, logística, seguro e instalación de portacable de Acero tipo Ducto 300 mm Ancho x 60 mm de alto, incluye accesorios de instalación | C28: und | D28: 90 | F28: 0
B29: CABLEADO | D29: 0 | F29: 0
A30: 26 | B30: Suministro, Instalación, conexión de cable AWG 2x14 grado profesional sin halógenos y bajo humo | C30: und | D30: 5016 | F30: 0
B31: TRASLADO | F31: 0
A32: 27 | B32: Desmonte, emabalaje, transporte, instalación de altavoz de cielo de Sies-M a C5 Medellín | C32: und | D32: 8 | F32: 0
A33: =A32+1 -> 28 | B33: Desmonte, emabalaje, transporte, instalación de mezclador 8 canales de Sies-M a C5 Medellín | C33: und | D33: 1 | F33: 0
A34: 29 | B34: Desmonte, emabalaje, transporte, instalación panel de control de Sies-M a C5 Medellín | C34: und | D34: 1 | F34: 0
A35: 30 | B35: Desmonte, emabalaje, transporte, instalación de amplificador mezclador 2 canales con prioridad de Sies-M a C5 Medellín | C35: und | D35: 1 | F35: 0
A36: 31 | B36: Desmonte, emabalaje, transporte, instalación de estación de llamado de Sies-M a C5 Medellín | C36: und | D36: 1 | F36: 0
A37: 32 | B37: Desmonte, emabalaje, transporte, instalación de control de volumen de Sies-M a C5 Medellín | C37: und | D37: 1 | F37: 0
E38: SUBTOTAL | F38: =SUM(F3:F37) -> 0
E39: IVA | F39: =F38*19% -> 0
E40: TOTAL | F40: =F38+F39 -> 0

Sheet Multimedia
A2: MULTIMEDIA
A3: ITEM | B3: DESCRIPCIÓN | D3: CUMPLE | E3: NO CUMPLE
A4: 0 | B4: BANDEJA TIPO OREJAS PARA RACK 19"
A5: 0.1 | B5: Descripción | C5: Es un accesorio en dos partes, para la instalación de Rack de 19", para el soporte de mezcladores de audio de algunos fabricantes. Su altura debe evitar el deslizamiento del dispositivo que aloje. Debe quedar estable.
A6: 0.2 | B6: Marca | C6: Especificar
A7: 0.3 | B7: Modelo | C7: Especificar
A8: 0.4 | B8: Material | C8: Acero
A9: 0.5 | B9: Peso | C9: maximo 1.50 kg
A10: 0.6 | B10: Longitud exterior | C10: Para 19", 48,26cm
A11: 0.7 | B11: Ancho exterior | C11: 3,17cm
A12: 0.8 | B12: Altura exterior | C12: 12,70cm
A13: 0.9 | B13: Color | C13: Negro
A14: 0.10 | B14: Instalación | C14: Debe inlcuir: * Soportes tipo bandeja de dos orejas para rack 19" * Tornillos para instalación en rack. * Guía rápida de instalación
A15: 0.11 | B15: Vida útil | C15: Mínimo 5 años
A16: 0.12 | B16: Ficha técnica | C16: Es obligatorio adjuntar la ficha técnica junto con el presente anexo
A17: 1 | B17: BASTIDOR PARA MONTAJE EN RACK PARA CONTROLADORES E INTERFACES IP
A18: 1.1 | B18: Descripción | C18: El estante de montaje en rack es un accesorio de montaje opcional para controladores e interfaces IP. Permite la instalación segura de los dispositivos en un rack EIA de 19". El estante de montaje en rack ocupa 1 espacio de rack y permite la instalación de una unidad de ancho de rack completo, dos unidades de medio ancho de rack, cuatro unidades de un cuarto de ancho de rack o cualquier combinación posible.
A19: 1.2 | B19: Marca | C19: Especificar
A20: 1.3 | B20: Modelo | C20: Especificar
A21: 1.4 | B21: Material | C21: Acero inoxidable
A22: 1.5 | B22: Dimensiones | C22: Ocupa un espacio de Rack de altura 482.6 x 43.5 x 165 mm / 19” x 1.7” x 6.5”
A23: 1.6 | B23: Peso | C23: Maximo 1,5 kg.
A24: 1.7 | B24: Instalación | C24: Debe inlcuir: *Estantería o bandeja soporte *Placa frontal de un cuarto de ancho de rack. *Placa frontal de medio ancho de rack. *Tornillos de fijación para placas frontales y unidades. *Destornillador *Guía rápida de instalación
A25: 1.8 | B25: Vida útil | C25: Mínimo 5 años
A26: 1.9 | B26: Ficha técnica | C26: Es obligatorio adjuntar la ficha técnica junto con el presente anexo
A28: 2 | B28: CAMARA PTZ PARA SISTEMA DE VIDEO CONFERENCIA
A29: 2.1 | B29: Descripción | C29: Es un sistema de captura de video, por medio de cámara PTZ HD, para colaboración con video de calidad profesional, para salas de conferencias, entornos de formación, con control de mando a distancia.
A30: 2.2 | B30: Marca | C30: Especificar
A31: 2.3 | B31: Modelo | C31: Especificar
A32: 2.4 | B32: Tipo de cámara | C32: PTZ
A33: 2.5 | B33: Calidad o resolución del video | C33: HD 1080p a 30 fotogramas por segundo o superior
A34: 2.6 | B34: Mínimo de aplicaciones compatibles: | C34: Microsoft Skype, Bluejeans, Zoom, Cisco Jabber, Cisco WebEx.
A35: 2.7 | B35: Codec | C35: Mínimo H.264 UVC 1.5 con codificación de video escalable (SVC)
A36: 2.8 | B36: Campo de visión mínimo | C36: 90° con panorámica mecánico de 260° e inclinación de 130°.
A37: 2.9 | B37: Zoom | C37: Full HD 10x sin pérdida.
A38: 2.10 | B38: Enfoque | C38: Automático o autoenfoque
A39: 2.11 | B39: Configuración de escena | C39: Mínimo tres opciones de configuración de escena de cámara predefinida
A40: 2.12 | B40: Mando a distancia | C40: Control de panorámica, inclinación y Zoom.
A41: 2.13 | B41: Tipo de montaje | C41: De sobreponer, montaje en pared o sobre tripode. Debe traer accesorios para el montaje en pared y tripode
A42: 2.14 | B42: Conexión | C42: Por USB, tipo Plug and Play, a dispositivos PC, MAC y Chrome sin necesidad de software adicional.
A43: 2.15 | B43: Sistema de Slot de seguridad | C43: Permite asegurar el equipo mediante bloqueo antirobo.
A44: 2.16 | B44: Compatibilidad | C44: Certificación para Skype for Business, optimización para Cisco Jabber® y compatibilidad con WebEx®3, Dispositivos certificados Vidyo, Microsfot Teams, Google Meet.
A45: 2.17 | B45: Instalación | C45: Debe inlcuir: * Cámara PTZ * Fuente de alimentación. * El mando a distancia * Accesorios para instalación sobre pared. * Accesorios para instalación sobre tripode. * Cable USB. *Guía rápida de instalación
A46: 2.18 | B46: Vida útil | C46: Mínimo 3 años
A47: 2.19 | B47: Ficha técnica | C47: Es obligatorio adjuntar la ficha técnica junto con el presente anexo
A49: 3 | B49: INTERFAZ DANTE BIDIRECCIONAL MIC/LÍNEA 2X2 PARA MONTAJE EN PARED
A50: 3.1 | B50: Descripción | C50: Es una interfaz de audio en red con Dante de montaje en pared, con dos entradas XLR de micrófono o linea y dos salidas XLR de microfono o línea.
A51: 3.2 | B51: Marca | C51: Especificar
A52: 3.3 | B52: Modelo | C52: Especificar
A53: 3.4 | B53: Funciones | C53: Debe poder convertir dos fuentes estandar de audio para canal de red Dante y dos señales Dante en nivel de micrófono o línea.
C54: No debe requerir de software para su configuración
C55: Cada entrada y salida debe ser un suiche seleccionable para micrófono o línea.
A56: 3.5 | B56: Resolución | C56: Alta resolución de 24 bit analogo a digital y de conversión de digital a análogo.
A57: 3.6 | B57: Interfaz de red | C57: RJ45 con indicadores de enlace y velocidad
A58: 3.7 | B58: Protocolo de audio digital | C58: Dante
A59: 3.8 | B59: Tasa de transmisión | C59: 100 Mbps
A60: 3.9 | B60: Frecuencia de muestreo soportada | C60: 44.1 kHz, 48 kHz o similar.
A61: 3.10 | B61: Nivel de operación de audio | C61: ;-20 dBFS = +4 dBu
A62: 3.11 | B62: Nivel de referencia | C62: 0 dBFS = +24 dBu
A63: 3.12 | B63: Interfaz de Microfono o línea a red
A64: 3.12.1 | B64: Entradas | C64: Minimo 2, XLR hembra.
A65: 3.12.2 | B65: Ganancia | C65: Microfono: 40 dB (Bajo), 48 dB (medio), 62 dB (Alto); Línea: 1db (Bajo), 8 dB (Medio), 19 dB (Alto).
A66: 3.12.3 | B66: Nivel de entrada (para +4 dBu/-20 dBFS) | C66: Mic: -36 dBu (LO), -44 dBu (MED), -58 dBu (HI); Line: +4 dBu (LO), -8 dBu (MED), -15 dBu (HI)
A67: 3.12.4 | B67: Nivel de entrada Máximo: | C67: Mic: -16 dBu (LO), -24 dBu (MED), -38 dBu (HI); Line: +24 dBu (LO), +12 dBu (MED), +5 dBu (HI)
A68: 3.12.5 | B68: Impedancia de entrada | C68: > 2.5 kΩ (MIC); > 5 kΩ (LINE)
A69: 3.12.6 | B69: Potencia de Phantom | C69: P48, 48 Vdc, suiche seleccionable
A70: 3.12.7 | B70: Estándar de Phantom | C70: IEC 61938: 2013
A71: 3.12.8 | B71: Selector por intrada (3) | C71: Phantom, Mic/Line, Ganancia
A72: 3.12.9 | B72: Frecuencia de respuesta | C72: 20 Hz to 20 kHz (± 0.5 dB)
A73: 3.12.10 | B73: Ruido equivalente de entrada | C73: ;-130 dBu (62 dB gain); -132 dBu Poderado A
A74: 3.12.11 | B74: Ruido por debajo de -20 dBFS (20 a 20 kHz): | C74: Mic: < -72 dB (LO), < -72 dB (MED), < -68 dB (HI); Line: < -72 dB (LO), < -72 dB (MED), < - 70 dB (HI)
A75: 3.13 | B75: Desde la red a Microfono o línea:
A76: 3.13.1 | B76: Salidas | C76: Minimo Dos (2), XLR macho
A77: 3.13.2 | B77: Nivel de operación de la salida | C77: ;+4 dBu nominal LINE level balanced; -45 dBu nominal MIC level (into 150 Ω)
A78: 3.13.3 | B78: Nivel de salida maximo | C78: ;+24 dBu Nivel de linea
A79: 3.13.4 | B79: Impedancia de salida | C79: 150 Ω balanceado
A80: 3.13.5 | B80: Selector de salida | C80: Microfono / Línea
A81: 3.13.6 | B81: Frecuencia de respuesta | C81: 20 Hz to 20 kHz (± 0.5 dB
A82: 3.13.7 | B82: Ruido | C82: < -80 dB (below +4 dBu); < -100 (below +24 dBu
A83: 3.14 | B83: Indicadores | C83: Minimo 4: Enlace, y velocidad, Sincronizacion y encendido.
A84: 3.15 | B84: Requerimiento de alimentación de potencia | C84: PoE Class 0, IEEE 802.3af
A85: 3.16 | B85: Instalación | C85: Debe inlcuir: * La interfaza para instalacación en pared con caja. * Guia de instalación * Manual de funcinamiento.
A86: 3.17 | B86: Vida útil | C86: Mínimo 3 años
A87: 3.18 | B87: Ficha técnica | C87: Es obligatorio adjuntar la ficha técnica junto con el presente anexo
A89: 4 | B89: ADAPTADOR DE E/S USB ó USB-C® a DANTE
A90: 4.1 | B90: Descripción | C90: Es un dispositivo USB para habilitar computadores y dispositivos móviles directamente a una red de audio Dante, sin requerir contraoladores o software adicional.
A91: 4.2 | B91: Marca | C91: Especificar
A92: 4.3 | B92: Modelo | C92: Especificar
A93: 4.4 | B93: Canales de audio | C93: Dos de entrada, dos de salida
A94: 4.5 | B94: Conectores | C94: RJ45 y USB tipo A
A95: 4.6 | B95: Alimentación | C95: Class 1 802.3af PoE or USB
A96: 4.7 | B96: Consumo de potencia | C96: Menor a 2 W
A97: 4.8 | B97: Tasa de muestreo | C97: 48 kHz
A98: 4.9 | B98: Profundidad de bits | C98: 24
A99: 4.10 | B99: Latencia del dispositivo Dante | C99: 1, 2 o 5 ms maximo, configurable.
A100: 4.11 | B100: Transporte por red del audio Dante sobre IP | C100: AES67 RTP
A101: 4.12 | B101: USB: | C101: Class compliant USB 2.0 device
A102: 4.13 | B102: Temperatura de operación mínima: | C102: ;-10° a 50° o superior
A103: 4.14 | B103: Instalación | C103: Debe inlcuir: * El dispositivo con sus puertos * Guia de instalación * Manual de funcinamiento.
A104: 4.15 | B104: Vida útil | C104: Mínimo 3 años
A105: 4.16 | B105: Ficha técnica | C105: Es obligatorio adjuntar la ficha técnica junto con el presente anexo
A107: 5 | B107: CODEC DE AUDIO PARA PERIODISTAS 1 ENTRADA DANTE + 12 SALIDAS LÍNEA/MIC
A108: 5.1 | B108: Descripción | C108: Es un dispositivo de conversión de 12 salidas de Linea o micrófono a Dante, por medio de una canal de entrada a la red Dante. Este dispositivo es para facilitarle la conectividad a los periodistas.
A109: 5.2 | B109: Marca | C109: Especificar
A110: 5.3 | B110: Modelo | C110: Especificar
A111: 5.4 | B111: Conector de entrada | C111: RJ45, para red DANTE
A112: 5.5 | B112: Salidas | C112: 12 XLR macho balanceados, de alta calidad balanceada, con transformador de aislamiento individual. Cada salida debe ser suicheable entre línea o micrófono.
A113: 5.6 | B113: Alimentación | C113: PoE desde la red Dante
A114: 5.7 | B114: Nivel de salida nominal | C114: 6dBu (salidas frontales)
A115: 5.8 | B115: Nivel máximo de salida | C115: 20 dBu (sin carga) +14 dBu (600 ohmios)
A116: 5.9 | B116: Impedancia de salida | C116: Mic: 220Ohm
A117: 5.10 | B117: Salida aislada por transformador individual | C117: Sí (cada salida)
A118: 5.11 | B118: SNR | C118: >70 dB
A119: 5.12 | B119: Respuesta de frecuencia | C119: 80Hz to 20kHz/-3dB
A120: 5.13 | B120: Indicadores | C120: Nivel de salida, potencia
A121: 5.14 | B121: Fuente de alimentación | C121: PoE, Clase 3
A122: 5.15 | B122: Crecimiento | C122: debe permitir crecimiento con la instalación de un accesorio ó agregación en red de mas dispositivos
A123: 5.16 | B123: Instalación | C123: Debe inlcuir: * El dispositivo para instalación en pared. * Guia de instalación * Manual de funcinamiento.
A124: 5.17 | B124: Vida útil | C124: Mínimo 3 años
A125: 5.18 | B125: Ficha técnica | C125: Es obligatorio adjuntar la ficha técnica junto con el presente anexo
A127: 6 | B127: CONSOLA DIGITAL DE AUDIO CON TARJETA DE CONECTIVIDAD DANTE
A128: 6.1 | B128: Descripción | C128: Es un consola mezclador digital de 48 canales de entrada. Para uno en escenarios de alta exigencia como audiovisuales, eventos corporativos, producciones en vivo y lugares de culto, ofrece una fidelidad de audio de alta resolución líder en su clase y una latencia ultrabaja de <0,7 ms. Debe contrar con preamplificadores de micrófono, compatibilidad con los plugins DEEP de latencia cero, además de 8 motores de efectos estéreo con canales de retorno dedicados. Es la opción ideal para configuraciones de monitorización intraauricular, ya que proporciona 12 mezclas estéreo (configurables como grupos o auxiliares), mientras que la mezcla automática de micrófonos la convierte en una excelente opción para conferencias, mesas redondas, retransmisiones y mucho más.
A129: 6.2 | B129: Marca | C129: Especificar
A130: 6.3 | B130: Modelo | C130: Especificar
A131: 6.4 | B131: Canales de entrada | C131: 48 XRL hembras para mezcla automática de micrófonos
A132: 6.5 | B132: Debe permitir expansión | C132: Puerto SLink para expansores de E/S remotas
A133: 6.6 | B133: Cantidad de buses | C133: 36
A134: 6.7 | B134: Latencia | C134: Menor que 0.7ms
A135: 6.8 | B135: Mezcladores estereo configurables o por grupos auxliares | C135: 12, con canal dedicado de retorno.
A136: 6.9 | B136: Motores FX | C136: Minimo 8
A137: 6.10 | B137: Matrix Estereo | C137: Minimo 3
A138: 6.11 | B138: Salida digital | C138: AES
A139: 6.12 | B139: Audio remoto | C139: Slink
A140: 6.13 | B140: Capacidad de ampliación de puertos I/O | C140: 64x64
A141: 6.14 | B141: Interface de audio USB | C141: 32x32
A142: 6.15 | B142: Control MIDI | C142: DAW
A143: 6.16 | B143: Grabación o reproducción multitrack | C143: SQ- Drive y Memoria USB
A144: 6.17 | B144: Pantalla touch capacitiva | C144: De mínimo 7"
A145: 6.18 | B145: Motor FPGA | C145: 96 kHz
A146: 6.19 | B146: Tiene mezcla automática de microfonos | C146: si
A147: 6.20 | B147: Tarjeta o puerto de conexión para red Dante | C147: Si
A148: 6.21 | B148: Instalación | C148: Debe inlcuir: * La consola * Cables de instalación, y cable fuente. * Guia de instalación * Manual de funcinamiento.
A149: 6.22 | B149: Vida útil | C149: Mínimo 3 años
A150: 6.23 | B150: Ficha técnica | C150: Es obligatorio adjuntar la ficha técnica junto con el presente anexo
A152: 7 | B152: CONTROLADOR AUDIOVISUAL SOBRE RED
A153: 7.1 | B153: Descripción | C153: Es un controlador Ethernet IP con varios puertos de control.
A154: 7.2 | B154: Marca | C154: Especificar
A155: 7.3 | B155: Modelo | C155: Especificar
A156: 7.4 | B156: Puertos Ethernet mínimo | C156: *1x LAN 10/100/1000 BaseT
A157: 7.5 | B157: Puertos de control IP | C157: *Puerto de control IP, sobre el mismo puerto Ethernet
A158: 7.6 | B158: Puerto RS-232/485 bidireccional: | C158: *Minimo 4 Puertos RS-232/485 bidireccional.
A159: 7.7 | B159: Puerto Universal | C159: * Mínimo 8
A160: 7.8 | B160: Puertos con rele de bajo voltaje: | C160: *Mínimo 2.
A161: 7.9 | B161: Sensor interno de captura de códigos IR | C161: Si
A162: 7.10 | B162: Memoria RAM | C162: Mínimo de 2GB
A163: 7.11 | B163: Memoria eMMC | C163: * 16 GB.
A164: 7.12 | B164: Reloj | C164: *Reloj de tiempo real integrado con pila o batería.
A165: 7.13 | B165: Alimentación | C165: *Alimentación PoE 802.3af o 12-28 VCC.
A166: 7.14 | B166: Diseño | C166: *Diseño de carcasa de aluminio unificado para instalación en escritorio o rack de 19".
A167: 7.15 | B167: Administración por | C167: *Servidor web y web de administración para configuración.
A168: 7.16 | B168: Instalación | C168: Debe inlcuir: * El dispositivo * Cables de instalación, y cable fuente. * Guia de instalación * Manual de funcionamiento.
A169: 7.17 | B169: Vida útil | C169: Mínimo 3 años
A170: 7.18 | B170: Ficha técnica | C170: Es obligatorio adjuntar la ficha técnica junto con el presente anexo
A172: 8 | B172: CONTROLADOR ETHERNET IP CON KNX
A173: 8.1 | B173: Descripción | C173: Es un controlador audiovisual sobre red, con KNX
A174: 8.2 | B174: Marca | C174: Especificar
A175: 8.3 | B175: Modelo | C175: Especificar
A176: 8.4 | B176: Puertos Ethernet mínimo | C176: *1x LAN 10/100/1000 BaseT
A177: 8.5 | B177: Puertos de control IP | C177: *Puerto de control IP, sobre el mismo puerto Ethernet
A178: 8.6 | B178: Puerto TP KNX | C178: * Mínimo 1, aislado galvanicamente, con capacidad para direccionar y controlar hasta 1000 objetos KNX.
A179: 8.7 | B179: Puerto RS-232/485 bidireccional: | C179: *Minimo 1 Puertos RS-232/485 bidireccional.
A180: 8.8 | B180: Puerto versatil | C180: Mínimo 4 puertos. Cada puerto es de 2 pines, uno es de entrada o saluda, y el otro es tierra, los cuales pueden ser usados como: * Entrada digital * contador de pulsos digitales * Voltaje de entrada * Resistencia de etnrada * Salida digital * Salida IR * Salida serial.
A181: 8.9 | B181: Memoria RAM | C181: Minimo 64MB.
A182: 8.10 | B182: Memoria Flash | C182: 256 MB
A183: 8.11 | B183: Sensor interno de captura de códigos IR | C183: Si
A184: 8.12 | B184: Reloj | C184: *Reloj de tiempo real integrado con pila o batería.
A185: 8.13 | B185: Alimentación | C185: *Alimentación PoE 802.3af o 12-28 VCC.
A186: 8.14 | B186: Diseño | C186: *Para instalación en rail DIN o rack 19"
A187: 8.15 | B187: Administración por | C187: *Servidor web y web de administración para configuración.
A188: 8.16 | B188: Instalación | C188: Debe inlcuir: * El dispositivo * Cables de instalación, y cable fuente. * Guia de instalación * Manual de funcionamiento.
A189: 8.17 | B189: Vida útil | C189: Mínimo 3 años
A190: 8.18 | B190: Ficha técnica | C190: Es obligatorio adjuntar la ficha técnica junto con el presente anexo
A192: 9 | B192: Conversor digital / analogico de audio con pantalla tactosensible: Matriz de enrutamiento con control táctil para sonido instalado
A193: 9.1 | B193: Descripción | C193: Es una consola que permite el enrutamiento de sonido a travez de DANTE, tanto para aplicacionesfijas como en vivo. Sirve para combinar diferentes tecnologías de red.
A194: 9.2 | B194: Marca | C194: Especificar
A195: 9.3 | B195: Modelo | C195: Especificar
A196: 9.4 | B196: Alimentación | C196: 110/240 VAC.
A197: 9.5 | B197: Display | C197: De minimo 3.4" capacitivo, tactil, con resolución minima de 640x180 pixeles.
A198: 9.6 | B198: Conexiones mínimas: | C198: 2 puertos IEC para alimentación principal y auxiliar
C199: 2 x conectores BNC para Word Clock de entrada y salida
C200: 1 Euroblock de 6 polos para GPIO
A201: 9.7 | B201: Ranuras para crecimiento | C201: 7 ranuras para insertar hasta 7 tarjetas AxC
A202: 9.8 | B202: Puerto GPIO | C202: Minimo 4 puertos GPIO configurables, puede ser 4 x VCA (ADC 8 bits 0-12V de nivel de entrada) para controlar el fader o activar acciones de nivel
A203: 9.9 | B203: Software | C203: Debe permitir el control por software
A204: 9.10 | B204: Interfaz de Audio | C204: Permite la conexión de interfaces de audio AxC, minimo 7 interfaces.
A205: 9.11 | B205: Formato del dispositivo | C205: Para instalación en Rack 19"
A206: 9.12 | B206: Instalación | C206: Debe inlcuir: * El dispositivo * Cables de instalación, y cable fuente. * Guia de instalación * Manual de funcionamiento.
A207: 9.13 | B207: Vida útil | C207: Mínimo 3 años
A208: 9.14 | B208: Ficha técnica | C208: Es obligatorio adjuntar la ficha técnica junto con el presente anexo
A210: 10 | B210: ENCODER Y DECODER DE AUDIO Y VIDEO POR HDMI A ETHERNET CON SALIDA NATIVA AES67
... 491 more rows

Sheet Multimedia_P
A2: ITEM | B2: DESCRIPCIÓN | C2: UND | D2: CANTIDAD | E2: VALOR UNITARIO | F2: VALOR PARCIAL
A3: 1 | B3: Suministro, transporte, instalación, configuración, puesta a punto de cámara de video conferencia PTZ, Incluye accesorios para instalación | C3: und | D3: 10 | F3: =E3*D3 -> 0
A4: 2 | B4: Suministro, transporte, instalación, configuracion, puesta a punto de Codec de audio dante 2 entradas 2 salidas, Incluye accesorios para instalación | C4: und | D4: 9 | F4: =E4*D4 -> 0
A5: 3 | B5: Suministro, transporte, instalación, configuracion, puesta a punto de Codec de Audio 2x2 en Muro. Incluye accesorios para instalación | C5: und | D5: 8 | F5: 0
A6: 4 | B6: Suministro, transporte, instalación, configuración, puesta a punto de Consola Digital de Audio con Tarjeta de Conectividad Dante | C6: und | D6: 1 | F6: 0
A7: 5 | B7: Suministro, transporte, instalación, configuración, puesta a punto de Codec de video HDMI, Incluye accesorios para instalación | C7: und | D7: 30 | F7: 0
A8: 6 | B8: Suministro, transporte, instalación, configuración, puesta a punto de Encoder micrófonos 4 entradas Dante, Incluye accesorios para instalación | C8: und | D8: 13 | F8: 0
A9: 7 | B9: Suministro, transporte, instalación, configuración, puesta a punto de Encoder Video Sobre IP tipo Wall Plate para empotrar en Muro, Incluye accesorios para instalación | C9: und | D9: 15 | F9: 0
A10: 8 | B10: Suministro, transporte, instalación, configuración, puesta a punto de Encoder Video Sobre IP para instalación tipo sobreponer, Incluye accesorios para instalación | C10: und | D10: 34 | F10: 0
A11: 9 | B11: Suministro, transporte, instalación, configuración, puesta a punto de Micrófono Digital de Empotrar , Incluye accesorios para instalación | C11: und | D11: 20 | F11: 0
A12: 10 | B12: Suministro, transporte, instalación, configuración, puesta a punto de Monitor tipo pantalla de 85" Incluye accesorios para instalación | C12: und | D12: 9 | F12: 0
A13: 11 | B13: Suministro, transporte, instalación, configuración, puesta a punto de Monitor tipo pantalla Tacto Sensible de 85" Incluye accesorios para instalación | C13: und | D13: 10 | F13: 0
A14: 12 | B14: Suministro, transporte, instalación, configuración, puesta a punto y programación de Pantalla cerebro control de sala de 10". Incluye accesorios para instalación | C14: und | D14: 10 | F14: 0
A15: 13 | B15: Suministro, transporte, instalación, configuración, puesta a punto y programación de Pantalla reserva de sala de 10". Incluye accesorios para instalación | C15: und | D15: 5 | F15: 0
A16: 14 | B16: Suministro, transporte, instalación, configuración, puesta a punto de Video Proyector DLP 1080P 5000 lumens. Incluye accesorios para instalación | C16: und | D16: 10 | F16: 0
A17: 15 | B17: Suministro, transporte, instalación, configuración, puesta a punto de Sistema Colaboración Inalámbrica | C17: und | D17: 12 | F17: 0
A18: 16 | B18: Suministro, transporte, instalación, Mesa móvil dotación tipo rack | C18: und | D18: 1 | F18: 0
A19: 17 | B19: Suministro, transporte, instalación de Micrófono Inalámbrico de Mano con capsula dinámica | C19: und | D19: 3 | F19: 0
A20: 18 | B20: Suministro, transporte, instalación de Micrófono Inalámbrico de Diadema omnidireccional | C20: und | D20: 3 | F20: 0
A21: 19 | B21: Suministro, transporte, instalación de Estación de carga de dos compartimentos en red con adaptador alterna (CA) | C21: und | D21: 3 | F21: 0
A22: 20 | B22: Suministro, transporte, instalación de Sistema de Distribución de Antenas y Paquete de Antenas Arquitectónicas de Diversidad | C22: und | D22: 1 | F22: 0
A23: 21 | B23: Suministro, transporte, instalación, configuración, puesta a punto de Codec de Audio Para Periodistas 1 entrada por 12 salidas en Dante. Incluye accesorios para instalación | C23: und | D23: 1 | F23: 0
A24: 22 | B24: Suministro, transporte, instalación, configuración, puesta a punto de Pantalla de video proyección de 135". Incluye accesorios para instalación | C24: und | D24: 5 | F24: 0
A25: 23 | B25: Suministro, transporte, instalación, configuración, puesta a punto de Pantalla de video proyección de 115". Incluye accesorios para instalación | C25: und | D25: 5 | F25: 0
A26: 24 | B26: Suministro, transporte, instalación, configuración, puesta a punto de Rack AV Halar y Girar. Incluye accesorios | C26: und | D26: 1 | F26: 0
A27: 25 | B27: Suministro, transporte, instalación, configuración, puesta a punto de Multivisualizador de video sobre IP 4 entradas 1 salida. Incluye accesorios para instalación | C27: und | D27: 2 | F27: 0
A28: 26 | B28: Suministro, transporte, instalación, configuración, puesta a punto de Controlador audiovisual sobre red.. Incluye accesorios para instalación | C28: und | D28: 5 | F28: 0
A29: 27 | B29: Suministro, transporte, instalación, configuración, puesta a punto de Controlador KNX sobre red . Incluye accesorios para instalación | C29: und | D29: 1 | F29: 0
A30: 28 | B30: Suministro, transporte, instalación de Bastidor para montaje en rack de controlador Incluye accesorios para instalación | C30: und | D30: 2 | F30: 0
A31: 29 | B31: Suministro, transporte, instalación, configuración, puesta a punto de Procesador de Audio digital 8 entradas 8 salidas analogicas con 64 entradas 64 salidas Dante. Incluye accesorios para instalación | C31: und | D31: 5 | F31: 0
A32: 30 | B32: Suministro, transporte, instalación, configuración, puesta a punto de Conversor digital / analógico de audio con pantalla tactosensible. Incluye accesorios para instalación | C32: und | D32: 1 | F32: 0
A33: 31 | B33: Suministro, transporte, instalación, configuración, puesta a punto de Tarjeta Dante para la plataforma Audio ToolBox. Incluye accesorios para instalación | C33: und | D33: 1 | F33: 0
